Workbook

Sheet 円運動
A1: 物体の円運動
A2: 回転座標系で解く | G2: マクロで計算 ➡ | H2: =exe("ルンゲ･クッタ･ギル法","CircularMotion_Rotating",C9:C19,E8:M8) -> ルンゲ･クッタ･ギル法 | Q2: マクロで計算 ➡ | R2: =exe("ルンゲ･クッタ･ギル法","CircularMotion_inertial",C28:C40,O8:W8) -> ルンゲ･クッタ･ギル法
A3: r''＝Fr/m＋rφ'^2 ：動径方向加速度 | E3: マクロは標準モジュール-Module6 の中。実行させるには =exe(･･ と先頭に＝を付加。 | O3: マクロは標準モジュール-Module6 の中。実行させるには =exe(･･ と先頭に＝を付加。
A4: φ''＝(Ft/m－2r'φ')/r ：回転角加速度 | I4: 回転座標系 | S4: 慣性座標系 | AC4: 回転座標系と慣性座標系との差
A5: Fr=0：0 | B5: 動径方向の力 | E5: 時間 | F5: 加速度 | H5: 速度 | J5: 位置 | K5: 位置 | L5: 位置 | O5: 時間 | P5: 加速度 | R5: 速度 | T5: 位置 | U5: 位置 | V5: 位置 | Y5: 時間 | Z5: 加速度 | AB5: 速度 | AD5: 位置 | AE5: 位置 | AF5: 位置
A6: Fr=1：－mrφ'^2 | B6: 向心力 | E6: t | F6: r'' | G6: φ'' | H6: r' | I6: φ' | J6: r | K6: φ | L6: x | M6: y | O6: t | P6: r'' | Q6: φ'' | R6: r' | S6: φ' | T6: r | U6: φ | V6: x | W6: y | Y6: t | Z6: r'' | AA6: φ'' | AB6: r' | AC6: φ' | AD6: r | AE6: φ | AF6: x | AG6: y
A7: Fr=2：－GMm/r^2 | B7: 重力 | E7: [s] | F7: [m/s^2] | G7: [rad/s^2] | H7: [m/s] | I7: [rad/s] | J7: [m] | K7: [deg] | L7: [m] | M7: [m] | O7: [s] | P7: [m/s^2] | Q7: [rad/s^2] | R7: [m/s] | S7: [rad/s] | T7: [m] | U7: [deg] | V7: [m] | W7: [m] | Y7: [s] | Z7: [m/s^2] | AA7: [rad/s^2] | AB7: [m/s] | AC7: [rad/s] | AD7: [m] | AE7: [deg] | AF7: [m] | AG7: [m]
A8: Ft=0 | B8: 接線方向の力 | E8: 0 | F8: 0 | G8: 0 | H8: 0 | I8: 0.02879793266 | J8: 2 | K8: 0 | L8: 2 | M8: 0 | O8: 0 | P8: 0 | Q8: 0 | R8: 0 | S8: 0.02879793266 | T8: 2 | U8: 0 | V8: 2 | W8: 0 | Y8: =O8 -> 0 | Z8: =P8-F8 -> 0 | AA8: =Q8-G8 -> 0 | AB8: =R8-H8 -> 0 | AC8: =S8-I8 -> 0 | AD8: =T8-J8 -> 0 | AE8: =U8-K8 -> 0 | AF8: =V8-L8 -> 0 | AG8: =W8-M8 -> 0
A9: 時間間隔 | B9: Δt | C9: 1 | D9: [s] | E9: 2 | F9: 0 | G9: 0 | H9: 0 | I9: 0.02879793266 | J9: 2 | K9: 3.3 | L9: 1.996683633 | M9: 0.1151280539 | O9: 2 | P9: -1.393369198e-19 | Q9: 0 | R9: 3.484508057e-11 | S9: 0.02879793266 | T9: 2 | U9: 3.3 | V9: 1.996683633 | W9: 0.1151280538 | Y9: 2 | Z9: -1.393369198e-19 | AA9: 0 | AB9: 3.484508057e-11 | AC9: 0 | AD9: 7.91899879e-12 | AE9: 0 | AF9: 1.424971252e-11 | AG9: -1.095666474e-10
A10: 終了時間 | B10: TL | C10: 200 | D10: [s] | E10: 4 | F10: 0 | G10: 0 | H10: 0 | I10: 0.02879793266 | J10: 2 | K10: 6.6 | L10: 1.986745531 | M10: 0.229874301 | O10: 4 | P10: 2.12817028e-20 | Q10: 0 | R10: 6.954845295e-11 | S10: 0.02879793266 | T10: 2 | U10: 6.6 | V10: 1.986745531 | W10: 0.2298743008 | Y10: 4 | Z10: 2.12817028e-20 | AA10: 0 | AB10: 6.954845295e-11 | AC10: 0 | AD10: 7.897105192e-11 | AE10: 0 | AF10: 1.043465314e-10 | AG10: -2.147613198e-10
A11: 出力間隔 | B11: Δtp | C11: 2 | D11: [s] | E11: 6 | F11: 0 | G11: 0 | H11: 0 | I11: 0.02879793266 | J11: 2 | K11: 9.9 | L11: 1.970218652 | M11: 0.3438582006 | O11: 6 | P11: 2.697799937e-19 | Q11: 0 | R11: 1.038910517e-10 | S11: 0.02879793266 | T11: 2 | U11: 9.9 | V11: 1.970218653 | W11: 0.3438582002 | Y11: 6 | Z11: 2.697799937e-19 | AA11: 0 | AB11: 1.038910517e-10 | AC11: 0 | AD11: 2.121498532e-10 | AE11: 0 | AF11: 2.696793899e-10 | AG11: -3.112541891e-10
A12: 外力(向心力) | B12: Fr | C12: 1 | E12: 8 | F12: 0 | G12: 0 | H12: 0 | I12: 0.02879793266 | J12: 2 | K12: 13.2 | L12: 1.947157806 | M12: 0.4567017402 | O12: 8 | P12: -4.407747699e-19 | Q12: 0 | R12: 1.376574067e-10 | S12: 0.02879793266 | T12: 2 | U12: 13.2 | V12: 1.947157806 | W12: 0.4567017398 | Y12: 8 | Z12: -4.407747699e-19 | AA12: 0 | AB12: 1.376574067e-10 | AC12: 0 | AD12: 4.055809022e-10 | AE12: 0 | AF12: 5.091882471e-10 | AG12: -3.948065208e-10
A13: 外力(接線方向の力) | B13: Ft | C13: 0 | E13: 10 | F13: 0 | G13: 0 | H13: 0 | I13: 0.02879793266 | J13: 2 | K13: 16.5 | L13: 1.91763947 | M13: 0.5680306894 | O13: 10 | P13: -8.787966828e-21 | Q13: 0 | R13: 1.706377727e-10 | S13: 0.02879793266 | T13: 2.000000001 | U13: 16.5 | V13: 1.917639471 | W13: 0.5680306889 | Y13: 10 | Z13: -8.787966828e-21 | AA13: 0 | AB13: 1.706377727e-10 | AC13: 0 | AD13: 6.565352706e-10 | AE13: 0 | AF13: 8.213814073e-10 | AG13: -4.613182059e-10
A14: 質量 | B14: m | C14: 1 | D14: [kg] | E14: 12 | F14: 0 | G14: 0 | H14: 0 | I14: 0.02879793266 | J14: 2 | K14: 19.8 | L14: 1.881761538 | M14: 0.6774758405 | O14: 12 | P14: 3.282252671e-20 | Q14: 0 | R14: 2.026302149e-10 | S14: 0.02879793266 | T14: 2.000000001 | U14: 19.8 | V14: 1.881761539 | W14: 0.67747584 | Y14: 12 | Z14: 3.282252671e-20 | AA14: 0 | AB14: 2.026302149e-10 | AC14: 0 | AD14: 9.614642416e-10 | AE14: 0 | AF14: 1.204361499e-09 | AG14: -5.068709896e-10
A15: 初期速度 | B15: r'0 | C15: 0 | D15: [m/s] | E15: 14 | F15: 0 | G15: 0 | H15: 0 | I15: 0.02879793266 | J15: 2 | K15: 23.1 | L15: 1.839642995 | M15: 0.7846742332 | O15: 14 | P15: 1.675007653e-19 | Q15: 0 | R15: 2.334426312e-10 | S15: 0.02879793266 | T15: 2.000000001 | U15: 23.1 | V15: 1.839642996 | W15: 0.7846742327 | Y15: 14 | Z15: 1.675007653e-19 | AA15: 0 | AB15: 2.334426312e-10 | AC15: 0 | AD15: 1.316027287e-09 | AE15: 0 | AF15: 1.655854565e-09 | AG15: -5.277684956e-10
A16: 初期角速度 | B16: φ'0 | C16: =330/200*PI()/180 -> 0.02879793266 | D16: [rad/s] | E16: 16 | F16: 0 | G16: 0 | H16: 0 | I16: 0.02879793266 | J16: 2 | K16: 26.4 | L16: 1.79142352 | M16: 0.8892703584 | O16: 16 | P16: -2.732740046e-19 | Q16: 0 | R16: 2.628946536e-10 | S16: 0.02879793266 | T16: 2.000000002 | U16: 26.4 | V16: 1.791423523 | W16: 0.8892703578 | Y16: 16 | Z16: -2.732740046e-19 | AA16: 0 | AB16: 2.628946536e-10 | AC16: 0 | AD16: 1.71514003e-09 | AE16: 0 | AF16: 2.173247804e-09 | AG16: -5.205704756e-10
A17: 初期位置 | B17: r0 | C17: 2 | D17: [m] | E17: 18 | F17: 0 | G17: 0 | H17: 0 | I17: 0.02879793266 | J17: 2 | K17: 29.7 | L17: 1.737263029 | M17: 0.9909173369 | O17: 18 | P17: -2.779326858e-19 | Q17: 0 | R17: 2.908194426e-10 | S17: 0.02879793266 | T17: 2.000000002 | U17: 29.7 | V17: 1.737263032 | W17: 0.9909173364 | Y17: 18 | Z17: -2.779326858e-19 | AA17: 0 | AB17: 2.908194426e-10 | AC17: 0 | AD17: 2.153021761e-09 | AE17: 0 | AF17: 2.753631989e-09 | AG17: -4.821186783e-10
A18: 初期角度 | B18: φ0 | C18: 0 | D18: [rad] | E18: 20 | F18: 0 | G18: 0 | H18: 0 | I18: 0.02879793266 | J18: 2 | K18: 33 | L18: 1.677341136 | M18: 1.08927807 | O18: 20 | P18: -2.563333457e-19 | Q18: 0 | R18: 3.170653198e-10 | S18: 0.02879793266 | T18: 2.000000003 | U18: 33 | V18: 1.677341139 | W18: 1.08927807 | Y18: 20 | Z18: -2.563333457e-19 | AA18: 0 | AB18: 3.170653198e-10 | AC18: 0 | AD18: 2.623255391e-09 | AE18: 0 | AF18: 3.393843429e-09 | AG18: -4.095583872e-10
A19: 位置表示スケール | B19: sf | C19: 1 | E19: 22 | F19: 0 | G19: 0 | H19: 0 | I19: 0.02879793266 | J19: 2 | K19: 36.3 | L19: 1.611856564 | M19: 1.184026358 | O19: 22 | P19: 1.603009853e-19 | Q19: 0 | R19: 3.414973392e-10 | S19: 0.02879793266 | T19: 2.000000003 | U19: 36.3 | V19: 1.611856569 | W19: 1.184026357 | Y19: 22 | Z19: 1.603009853e-19 | AA19: 0 | AB19: 3.414973392e-10 | AC19: 0 | AD19: 3.118848735e-09 | AE19: 0 | AF19: 4.09051415e-09 | AG19: -3.003517435e-10
E20: 24 | F20: 0 | G20: 0 | H20: 0 | I20: 0.02879793266 | J20: 2 | K20: 39.6 | L20: 1.541026486 | M20: 1.274847979 | O20: 24 | P20: 4.171637265e-20 | Q20: 0 | R20: 3.63998551e-10 | S20: 0.02879793266 | T20: 2.000000004 | U20: 39.6 | V20: 1.54102649 | W20: 1.274847979 | Y20: 24 | Z20: 4.171637265e-20 | AA20: 0 | AB20: 3.63998551e-10 | AC20: 0 | AD20: 3.632307344e-09 | AE20: 0 | AF20: 4.840117862e-09 | AG20: -1.522810766e-10
A21: 慣性座標系で解く | E21: 26 | F21: 0 | G21: 0 | H21: 0 | I21: 0.02879793266 | J21: 2 | K21: 42.9 | L21: 1.465085798 | M21: 1.361441738 | O21: 26 | P21: 8.258571236e-21 | Q21: 0 | R21: 3.844712502e-10 | S21: 0.02879793266 | T21: 2.000000004 | U21: 42.9 | V21: 1.465085803 | W21: 1.361441738 | Y21: 26 | Z21: 8.258571236e-21 | AA21: 0 | AB21: 3.844712502e-10 | AC21: 0 | AD21: 4.155705113e-09 | AE21: 0 | AF21: 5.639020362e-09 | AG21: 3.655098446e-11
A22: mR''⇡＝F⇡ ：並進運動方程式 | E22: 28 | F22: 0 | G22: 0 | H22: 0 | I22: 0.02879793266 | J22: 2 | K22: 46.2 | L22: 1.384286348 | M22: 1.443520456 | O22: 28 | P22: -2.728504881e-19 | Q22: 0 | R22: 4.028378806e-10 | S22: 0.02879793266 | T22: 2.000000005 | U22: 46.2 | V22: 1.384286354 | W22: 1.443520456 | Y22: 28 | Z22: -2.728504881e-19 | AA22: 0 | AB22: 4.028378806e-10 | AC22: 0 | AD22: 4.680767329e-09 | AE22: 0 | AF22: 6.483523274e-09 | AG22: 2.677351674e-10
A23: Iφ''⇡＝R⇡✕F⇡ ：回転運動方程式 | E23: 30 | F23: 0 | G23: 0 | H23: 0 | I23: 0.02879793266 | J23: 2 | K23: 49.5 | L23: 1.298896097 | M23: 1.520811931 | O23: 30 | P23: 8.703263533e-20 | Q23: 0 | R23: 4.190418134e-10 | S23: 0.02879793266 | T23: 2.000000005 | U23: 49.5 | V23: 1.298896104 | W23: 1.520811932 | Y23: 30 | Z23: 8.703263533e-20 | AA23: 0 | AB23: 4.190418134e-10 | AC23: 0 | AD23: 5.198947939e-09 | AE23: 0 | AF23: 7.369909794e-09 | AG23: 5.425710992e-10
A24: I＝mr^2 ：慣性モーメント | E24: 32 | F24: 0 | G24: 0 | H24: 0 | I24: 0.02879793266 | J24: 2 | K24: 52.8 | L24: 1.20919823 | M24: 1.593059836 | O24: 32 | P24: 4.192813089e-20 | Q24: 0 | R24: 4.330479449e-10 | S24: 0.02879793266 | T24: 2.000000006 | U24: 52.8 | V24: 1.209198238 | W24: 1.593059837 | Y24: 32 | Z24: 4.192813089e-20 | AA24: 0 | AB24: 4.330479449e-10 | AC24: 0 | AD24: 5.701518813e-09 | AE24: 0 | AF24: 8.294482434e-09 | AG24: 8.620921754e-10
A25: Fr=1：F＝－mrφ'^2er ：向心力 | E25: 34 | F25: 0 | G25: 0 | H25: 0 | I25: 0.02879793266 | J25: 2 | K25: 56.1 | L25: 1.115490218 | M25: 1.66002457 | O25: 34 | P25: -2.620508181e-19 | Q25: 0 | R25: 4.448430233e-10 | S25: 0.02879793266 | T25: 2.000000006 | U25: 56.1 | V25: 1.115490227 | W25: 1.660024571 | Y25: 34 | Z25: -2.620508181e-19 | AA25: 0 | AB25: 4.448430233e-10 | AC25: 0 | AD25: 6.179656342e-09 | AE25: 0 | AF25: 9.253599664e-09 | AG25: 1.227097535e-09
A26: Fr=2：F＝－GMm/r^2 ：重力 | E26: 36 | F26: 0 | G26: 0 | H26: 0 | I26: 0.02879793266 | J26: 2 | K26: 59.4 | L26: 1.018082832 | M26: 1.721484054 | O26: 36 | P26: 2.380162582e-19 | Q26: 0 | R26: 4.544357612e-10 | S26: 0.02879793266 | T26: 2.000000007 | U26: 59.4 | V26: 1.018082842 | W26: 1.721484056 | Y26: 36 | Z26: 2.380162582e-19 | AA26: 0 | AB26: 4.544357612e-10 | AC26: 0 | AD26: 6.624524485e-09 | AE26: 0 | AF26: 1.024370166e-08 | AG26: 1.638186919e-09
A27: Ft=0 | B27: 接線方向の力 | E27: 38 | F27: 0 | G27: 0 | H27: 0 | I27: 0.02879793266 | J27: 2 | K27: 62.7 | L27: 0.917299109 | M27: 1.777234465 | O27: 38 | P27: 7.835054762e-21 | Q27: 0 | R27: 4.618567906e-10 | S27: 0.02879793266 | T27: 2.000000007 | U27: 62.7 | V27: 0.9172991202 | W27: 1.777234467 | Y27: 38 | Z27: 7.835054762e-21 | AA27: 0 | AB27: 4.618567906e-10 | AC27: 0 | AD27: 7.027369353e-09 | AE27: 0 | AF27: 1.12613332e-08 | AG27: 2.095799978e-09
A28: 時間間隔 | B28: Δt | C28: 1 | D28: [s] | E28: 40 | F28: 0 | G28: 0 | H28: 0 | I28: 0.02879793266 | J28: 2 | K28: 66 | L28: 0.8134732862 | M28: 1.827090915 | O28: 40 | P28: -9.931461307e-20 | Q28: 0 | R28: 4.671583373e-10 | S28: 0.02879793266 | T28: 2.000000007 | U28: 66 | V28: 0.8134732985 | W28: 1.827090918 | Y28: 40 | Z28: -9.931461307e-20 | AA28: 0 | AB28: 4.671583373e-10 | AC28: 0 | AD28: 7.37960093e-09 | AE28: 0 | AF28: 1.230315783e-08 | AG28: 2.600259785e-09
A29: 終了時間 | B29: TL | C29: 200 | D29: [s] | E29: 42 | F29: 0 | G29: 0 | H29: 0 | I29: 0.02879793266 | J29: 2 | K29: 69.3 | L29: 0.7069496876 | M29: 1.870888062 | O29: 42 | P29: -3.801060351e-20 | Q29: 0 | R29: 4.704136991e-10 | S29: 0.02879793266 | T29: 2.000000008 | U29: 69.3 | V29: 0.7069497009 | W29: 1.870888065 | Y29: 42 | Z29: -3.801060351e-20 | AA29: 0 | AB29: 4.704136991e-10 | AC29: 0 | AD29: 7.672880553e-09 | AE29: 0 | AF29: 1.336596278e-08 | AG29: 3.151817474e-09
A30: 出力間隔 | B30: Δtp | C30: 2 | D30: [s] | E30: 44 | F30: 0 | G30: 0 | H30: 0 | I30: 0.02879793266 | J30: 2 | K30: 72.6 | L30: 0.5980815845 | M30: 1.908480657 | O30: 44 | P30: -3.536362555e-20 | Q30: 0 | R30: 4.717165177e-10 | S30: 0.02879793266 | T30: 2.000000008 | U30: 72.6 | V30: 0.598081599 | W30: 1.908480661 | Y30: 44 | Z30: -3.536362555e-20 | AA30: 0 | AB30: 4.717165177e-10 | AC30: 0 | AD30: 7.899204402e-09 | AE30: 0 | AF30: 1.444665754e-08 | AG30: 3.750695088e-09
A31: 外力(向心力) | B31: Fr | C31: 1 | E31: 46 | F31: 0 | G31: 0 | H31: 0 | I31: 0.02879793266 | J31: 2 | K31: 75.9 | L31: 0.4872300236 | M31: 1.939744031 | O31: 46 | P31: -3.920703755e-19 | Q31: 0 | R31: 4.711798615e-10 | S31: 0.02879793266 | T31: 2.000000008 | U31: 75.9 | V31: 0.4872300391 | W31: 1.939744035 | Y31: 46 | Z31: -3.920703755e-19 | AA31: 0 | AB31: 4.711798615e-10 | AC31: 0 | AD31: 8.050982991e-09 | AE31: 0 | AF31: 1.554226242e-08 | AG31: 4.397130882e-09
A32: 外力(接線方向の力) | B32: Ft | C32: 0 | E32: 48 | F32: 0 | G32: 0 | H32: 0 | I32: 0.02879793266 | J32: 2 | K32: 79.2 | L32: 0.3747626292 | M32: 1.964574501 | O32: 48 | P32: 5.325719656e-20 | Q32: 0 | R32: 4.689350747e-10 | S32: 0.02879793266 | T32: 2.000000008 | U32: 79.2 | V32: 0.3747626458 | W32: 1.964574507 | Y32: 48 | Z32: 5.325719656e-20 | AA32: 0 | AB32: 4.689350747e-10 | AC32: 0 | AD32: 8.121113559e-09 | AE32: 0 | AF32: 1.664989047e-08 | AG32: 5.091418398e-09
A33: 質量 | B33: m | C33: 1 | D33: [kg] | E33: 50 | F33: 0 | G33: 0 | H33: 0 | I33: 0.02879793266 | J33: 2 | K33: 82.5 | L33: 0.2610523844 | M33: 1.982889723 | O33: 50 | P33: -1.210198323e-19 | Q33: 0 | R33: 4.651304919e-10 | S33: 0.02879793266 | T33: 2.000000008 | U33: 82.5 | V33: 0.2610524022 | W33: 1.982889729 | Y33: 50 | Z33: -1.210198323e-19 | AA33: 0 | AB33: 4.651304919e-10 | AC33: 0 | AD33: 8.103056448e-09 | AE33: 0 | AF33: 1.776672126e-08 | AG33: 5.833943995e-09
A34: 初期速度 | B34: x'0 | C34: =-C41*C36*SIN(C39) -> 0 | D34: [m/s] | E34: 52 | F34: 0 | G34: 0 | H34: 0 | I34: 0.02879793266 | J34: 2 | K34: 85.8 | L34: 0.1464763943 | M34: 1.994628954 | O34: 52 | P34: 8.576208591e-21 | Q34: 0 | R34: 4.599299602e-10 | S34: 0.02879793266 | T34: 2.000000008 | U34: 85.8 | V34: 0.1464764131 | W34: 1.994628961 | Y34: 52 | Z34: 8.576208591e-21 | AA34: 0 | AB34: 4.599299602e-10 | AC34: 0 | AD34: 7.990894169e-09 | AE34: 0 | AF34: 1.888996792e-08 | AG34: 6.625219262e-09
A35: 初期速度 | B35: y'0 | C35: =C41*C36*COS(C39) -> 0.05759586532 | D35: [m/s] | E35: 54 | F35: 0 | G35: 0 | H35: 0 | I35: 0.02879793266 | J35: 2 | K35: 89.1 | L35: 0.03141463462 | M35: 1.999753265 | O35: 54 | P35: -2.198050498e-19 | Q35: 0 | R35: 4.535112085e-10 | S35: 0.02879793266 | T35: 2.000000008 | U35: 89.1 | V35: 0.03141465464 | W35: 1.999753272 | Y35: 54 | Z35: -2.198050498e-19 | AA35: 0 | AB35: 4.535112085e-10 | AC35: 0 | AD35: 7.779394906e-09 | AE35: 0 | AF35: 2.001683797e-08 | AG35: 7.465905005e-09
A36: 初期角速度 | B36: φ'0 | C36: =330/200*PI()/180 -> 0.02879793266 | D36: [rad/s] | E36: 56 | F36: 0 | G36: 0 | H36: 0 | I36: 0.02879793266 | J36: 2 | K36: 92.4 | L36: -0.08375130746 | M36: 1.99824566 | O36: 56 | P36: -1.06408514e-19 | Q36: 0 | R36: 4.460640746e-10 | S36: 0.02879793266 | T36: 2.000000007 | U36: 92.4 | V36: -0.08375128631 | W36: 1.998245669 | Y36: 56 | Z36: -1.06408514e-19 | AA36: 0 | AB36: 4.460640746e-10 | AC36: 0 | AD36: 7.464060481e-09 | AE36: 0 | AF36: 2.114448888e-08 | AG36: 8.356830117e-09
A37: 初期位置 | B37: x0 | C37: =C41*COS(C39) -> 2 | D37: [m] | E37: 58 | F37: 0 | G37: 0 | H37: 0 | I37: 0.02879793266 | J37: 2 | K37: 95.7 | L37: -0.1986394995 | M37: 1.99011114 | O37: 58 | P37: 6.024521837e-20 | Q37: 0 | R37: 4.377886249e-10 | S37: 0.02879793266 | T37: 2.000000007 | U37: 95.7 | V37: -0.1986394772 | W37: 1.990111149 | Y37: 58 | Z37: 6.024521837e-20 | AA37: 0 | AB37: 4.377886249e-10 | AC37: 0 | AD37: 7.041175198e-09 | AE37: 0 | AF37: 2.226998017e-08 | AG37: 9.299002235e-09
A38: 初期位置 | B38: y0 | C38: =C41*SIN(C39) -> 0 | D38: [m] | E38: 60 | F38: 0 | G38: 0 | H38: 0 | I38: 0.02879793266 | J38: 2 | K38: 99 | L38: -0.3128689301 | M38: 1.975376681 | O38: 60 | P38: 2.752857079e-20 | Q38: 0 | R38: 4.288931634e-10 | S38: 0.02879793266 | T38: 2.000000007 | U38: 99 | V38: -0.3128689067 | W38: 1.975376691 | Y38: 60 | Z38: 2.752857079e-20 | AA38: 0 | AB38: 4.288931634e-10 | AC38: 0 | AD38: 6.507840489e-09 | AE38: 0 | AF38: 2.339022254e-08 | AG38: 1.029360885e-08
A39: 初期角度 | B39: φ0 | C39: 0 | D39: [rad] | E39: 62 | F39: 0 | G39: 0 | H39: 0 | I39: 0.02879793266 | J39: 2 | K39: 102.3 | L39: -0.4260607725 | M39: 1.954091149 | O39: 62 | P39: 1.333018101e-19 | Q39: 0 | R39: 4.195921574e-10 | S39: 0.02879793266 | T39: 2.000000006 | U39: 102.3 | V39: -0.426060748 | W39: 1.95409116 | Y39: 62 | Z39: 1.333018101e-19 | AA39: 0 | AB39: 4.195921574e-10 | AC39: 0 | AD39: 5.862002439e-09 | AE39: 0 | AF39: 2.450192615e-08 | AG39: 1.134200667e-08
A40: 位置表示スケール | B40: sf | C40: 1 | E40: 64 | F40: 0 | G40: 0 | H40: 0 | I40: 0.02879793266 | J40: 2 | K40: 105.6 | L40: -0.5378396412 | M40: 1.926325134 | O40: 64 | P40: -1.247256015e-19 | Q40: 0 | R40: 4.101041039e-10 | S40: 0.02879793266 | T40: 2.000000005 | U40: 105.6 | V40: -0.5378396156 | W40: 1.926325146 | Y40: =O40 -> 64 | Z40: =P40-F40 -> -1.247256015e-19 | AA40: =Q40-G40 -> 0 | AB40: =R40-H40 -> 4.101041039e-10 | AC40: =S40-I40 -> 0 | AD40: =T40-J40 -> 5.102476219e-09 | AE40: =U40-K40 -> 0 | AF40: =V40-L40 -> 2.560154888e-08 | AG40: =W40-M40 -> 1.244570802e-08
A41: 初期位置 | B41: r0 | C41: 2 | D41: [m] | E41: 66 | F41: 0 | G41: 0 | H41: 0 | I41: 0.02879793266 | J41: 2 | K41: 108.9 | L41: -0.6478348364 | M41: 1.892170718 | O41: 66 | P41: 1.409251066e-19 | Q41: 0 | R41: 4.006493592e-10 | S41: 0.02879793266 | T41: 2.000000004 | U41: 108.9 | V41: -0.6478348097 | W41: 1.892170731 | Y41: 66 | Z41: 1.409251066e-19 | AA41: 0 | AB41: 4.006493592e-10 | AC41: 0 | AD41: 4.228952744e-09 | AE41: 0 | AF41: 2.668524635e-08 | AG41: 1.360635049e-08
E42: 68 | F42: 0 | G42: 0 | H42: 0 | I42: 0.02879793266 | J42: 2 | K42: 112.2 | L42: -0.7556815736 | M42: 1.85174117 | O42: 68 | P42: 2.742269167e-19 | Q42: 0 | R42: 3.914479625e-10 | S42: 0.02879793266 | T42: 2.000000003 | U42: 112.2 | V42: -0.7556815459 | W42: 1.851741184 | Y42: 68 | Z42: 2.742269167e-19 | AA42: 0 | AB42: 3.914479625e-10 | AC42: 0 | AD42: 3.242007107e-09 | AE42: 0 | AF42: 2.774882524e-08 | AG42: 1.482566314e-08
E43: 70 | F43: 0 | G43: 0 | H43: 0 | I43: 0.02879793266 | J43: 2 | K43: 115.5 | L43: -0.8610221936 | M43: 1.805170569 | O43: 70 | P43: -1.531012052e-19 | Q43: 0 | R43: 3.82717419e-10 | S43: 0.02879793266 | T43: 2.000000002 | U43: 115.5 | V43: -0.8610221648 | W43: 1.805170585 | Y43: 70 | Z43: -1.531012052e-19 | AA43: 0 | AB43: 3.82717419e-10 | AC43: 0 | AD43: 2.143088373e-09 | AE43: 0 | AF43: 2.878770211e-08 | AG43: 1.610541833e-08
E44: 72 | F44: 0 | G44: 0 | H44: 0 | I44: 0.02879793266 | J44: 2 | K44: 118.8 | L44: -0.9635073482 | M44: 1.75261336 | O44: 72 | P44: 9.275010772e-20 | Q44: 0 | R44: 3.746705502e-10 | S44: 0.02879793266 | T44: 2.000000001 | U44: 118.8 | V44: -0.9635073184 | W44: 1.752613378 | Y44: 72 | Z44: 9.275010772e-20 | AA44: 0 | AB44: 3.746705502e-10 | AC44: 0 | AD44: 9.345066943e-10 | AE44: 0 | AF44: 2.979686642e-08 | AG44: 1.74473811e-08
E45: 74 | F45: 0 | G45: 0 | H45: 0 | I45: 0.02879793266 | J45: 2 | K45: 122.1 | L45: -1.062797159 | M45: 1.694243843 | O45: 74 | P45: 1.964057646e-19 | Q45: 0 | R45: 3.675133961e-10 | S45: 0.02879793266 | T45: 2 | U45: 122.1 | V45: -1.062797128 | W45: 1.694243862 | Y45: 74 | Z45: 1.964057646e-19 | AA45: 0 | AB45: 3.675133961e-10 | AC45: 0 | AD45: -3.805875615e-10 | AE45: 0 | AF45: 3.077085298e-08 | AG45: 1.885324874e-08
E46: 76 | F46: 0 | G46: 0 | H46: 0 | I46: 0.02879793266 | J46: 2 | K46: 125.4 | L46: -1.158562345 | M46: 1.630255591 | O46: 76 | P46: 1.434662054e-19 | Q46: 0 | R46: 3.614431276e-10 | S46: 0.02879793266 | T46: 1.999999998 | U46: 125.4 | V46: -1.158562313 | W46: 1.630255612 | Y46: 76 | Z46: 1.434662054e-19 | AA46: 0 | AB46: 3.614431276e-10 | AC46: 0 | AD46: -1.798238003e-09 | AE46: 0 | AF46: 3.170372187e-08 | AG46: 2.032458157e-08
E47: 78 | F47: 0 | G47: 0 | H47: 0 | I47: 0.02879793266 | J47: 2 | K47: 128.7 | L47: -1.250485313 | M47: 1.560860815 | O47: 78 | P47: 7.18919214e-20 | Q47: 0 | R47: 3.566461217e-10 | S47: 0.02879793266 | T47: 1.999999997 | U47: 128.7 | V47: -1.25048528 | W47: 1.560860837 | Y47: 78 | Z47: 7.18919214e-20 | AA47: 0 | AB47: 3.566461217e-10 | AC47: 0 | AD47: -3.313720631e-09 | AE47: 0 | AF47: 3.258904768e-08 | AG47: 2.186273362e-08
E48: 80 | F48: 0 | G48: 0 | H48: 0 | I48: 0.02879793266 | J48: 2 | K48: 132 | L48: -1.338261213 | M48: 1.486289651 | O48: 80 | P48: -3.176373552e-21 | Q48: 0 | R48: 3.532961104e-10 | S48: 0.02879793266 | T48: 1.999999995 | U48: 132 | V48: -1.338261179 | W48: 1.486289674 | Y48: 80 | Z48: -3.176373552e-21 | AA48: 0 | AB48: 3.532961104e-10 | AC48: 0 | AD48: -4.921590691e-09 | AE48: 0 | AF48: 3.341991883e-08 | AG48: 2.346877648e-08
E49: 82 | F49: 0 | G49: 0 | H49: 0 | I49: 0.02879793266 | J49: 2 | K49: 135.3 | L49: -1.421598948 | M49: 1.406789406 | O49: 82 | P49: 7.47506576e-20 | Q49: 0 | R49: 3.51552396e-10 | S49: 0.02879793266 | T49: 1.999999993 | U49: 135.3 | V49: -1.421598914 | W49: 1.406789431 | Y49: 82 | Z49: 7.47506576e-20 | AA49: 0 | AB49: 3.51552396e-10 | AC49: 0 | AD49: -6.615736181e-09 | AE49: 0 | AF49: 3.418894856e-08 | AG49: 2.51434229e-08
E50: 84 | F50: 0 | G50: 0 | H50: 0 | I50: 0.02879793266 | J50: 2 | K50: 138.6 | L50: -1.500222139 | M50: 1.322623731 | O50: 84 | P50: 3.096964213e-19 | Q50: 0 | R50: 3.515583442e-10 | S50: 0.02879793266 | T50: 1.999999992 | U50: 138.6 | V50: -1.500222104 | W50: 1.322623758 | Y50: 84 | Z50: 3.096964213e-19 | AA50: 0 | AB50: 3.515583442e-10 | AC50: 0 | AD50: -8.389440032e-09 | AE50: 0 | AF50: 3.488829647e-08 | AG50: 2.688694778e-08
E51: 86 | F51: 0 | G51: 0 | H51: 0 | I51: 0.02879793266 | J51: 2 | K51: 141.9 | L51: -1.573870044 | M51: 1.23407175 | O51: 86 | P51: -6.67038446e-21 | Q51: 0 | R51: 3.534398876e-10 | S51: 0.02879793266 | T51: 1.99999999 | U51: 141.9 | V51: -1.573870008 | W51: 1.234071779 | Y51: 86 | Z51: -6.67038446e-21 | AA51: 0 | AB51: 3.534398876e-10 | AC51: 0 | AD51: -1.023544516e-08 | AE51: 0 | AF51: 3.550970029e-08 | AG51: 2.869911198e-08
E52: 88 | F52: 0 | G52: 0 | H52: 0 | I52: 0.02879793266 | J52: 2 | K52: 145.2 | L52: -1.642298418 | M52: 1.141427135 | O52: 88 | P52: -3.144609817e-20 | Q52: 0 | R52: 3.573043589e-10 | S52: 0.02879793266 | T52: 1.999999988 | U52: 145.2 | V52: -1.642298382 | W52: 1.141427166 | Y52: 88 | Z52: -3.144609817e-20 | AA52: 0 | AB52: 3.573043589e-10 | AC52: 0 | AD52: -1.214602818e-08 | AE52: 0 | AF52: 3.604452115e-08 | AG52: 3.057909037e-08
E53: 90 | F53: 0 | G53: 0 | H53: 0 | I53: 0.02879793266 | J53: 2 | K53: 148.5 | L53: -1.705280329 | M53: 1.044997129 | O53: 90 | P53: -1.054556019e-19 | Q53: 0 | R53: 3.632393397e-10 | S53: 0.02879793266 | T53: 1.999999986 | U53: 148.5 | V53: -1.705280292 | W53: 1.044997162 | Y53: 90 | Z53: -1.054556019e-19 | AA53: 0 | AB53: 3.632393397e-10 | AC53: 0 | AD53: -1.41130756e-08 | AE53: 0 | AF53: 3.648379643e-08 | AG53: 3.252539948e-08
E54: 92 | F54: 0 | G54: 0 | H54: 0 | I54: 0.02879793266 | J54: 2 | K54: 151.8 | L54: -1.762606904 | M54: 0.9451015297 | O54: 92 | P54: 3.525774643e-20 | Q54: 0 | R54: 3.71311831e-10 | S54: 0.02879793266 | T54: 1.999999984 | U54: 151.8 | V54: -1.762606867 | W54: 0.9451015643 | Y54: 92 | Z54: 3.525774643e-20 | AA54: 0 | AB54: 3.71311831e-10 | AC54: 0 | AD54: -1.612816458e-08 | AE54: 0 | AF54: 3.681830552e-08 | AG54: 3.453583497e-08
E55: 94 | F55: 0 | G55: 0 | H55: 0 | I55: 0.02879793266 | J55: 2 | K55: 155.1 | L55: -1.814088029 | M55: 0.8420716267 | O55: 94 | P55: -1.702536224e-19 | Q55: 0 | R55: 3.815675659e-10 | S55: 0.02879793266 | T55: 1.999999982 | U55: 155.1 | V55: -1.814087992 | W55: 0.8420716633 | Y55: 94 | Z55: -1.702536224e-19 | AA55: 0 | AB55: 3.815675659e-10 | AC55: 0 | AD55: -1.818264606e-08 | AE55: 0 | AF55: 3.70386426e-08 | AG55: 3.660741543e-08
E56: 96 | F56: 0 | G56: 0 | H56: 0 | I56: 0.02879793266 | J56: 2 | K56: 158.4 | L56: -1.859552972 | M56: 0.7362491054 | O56: 96 | P56: -5.46336251e-20 | Q56: 0 | R56: 3.940305844e-10 | S56: 0.02879793266 | T56: 1.99999998 | U56: 158.4 | V56: -1.859552935 | W56: 0.7362491441 | Y56: 96 | Z56: -5.46336251e-20 | AA56: 0 | AB56: 3.940305844e-10 | AC56: 0 | AD56: -2.026773216e-08 | AE56: 0 | AF56: 3.713529884e-08 | AG56: 3.87363337e-08
E57: 98 | F57: 0 | G57: 0 | H57: 0 | I57: 0.02879793266 | J57: 2 | K57: 161.7 | L57: -1.898850955 | M57: 0.6279849119 | O57: 98 | P57: -1.471719746e-19 | Q57: 0 | R57: 4.087029799e-10 | S57: 0.02879793266 | T57: 1.999999978 | U57: 161.7 | V57: -1.898850918 | W57: 0.6279849529 | Y57: 98 | Z57: -1.471719746e-19 | AA57: 0 | AB57: 4.087029799e-10 | AC57: 0 | AD57: -2.237458174e-08 | AE57: 0 | AF57: 3.709875163e-08 | AG57: 4.091791939e-08
E58: 100 | F58: 0 | G58: 0 | H58: 0 | I58: 0.02879793266 | J58: 2 | K58: 165 | L58: -1.931851653 | M58: 0.5176380902 | O58: 100 | P58: -3.811648263e-20 | Q58: 0 | R58: 4.255648669e-10 | S58: 0.02879793266 | T58: 1.999999976 | U58: 165 | V58: -1.931851616 | W58: 0.5176381334 | Y58: 100 | Z58: -3.811648263e-20 | AA58: 0 | AB58: 4.255648669e-10 | AC58: 0 | AD58: -2.449439029e-08 | AE58: 0 | AF58: 3.691955808e-08 | AG58: 4.314660984e-08
E59: 102 | F59: 0 | G59: 0 | H59: 0 | I59: 0.02879793266 | J59: 2 | K59: 168.3 | L59: -1.958445621 | M59: 0.4055745907 | O59: 102 | P59: 1.387016451e-19 | Q59: 0 | R59: 4.445745875e-10 | S59: 0.02879793266 | T59: 1.999999973 | U59: 168.3 | V59: -1.958445585 | W59: 0.4055746361 | Y59: 102 | Z59: 1.387016451e-19 | AA59: 0 | AB59: 4.445745875e-10 | AC59: 0 | AD59: -2.661847542e-08 | AE59: 0 | AF59: 3.658845515e-08 | AG59: 4.541593435e-08
E60: 104 | F60: 0 | G60: 0 | H60: 0 | I60: 0.02879793266 | J60: 2 | K60: 171.6 | L60: -1.978544666 | M60: 0.2921660571 | O60: 104 | P60: 1.509836228e-19 | Q60: 0 | R60: 4.65669138e-10 | S60: 0.02879793266 | T60: 1.999999971 | U60: 171.6 | V60: -1.97854463 | W60: 0.2921661048 | Y60: 104 | Z60: 1.509836228e-19 | AA60: 0 | AB60: 4.65669138e-10 | AC60: 0 | AD60: -2.873836502e-08 | AE60: 0 | AF60: 3.609646004e-08 | AG60: 4.771850898e-08
E61: 106 | F61: 0 | G61: 0 | H61: 0 | I61: 0.02879793266 | J61: 2 | K61: 174.9 | L61: -1.992082131 | M61: 0.1777885937 | O61: 106 | P61: 1.311842277e-19 | Q61: 0 | R61: 4.887647743e-10 | S61: 0.02879793266 | T61: 1.999999969 | U61: 174.9 | V61: -1.992082095 | W61: 0.1777886438 | Y61: 106 | Z61: 1.311842277e-19 | AA61: 0 | AB61: 4.887647743e-10 | AC61: 0 | AD61: -3.084588074e-08 | AE61: 0 | AF61: 3.543497318e-08 | AG61: 5.0046044e-08
E62: 108 | F62: 0 | G62: 0 | H62: 0 | I62: 0.02879793266 | J62: 2 | K62: 178.2 | L62: -1.999013121 | M62: 0.06282151816 | O62: 108 | P62: 8.2268075e-20 | Q62: 0 | R62: 5.137578575e-10 | S62: 0.02879793266 | T62: 1.999999967 | U62: 178.2 | V62: -1.999013086 | W62: 0.06282157055 | Y62: 108 | Z62: 8.2268075e-20 | AA62: 0 | AB62: 5.137578575e-10 | AC62: 0 | AD62: -3.293321882e-08 | AE62: 0 | AF62: 3.459587927e-08 | AG62: 5.238936301e-08
E63: 110 | F63: 0 | G63: 0 | H63: 0 | I63: 0.02879793266 | J63: 2 | K63: 181.5 | L63: -1.99931465 | M63: -0.05235389662 | O63: 110 | P63: 1.061967558e-19 | Q63: 0 | R63: 5.405258797e-10 | S63: 0.02879793266 | T63: 1.999999965 | U63: 181.5 | V63: -1.999314616 | W63: -0.05235384188 | Y63: 110 | Z63: 1.061967558e-19 | AA63: 0 | AB63: 5.405258797e-10 | AC63: 0 | AD63: -3.499302781e-08 | AE63: 0 | AF63: 3.357164657e-08 | AG63: 5.473843415e-08
E64: 112 | F64: 0 | G64: 0 | H64: 0 | I64: 0.02879793266 | J64: 2 | K64: 184.8 | L64: -1.992985718 | M64: -0.1673556867 | O64: 112 | P64: -1.973586767e-19 | Q64: 0 | R64: 5.689286845e-10 | S64: 0.02879793266 | T64: 1.999999963 | U64: 184.8 | V64: -1.992985686 | W64: -0.1673556296 | Y64: 112 | Z64: -1.973586767e-19 | AA64: 0 | AB64: 5.689286845e-10 | AC64: 0 | AD64: -3.701848317e-08 | AE64: 0 | AF64: 3.235542523e-08 | AG64: 5.70824128e-08
E65: 114 | F65: 0 | G65: 0 | H65: 0 | I65: 0.02879793266 | J65: 2 | K65: 188.1 | L65: -1.980047315 | M65: -0.2818024639 | O65: 114 | P65: -6.289219633e-20 | Q65: 0 | R65: 5.988098633e-10 | S65: 0.02879793266 | T65: 1.999999961 | U65: 188.1 | V65: -1.980047284 | W65: -0.2818024045 | Y65: 114 | Z65: -6.289219633e-20 | AA65: 0 | AB65: 5.988098633e-10 | AC65: 0 | AD65: -3.900335388e-08 | AE65: 0 | AF65: 3.09411341e-08 | AG65: 5.9409695e-08
E66: 116 | F66: 0 | G66: 0 | H66: 0 | I66: 0.02879793266 | J66: 2 | K66: 191.4 | L66: -1.960542349 | M66: -0.3953146808 | O66: 116 | P66: 8.555032767e-20 | Q66: 0 | R66: 6.299983005e-10 | S66: 0.02879793266 | T66: 1.999999959 | U66: 191.4 | V66: -1.96054232 | W66: -0.3953146191 | Y66: 116 | Z66: 8.555032767e-20 | AA66: 0 | AB66: 6.299983005e-10 | AC66: 0 | AD66: -4.094206374e-08 | AE66: 0 | AF66: 2.932354737e-08 | AG66: 6.170798084e-08
E67: 118 | F67: 0 | G67: 0 | H67: 0 | I67: 0.02879793266 | J67: 2 | K67: 194.7 | L67: -1.934535506 | M67: -0.5075158892 | O67: 118 | P67: 1.42195656e-19 | Q67: 0 | R67: 6.623098881e-10 | S67: 0.02879793266 | T67: 1.999999957 | U67: 194.7 | V67: -1.934535478 | W67: -0.5075158252 | Y67: 118 | Z67: 1.42195656e-19 | AA67: 0 | AB67: 6.623098881e-10 | AC67: 0 | AD67: -4.282974753e-08 | AE67: 0 | AF67: 2.74983698e-08 | AG67: 6.396434682e-08
E68: 120 | F68: 0 | G68: 0 | H68: 0 | I68: 0.02879793266 | J68: 2 | K68: 198 | L68: -1.902113033 | M68: -0.6180339887 | O68: 120 | P68: 1.097966458e-19 | Q68: 0 | R68: 6.955493512e-10 | S68: 0.02879793266 | T68: 1.999999955 | U68: 198 | V68: -1.902113007 | W68: -0.6180339226 | Y68: 120 | Z68: 1.097966458e-19 | AA68: 0 | AB68: 6.955493512e-10 | AC68: 0 | AD68: -4.466229986e-08 | AE68: 0 | AF68: 2.546230338e-08 | AG68: 6.616532588e-08
E69: 122 | F69: 0 | G69: 0 | H69: 0 | I69: 0.02879793266 | J69: 2 | K69: 201.3 | L69: -1.863382455 | M69: -0.7265024609 | O69: 122 | P69: -3.695181232e-20 | Q69: 0 | R69: 7.295121773e-10 | S69: 0.02879793266 | T69: 1.999999954 | U69: 201.3 | V69: -1.863382432 | W69: -0.7265023926 | Y69: 122 | Z69: -3.695181232e-20 | AA69: 0 | AB69: 7.295121773e-10 | AC69: 0 | AD69: -4.643641516e-08 | AE69: 0 | AF69: 2.321310655e-08 | AG69: 6.82969945e-08
E70: 124 | F70: 0 | G70: 0 | H70: 0 | I70: 0.02879793266 | J70: 2 | K70: 204.6 | L70: -1.818472218 | M70: -0.8325615845 | O70: 124 | P70: -1.463249416e-19 | Q70: 0 | R70: 7.639866672e-10 | S70: 0.02879793266 | T70: 1.999999952 | U70: 204.6 | V70: -1.818472197 | W70: -0.8325615142 | Y70: 124 | Z70: -1.463249416e-19 | AA70: 0 | AB70: 7.639866672e-10 | AC70: 0 | AD70: -4.814962185e-08 | AE70: 0 | AF70: 2.074964134e-08 | AG70: 7.034506355e-08
E71: 126 | F71: 0 | G71: 0 | H71: 0 | I71: 0.02879793266 | J71: 2 | K71: 207.9 | L71: -1.76753126 | M71: -0.9358596285 | O71: 126 | P71: 1.843355451e-19 | Q71: 0 | R71: 7.987560322e-10 | S71: 0.02879793266 | T71: 1.99999995 | U71: 207.9 | V71: -1.767531242 | W71: -0.9358595562 | Y71: 126 | Z71: 1.843355451e-19 | AA71: 0 | AB71: 7.987560322e-10 | AC71: 0 | AD71: -4.98003061e-08 | AE71: 0 | AF71: 1.807190886e-08 | AG71: 7.229497456e-08
E72: 128 | F72: 0 | G72: 0 | H72: 0 | I72: 0.02879793266 | J72: 2 | K72: 211.2 | L72: -1.71072852 | M72: -1.036054019 | O72: 128 | P72: -6.892730608e-20 | Q72: 0 | R72: 8.336005552e-10 | S72: 0.02879793266 | T72: 1.999999949 | U72: 211.2 | V72: -1.710728505 | W72: -1.036053945 | Y72: =O72 -> 128 | Z72: =P72-F72 -> -6.892730608e-20 | AA72: =Q72-G72 -> 0 | AB72: =R72-H72 -> 8.336005552e-10 | AC72: =S72-I72 -> 0 | AD72: =T72-J72 -> -5.138772607e-08 | AE72: =U72-K72 -> 0 | AF72: =V72-L72 -> 1.518107595e-08 | AG72: =W72-M72 -> 7.413199632e-08
E73: 130 | F73: 0 | G73: 0 | H73: 0 | I73: 0.02879793266 | J73: 2 | K73: 214.5 | L73: -1.648252377 | M73: -1.132812474 | O73: 130 | P73: -1.691948312e-19 | Q73: 0 | R73: 8.682997822e-10 | S73: 0.02879793266 | T73: 1.999999947 | U73: 214.5 | V73: -1.648252365 | W73: -1.132812398 | Y73: 130 | Z73: -1.691948312e-19 | AA73: 0 | AB73: 8.682997822e-10 | AC73: 0 | AD73: -5.291202276e-08 | AE73: 0 | AF73: 1.207949007e-08 | AG73: 7.584132367e-08
E74: 132 | F74: 0 | G74: 0 | H74: 0 | I74: 0.02879793266 | J74: 2 | K74: 217.8 | L74: -1.580310025 | M74: -1.225814107 | O74: 132 | P74: 6.373922928e-20 | Q74: 0 | R74: 9.026346842e-10 | S74: 0.02879793266 | T74: 1.999999946 | U74: 217.8 | V74: -1.580310016 | W74: -1.22581403 | Y74: 132 | Z74: 6.373922928e-20 | AA74: 0 | AB74: 9.026346842e-10 | AC74: 0 | AD74: -5.437421624e-08 | AE74: 0 | AF74: 8.770683957e-09 | AG74: 7.740817476e-08
E75: 134 | F75: 0 | G75: 0 | H75: 0 | I75: 0.02879793266 | J75: 2 | K75: 221.1 | L75: -1.507126785 | M75: -1.314750492 | O75: 134 | P75: -5.399835039e-20 | Q75: 0 | R75: 9.363898656e-10 | S75: 0.02879793266 | T75: 1.999999944 | U75: 221.1 | V75: -1.507126779 | W75: -1.314750413 | Y75: 134 | Z75: -5.399835039e-20 | AA75: 0 | AB75: 9.363898656e-10 | AC75: 0 | AD75: -5.577619588e-08 | AE75: 0 | AF75: 5.259369384e-09 | AG75: 7.881788688e-08
E76: 136 | F76: 0 | G76: 0 | H76: 0 | I76: 0.02879793266 | J76: 2 | K76: 224.4 | L76: -1.428945359 | M76: -1.399326681 | O76: 136 | P76: 1.757593366e-20 | Q76: 0 | R76: 9.69355693e-10 | S76: 0.02879793266 | T76: 1.999999943 | U76: 224.4 | V76: -1.428945358 | W76: -1.399326601 | Y76: 136 | Z76: 1.757593366e-20 | AA76: 0 | AB76: 9.69355693e-10 | AC76: 0 | AD76: -5.712070239e-08 | AE76: 0 | AF76: 1.551422324e-09 | AG76: 8.005600738e-08
E77: 138 | F77: 0 | G77: 0 | H77: 0 | I77: 0.02879793266 | J77: 2 | K77: 227.7 | L77: -1.346025027 | M77: -1.47926219 | O77: 138 | P77: -2.105935665e-19 | Q77: 0 | R77: 1.001330384e-09 | S77: 0.02879793266 | T77: 1.999999942 | U77: 227.7 | V77: -1.346025029 | W77: -1.479262109 | Y77: 138 | Z77: -2.105935665e-19 | AA77: 0 | AB77: 1.001330384e-09 | AC77: 0 | AD77: -5.84112998e-08 | AE77: 0 | AF77: -2.346141059e-09 | AG77: 8.110838312e-08
E78: 140 | F78: 0 | G78: 0 | H78: 0 | I78: 0.02879793266 | J78: 2 | K78: 231 | L78: -1.258640782 | M78: -1.554291923 | O78: 140 | P78: -1.12655382e-19 | Q78: 0 | R78: 1.032122066e-09 | S78: 0.02879793266 | T78: 1.99999994 | U78: 231 | V78: -1.258640789 | W78: -1.554291841 | Y78: 140 | Z78: -1.12655382e-19 | AA78: 0 | AB78: 1.032122066e-09 | AC78: 0 | AD78: -5.96523404e-08 | AE78: 0 | AF78: -6.425198817e-09 | AG78: 8.196124313e-08
E79: 142 | F79: 0 | G79: 0 | H79: 0 | I79: 0.02879793266 | J79: 2 | K79: 234.3 | L79: -1.167082423 | M79: -1.624167054 | O79: 142 | P79: -1.09055492e-19 | Q79: 0 | R79: 1.061550548e-09 | S79: 0.02879793266 | T79: 1.999999939 | U79: 234.3 | V79: -1.167082433 | W79: -1.624166971 | Y79: 142 | Z79: -1.09055492e-19 | AA79: 0 | AB79: 1.061550548e-09 | AC79: 0 | AD79: -6.084892035e-08 | AE79: 0 | AF79: -1.067655653e-08 | AG79: 8.260127049e-08
E80: 144 | F80: 0 | G80: 0 | H80: 0 | I80: 0.02879793266 | J80: 2 | K80: 237.6 | L80: -1.07165359 | M80: -1.688655851 | O80: 144 | P80: -8.713851445e-20 | Q80: 0 | R80: 1.089449183e-09 | S80: 0.02879793266 | T80: 1.999999938 | U80: 237.6 | V80: -1.071653605 | W80: -1.688655768 | Y80: 144 | Z80: -8.713851445e-20 | AA80: 0 | AB80: 1.089449183e-09 | AC80: 0 | AD80: -6.200683078e-08 | AE80: 0 | AF80: -1.508999348e-08 | AG80: 8.301567633e-08
E81: 146 | F81: 0 | G81: 0 | H81: 0 | I81: 0.02879793266 | J81: 2 | K81: 240.9 | L81: -0.9726707608 | M81: -1.747544446 | O81: 146 | P81: -3.642241673e-20 | Q81: 0 | R81: 1.115666572e-09 | S81: 0.02879793266 | T81: 1.999999937 | U81: 240.9 | V81: -0.9726707805 | W81: -1.747544363 | Y81: 146 | Z81: -3.642241673e-20 | AA81: 0 | AB81: 1.115666572e-09 | AC81: 0 | AD81: -6.313249967e-08 | AE81: 0 | AF81: -1.965431262e-08 | AG81: 8.319226152e-08
E82: 148 | F82: 0 | G82: 0 | H82: 0 | I82: 0.02879793266 | J82: 2 | K82: 244.2 | L82: -0.8704621987 | M82: -1.800637543 | O82: 148 | P82: -5.569241628e-20 | Q82: 0 | R82: 1.140068039e-09 | S82: 0.02879793266 | T82: 1.999999936 | U82: 244.2 | V82: -0.8704622231 | W82: -1.80063746 | Y82: 148 | Z82: -5.569241628e-20 | AA82: 0 | AB82: 1.140068039e-09 | AC82: 0 | AD82: -6.423292676e-08 | AE82: 0 | AF82: -2.435739177e-08 | AG82: 8.311947242e-08
E83: 150 | F83: 0 | G83: 0 | H83: 0 | I83: 0.02879793266 | J83: 2 | K83: 247.5 | L83: -0.7653668647 | M83: -1.847759065 | O83: 150 | P83: -2.345222473e-19 | Q83: 0 | R83: 1.162536951e-09 | S83: 0.02879793266 | T83: 1.999999935 | U83: 247.5 | V83: -0.7653668939 | W83: -1.847758982 | Y83: 150 | Z83: -2.345222473e-19 | AA83: 0 | AB83: 1.162536951e-09 | AC83: 0 | AD83: -6.531561514e-08 | AE83: 0 | AF83: -2.918623521e-08 | AG83: 8.278644703e-08
E84: 152 | F84: 0 | G84: 0 | H84: 0 | I84: 0.02879793266 | J84: 2 | K84: 250.8 | L84: -0.6577332935 | M84: -1.88875274 | O84: 152 | P84: 1.419838978e-19 | Q84: 0 | R84: 1.182975915e-09 | S84: 0.02879793266 | T84: 1.999999934 | U84: 250.8 | V84: -0.6577333276 | W84: -1.888752658 | Y84: 152 | Z84: 1.419838978e-19 | AA84: 0 | AB84: 1.182975915e-09 | AC84: 0 | AD84: -6.638849692e-08 | AE84: 0 | AF84: -3.412702942e-08 | AG84: 8.218305858e-08
E85: 154 | F85: 0 | G85: 0 | H85: 0 | I85: 0.02879793266 | J85: 2 | K85: 254.1 | L85: -0.5479184374 | M85: -1.923482619 | O85: 154 | P85: 4.584565827e-20 | Q85: 0 | R85: 1.201307706e-09 | S85: 0.02879793266 | T85: 1.999999933 | U85: 254.1 | V85: -0.5479184766 | W85: -1.923482538 | Y85: 154 | Z85: 4.584565827e-20 | AA85: 0 | AB85: 1.201307706e-09 | AC85: 0 | AD85: -6.745985193e-08 | AE85: 0 | AF85: -3.91651972e-08 | AG85: 8.129994833e-08
E86: 156 | F86: 0 | G86: 0 | H86: 0 | I86: 0.02879793266 | J86: 2 | K86: 257.4 | L86: -0.4362864828 | M86: -1.951833524 | O86: 156 | P86: 1.479131284e-19 | Q86: 0 | R86: 1.217476054e-09 | S86: 0.02879793266 | T86: 1.999999931 | U86: 257.4 | V86: -0.4362865271 | W86: -1.951833444 | Y86: 156 | Z86: 1.479131284e-19 | AA86: 0 | AB86: 1.217476054e-09 | AC86: 0 | AD86: -6.853822998e-08 | AE86: 0 | AF86: -4.428544881e-08 | AG86: 8.012855623e-08
E87: 158 | F87: 0 | G87: 0 | H87: 0 | I87: 0.02879793266 | J87: 2 | K87: 260.7 | L87: -0.3232076422 | M87: -1.973711433 | O87: 158 | P87: -2.596155983e-19 | Q87: 0 | R87: 1.231446206e-09 | S87: 0.02879793266 | T87: 1.99999993 | U87: 260.7 | V87: -0.3232076917 | W87: -1.973711354 | Y87: 158 | Z87: -2.596155983e-19 | AA87: 0 | AB87: 1.231446206e-09 | AC87: 0 | AD87: -6.963236032e-08 | AE87: 0 | AF87: -4.947183352e-08 | AG87: 7.866114227e-08
E88: 160 | F88: 0 | G88: 0 | H88: 0 | I88: 0.02879793266 | J88: 2 | K88: 264 | L88: -0.2090569265 | M88: -1.989043791 | O88: 160 | P88: 1.986292261e-19 | Q88: 0 | R88: 1.243205255e-09 | S88: 0.02879793266 | T88: 1.999999929 | U88: 264 | V88: -0.2090569812 | W88: -1.989043714 | Y88: 160 | Z88: 1.986292261e-19 | AA88: 0 | AB88: 1.243205255e-09 | AC88: 0 | AD88: -7.075107034e-08 | AE88: 0 | AF88: -5.470778791e-08 | AG88: 7.689080705e-08
E89: 162 | F89: 0 | G89: 0 | H89: 0 | I89: 0.02879793266 | J89: 2 | K89: 267.3 | L89: -0.09421290142 | M89: -1.99777975 | O89: 162 | P89: -2.472277415e-19 | Q89: 0 | R89: 1.252762292e-09 | S89: 0.02879793266 | T89: 1.999999928 | U89: 267.3 | V89: -0.0942129614 | W89: -1.997779675 | Y89: 162 | Z89: -2.472277415e-19 | AA89: 0 | AB89: 1.252762292e-09 | AC89: 0 | AD89: -7.190319229e-08 | AE89: 0 | AF89: -5.997617945e-08 | AG89: 7.481150766e-08
E90: 164 | F90: 0 | G90: 0 | H90: 0 | I90: 0.02879793266 | J90: 2 | K90: 270.6 | L90: 0.02094356823 | M90: -1.999890339 | O90: 164 | P90: -1.196434038e-20 | Q90: 0 | R90: 1.260148303e-09 | S90: 0.02879793266 | T90: 1.999999927 | U90: 270.6 | V90: 0.02094350297 | W90: -1.999890266 | Y90: 164 | Z90: -1.196434038e-20 | AA90: 0 | AB90: 1.260148303e-09 | AC90: 0 | AD90: -7.309748051e-08 | AE90: 0 | AF90: -6.525934802e-08 | AG90: 7.241806954e-08
E91: 166 | F91: 0 | G91: 0 | H91: 0 | I91: 0.02879793266 | J91: 2 | K91: 273.9 | L91: 0.1360305813 | M91: -1.995368558 | O91: 166 | P91: 1.661243368e-19 | Q91: 0 | R91: 1.265415858e-09 | S91: 0.02879793266 | T91: 1.999999926 | U91: 273.9 | V91: 0.1360305108 | W91: -1.995368488 | Y91: 166 | Z91: 1.661243368e-19 | AA91: 0 | AB91: 1.265415858e-09 | AC91: 0 | AD91: -7.434252058e-08 | AE91: 0 | AF91: -7.053914308e-08 | AG91: 6.970620015e-08
E92: 168 | F92: 0 | G92: 0 | H92: 0 | I92: 0.02879793266 | J92: 2 | K92: 277.2 | L92: 0.2506664671 | M92: -1.984229403 | O92: 168 | P92: -1.139259314e-19 | Q92: 0 | R92: 1.268638594e-09 | S92: 0.02879793266 | T92: 1.999999924 | U92: 277.2 | V92: 0.2506663913 | W92: -1.984229336 | Y92: 168 | Z92: -1.139259314e-19 | AA92: 0 | AB92: 1.268638594e-09 | AC92: 0 | AD92: -7.564664539e-08 | AE92: 0 | AF92: -7.579695727e-08 | AG92: 6.667250041e-08
E93: 170 | F93: 0 | G93: 0 | H93: 0 | I93: 0.02879793266 | J93: 2 | K93: 280.5 | L93: 0.364471051 | M93: -1.966509815 | O93: 170 | P93: -1.805238969e-19 | Q93: 0 | R93: 1.269910479e-09 | S93: 0.02879793266 | T93: 1.999999923 | U93: 280.5 | V93: 0.36447097 | W93: -1.966509752 | Y93: 170 | Z93: -1.805238969e-19 | AA93: 0 | AB93: 1.269910479e-09 | AC93: 0 | AD93: -7.701785365e-08 | AE93: 0 | AF93: -8.101375681e-08 | AG93: 6.331447611e-08
E94: 172 | F94: 0 | G94: 0 | H94: 0 | I94: 0.02879793266 | J94: 2 | K94: 283.8 | L94: 0.4770669152 | M94: -1.94226856 | O94: 172 | P94: -7.665648173e-20 | Q94: 0 | R94: 1.269344887e-09 | S94: 0.02879793266 | T94: 1.999999922 | U94: 283.8 | V94: 0.477066829 | W94: -1.9422685 | Y94: 172 | Z94: -7.665648173e-20 | AA94: 0 | AB94: 1.269344887e-09 | AC94: 0 | AD94: -7.846372818e-08 | AE94: 0 | AF94: -8.61701091e-08 | AG94: 5.963055316e-08
E95: 174 | F95: 0 | G95: 0 | H95: 0 | I95: 0.02879793266 | J95: 2 | K95: 287.1 | L95: 0.5880806505 | M95: -1.91158603 | O95: 174 | P95: -1.83276754e-19 | Q95: 0 | R95: 1.267073451e-09 | S95: 0.02879793266 | T95: 1.99999992 | U95: 287.1 | V95: 0.5880805592 | W95: -1.911585974 | Y95: 174 | Z95: -1.83276754e-19 | AA95: 0 | AB95: 1.267073451e-09 | AC95: 0 | AD95: -7.999136153e-08 | AE95: 0 | AF95: -9.124620759e-08 | AG95: 5.562009386e-08
E96: 176 | F96: 0 | G96: 0 | H96: 0 | I96: 0.02879793266 | J96: 2 | K96: 290.4 | L96: 0.6971440946 | M96: -1.874563979 | O96: 176 | P96: 1.651714247e-19 | Q96: 0 | R96: 1.263244774e-09 | S96: 0.02879793266 | T96: 1.999999918 | U96: 290.4 | V96: 0.6971439984 | W96: -1.874563928 | Y96: 176 | Z96: 1.651714247e-19 | AA96: 0 | AB96: 1.263244774e-09 | AC96: 0 | AD96: -8.16072856e-08 | AE96: 0 | AF96: -9.622189578e-08 | AG96: 5.128341618e-08
E97: 178 | F97: 0 | G97: 0 | H97: 0 | I97: 0.02879793266 | J97: 2 | K97: 293.7 | L97: 0.8038955533 | M97: -1.831325187 | O97: 178 | P97: -2.879912021e-20 | Q97: 0 | R97: 1.258022933e-09 | S97: 0.02879793266 | T97: 1.999999917 | U97: 293.7 | V97: 0.8038954522 | W97: -1.83132514 | Y97: 178 | Z97: -2.879912021e-20 | AA97: 0 | AB97: 1.258022933e-09 | AC97: 0 | AD97: -8.33174052e-08 | AE97: 0 | AF97: -1.010766907e-07 | AG97: 4.66218173e-08
E98: 180 | F98: 0 | G98: 0 | H98: 0 | I98: 0.02879793266 | J98: 2 | K98: 297 | L98: 0.9079809995 | M98: -1.782013048 | O98: 180 | P98: -1.355252716e-20 | Q98: 0 | R98: 1.251585884e-09 | S98: 0.02879793266 | T98: 1.999999915 | U98: 297 | V98: 0.9079808937 | W98: -1.782013007 | Y98: 180 | Z98: -1.355252716e-20 | AA98: 0 | AB98: 1.251585884e-09 | AC98: 0 | AD98: -8.512694216e-08 | AE98: 0 | AF98: -1.057898057e-07 | AG98: 4.163760248e-08
E99: 182 | F99: 0 | G99: 0 | H99: 0 | I99: 0.02879793266 | J99: 2 | K99: 300.3 | L99: 1.009055248 | M99: -1.726791101 | O99: 182 | P99: 6.78685149e-20 | Q99: 0 | R99: 1.244123632e-09 | S99: 0.02879793266 | T99: 1.999999913 | U99: 300.3 | V99: 1.009055137 | W99: -1.726791065 | Y99: 182 | Z99: 6.78685149e-20 | AA99: 0 | AB99: 1.244123632e-09 | AC99: 0 | AD99: -8.704038046e-08 | AE99: 0 | AF99: -1.103401768e-07 | AG99: 3.633411505e-08
E100: 184 | F100: 0 | G100: 0 | H100: 0 | I100: 0.02879793266 | J100: 2 | K100: 303.6 | L100: 1.106783098 | M100: -1.665842481 | O100: 184 | P100: 2.590862027e-19 | Q100: 0 | R100: 1.23583642e-09 | S100: 0.02879793266 | T100: 1.999999911 | U100: 303.6 | V100: 1.106782984 | W100: -1.665842451 | Y100: 184 | Z100: 2.590862027e-19 | AA100: 0 | AB100: 1.23583642e-09 | AC100: 0 | AD100: -8.906142424e-08 | AE100: 0 | AF100: -1.147064905e-07 | AG100: 3.071577503e-08
E101: 186 | F101: 0 | G101: 0 | H101: 0 | I101: 0.02879793266 | J101: 2 | K101: 306.9 | L101: 1.200840451 | M101: -1.599369317 | O101: 186 | P101: 3.176373552e-22 | Q101: 0 | R101: 1.226932653e-09 | S101: 0.02879793266 | T101: 1.999999909 | U101: 306.9 | V101: 1.200840332 | W101: -1.599369292 | Y101: 186 | Z101: 3.176373552e-22 | AA101: 0 | AB101: 1.226932653e-09 | AC101: 0 | AD101: -9.119295852e-08 | AE101: 0 | AF101: -1.188672152e-07 | AG101: 2.478811889e-08
E102: 188 | F102: 0 | G102: 0 | H102: 0 | I102: 0.02879793266 | J102: 2 | K102: 310.2 | L102: 1.290915375 | M102: -1.527592057 | O102: 188 | P102: -3.033436742e-19 | Q102: 0 | R102: 1.217626876e-09 | S102: 0.02879793266 | T102: 1.999999907 | U102: 310.2 | V102: 1.290915253 | W102: -1.527592039 | Y102: 188 | Z102: -3.033436742e-19 | AA102: 0 | AB102: 1.217626876e-09 | AC102: 0 | AD102: -9.34370219e-08 | AE102: 0 | AF102: -1.228006388e-07 | AG102: 1.855784149e-08
E103: 190 | F103: 0 | G103: 0 | H103: 0 | I103: 0.02879793266 | J103: 2 | K103: 313.5 | L103: 1.376709151 | M103: -1.450748742 | O103: 190 | P103: 1.015380746e-19 | Q103: 0 | R103: 1.208137643e-09 | S103: 0.02879793266 | T103: 1.999999904 | U103: 313.5 | V103: 1.376709025 | W103: -1.45074873 | Y103: 190 | Z103: 1.015380746e-19 | AA103: 0 | AB103: 1.208137643e-09 | AC103: 0 | AD103: -9.579478699e-08 | AE103: 0 | AF103: -1.264849121e-07 | AG103: 1.203284716e-08
E104: 192 | F104: 0 | G104: 0 | H104: 0 | I104: 0.02879793266 | J104: 2 | K104: 316.8 | L104: 1.457937255 | M104: -1.369094212 | O104: 192 | P104: -2.381221373e-19 | Q104: 0 | R104: 1.198685306e-09 | S104: 0.02879793266 | T104: 1.999999902 | U104: 316.8 | V104: 1.457937125 | W104: -1.369094207 | Y104: 192 | Z104: -2.381221373e-19 | AA104: 0 | AB104: 1.198685306e-09 | AC104: 0 | AD104: -9.826654623e-08 | AE104: 0 | AF104: -1.298980972e-07 | AG104: 5.222297705e-09
E105: 194 | F105: 0 | G105: 0 | H105: 0 | I105: 0.02879793266 | J105: 2 | K105: 320.1 | L105: 1.534330304 | M105: -1.282899263 | O105: 194 | P105: -1.167846676e-19 | Q105: 0 | R105: 1.189489898e-09 | S105: 0.02879793266 | T105: 1.999999899 | U105: 320.1 | V105: 1.534330171 | W105: -1.282899265 | Y105: 194 | Z105: -1.167846676e-19 | AA105: 0 | AB105: 1.189489898e-09 | AC105: 0 | AD105: -1.008517121e-07 | AE105: 0 | AF105: -1.330182282e-07 | AG105: -1.863337484e-09
E106: 196 | F106: 0 | G106: 0 | H106: 0 | I106: 0.02879793266 | J106: 2 | K106: 323.4 | L106: 1.60563495 | M106: -1.19244975 | O106: 196 | P106: -2.134523027e-19 | Q106: 0 | R106: 1.180768861e-09 | S106: 0.02879793266 | T106: 1.999999896 | U106: 323.4 | V106: 1.605634815 | W106: -1.192449759 | Y106: 196 | Z106: -2.134523027e-19 | AA106: 0 | AB106: 1.180768861e-09 | AC106: 0 | AD106: -1.035488206e-07 | AE106: 0 | AF106: -1.35823377e-07 | AG106: -9.212228536e-09
E107: 198 | F107: 0 | G107: 0 | H107: 0 | I107: 0.02879793266 | J107: 2 | K107: 326.7 | L107: 1.671614723 | M107: -1.098045636 | O107: 198 | P107: -1.259961509e-20 | Q107: 0 | R107: 1.172734932e-09 | S107: 0.02879793266 | T107: 1.999999894 | U107: 326.7 | V107: 1.671614584 | W107: -1.098045653 | Y107: 198 | Z107: -1.259961509e-20 | AA107: 0 | AB107: 1.172734932e-09 | AC107: 0 | AD107: -1.063555468e-07 | AE107: 0 | AF107: -1.38291729e-07 | AG107: -1.681113782e-08
E108: 200 | F108: 0 | G108: 0 | H108: 0 | I108: 0.02879793266 | J108: 2 | K108: 330 | L108: 1.732050808 | M108: -1 | O108: 200 | P108: 2.615214225e-20 | Q108: 0 | R108: 1.165594003e-09 | S108: 0.02879793266 | T108: 1.999999891 | U108: 330 | V108: 1.732050667 | W108: -1.000000025 | Y108: =O108 -> 200 | Z108: 2.615214225e-20 | AA108: 0 | AB108: 1.165594003e-09 | AC108: 0 | AD108: -1.092687278e-07 | AE108: 0 | AF108: -1.404016703e-07 | AG108: -2.464537052e-08
E109: =E108+$C$11 -> 202 | F109: 0 | G109: =-2*H109*I109/J109 -> 0 | H109: =$C$15 -> 0 | I109: =I108+((G108+G110)/2)*(E109-E108) -> 0.02879793266 | J109: =J108+((H108+H109)/2)*(E109-E108) -> 2 | K109: =K108+((I108+I109)/2)*(E109-E108)*180/PI() -> 333.3 | L109: =J109*COS(RADIANS(K109)) -> 1.786742777 | M109: =J109*SIN(RADIANS(K109)) -> -0.8986379972

Sheet 自由落下
A1: 物体の自由落下運動
A2: 回転座標系で解く | G2: マクロで計算 ➡ | H2: =exe("ルンゲ･クッタ･ギル法","CircularMotion_Rotating",C9:C19,E8:M8) -> ルンゲ･クッタ･ギル法 | Q2: マクロで計算 ➡ | R2: =exe("ルンゲ･クッタ･ギル法","CircularMotion_inertial",C28:C40,O8:W8) -> ルンゲ･クッタ･ギル法
A3: r''＝Fr/m＋rφ'^2 ：動径方向加速度 | E3: マクロは標準モジュール-Module6 の中。実行させるには =exe(･･ と先頭に＝を付加。 | O3: マクロは標準モジュール-Module6 の中。実行させるには =exe(･･ と先頭に＝を付加。
A4: φ''＝(Ft/m－2r'φ')/r ：回転角加速度 | I4: 回転座標系 | S4: 慣性座標系 | AC4: 回転座標系と慣性座標系との差
A5: Fr=0：0 | B5: 動径方向の力 | E5: 時間 | F5: 加速度 | H5: 速度 | J5: 位置 | K5: 位置 | L5: 位置 | O5: 時間 | P5: 加速度 | R5: 速度 | T5: 位置 | U5: 位置 | V5: 位置 | Y5: 時間 | Z5: 加速度 | AB5: 速度 | AD5: 位置 | AE5: 位置 | AF5: 位置
A6: Fr=1：－mrφ'^2 | B6: 向心力 | E6: t | F6: r'' | G6: φ'' | H6: r' | I6: φ' | J6: r | K6: φ | L6: x | M6: y | O6: t | P6: r'' | Q6: φ'' | R6: r' | S6: φ' | T6: r | U6: φ | V6: x | W6: y | Y6: t | Z6: r'' | AA6: φ'' | AB6: r' | AC6: φ' | AD6: r | AE6: φ | AF6: x | AG6: y
A7: Fr=2：－GMm/r^2 | B7: 重力 | E7: [s] | F7: [m/s^2] | G7: [rad/s^2] | H7: [m/s] | I7: [rad/s] | J7: [km] | K7: [deg] | L7: [km] | M7: [km] | O7: [s] | P7: [m/s^2] | Q7: [rad/s^2] | R7: [m/s] | S7: [rad/s] | T7: [km] | U7: [deg] | V7: [km] | W7: [km] | Y7: [s] | Z7: [m/s^2] | AA7: [rad/s^2] | AB7: [m/s] | AC7: [rad/s] | AD7: [km] | AE7: [deg] | AF7: [km] | AG7: [km]
A8: Ft=0 | B8: 接線方向の力 | E8: 0 | F8: -8.969115218e-06 | G8: 0 | H8: 0 | I8: 0.00115687418 | J8: 6678.135 | K8: 0 | L8: 6678.135 | M8: 0 | O8: 0 | P8: -8.969115218e-06 | Q8: 0 | R8: 0 | S8: 0.00115687418 | T8: 6678.135 | U8: 0 | V8: 6678.135 | W8: 0 | Y8: =O8 -> 0 | Z8: =P8-F8 -> 0 | AA8: 0 | AB8: 0 | AC8: 0 | AD8: 0 | AE8: 0 | AF8: 0 | AG8: 0
A9: 時間間隔 | B9: Δt | C9: 25 | D9: [s] | E9: 25 | F9: -8.965364272e-06 | G9: 7.767656143e-14 | H9: -0.0002241966204 | I9: 0.001156874181 | J9: 6678.134997 | K9: 1.657100199 | L9: 6675.34215 | M9: 193.1171233 | O9: 25 | P9: -8.980342036e-06 | Q9: 0 | R9: -0.0002202676457 | S9: 0.00115687418 | T9: 6678.134997 | U9: 1.657100199 | V9: 6675.34215 | W9: 193.1171231 | Y9: 25 | Z9: -1.497776406e-08 | AA9: -7.767656143e-14 | AB9: 3.928974688e-06 | AC9: -9.710246929e-13 | AD9: 6.487425708e-09 | AE9: -4.636626638e-10 | AF9: 1.191619958e-08 | AG9: -1.875388591e-07
A10: 終了時間 | B10: TL | C10: 5000 | D10: [s] | E10: 50 | F10: -8.954114574e-06 | G10: 1.552881537e-13 | H10: -0.0004482057197 | I10: 0.001156874184 | J10: 6678.134989 | K10: 3.314200401 | L10: 6666.965935 | M10: 386.0727203 | O10: 50 | P10: -9.013686401e-06 | Q10: 0 | R10: -0.0004407211215 | S10: 0.00115687418 | T10: 6678.134989 | U10: 3.314200397 | V10: 6666.965935 | W10: 386.0727199 | Y10: 50 | Z10: -5.957182657e-08 | AA10: -1.552881537e-13 | AB10: 7.484598226e-06 | AC10: -3.883286704e-12 | AD10: 1.073130989e-07 | AE10: -3.708718666e-09 | AF10: 1.290345608e-07 | AG10: -3.719659958e-07
A11: 出力間隔 | B11: Δtp | C11: 2 | D11: [s] | E11: 75 | F11: -8.935375526e-06 | G11: 2.32769862e-13 | H11: -0.0006718399335 | I11: 0.001156874189 | J11: 6678.134975 | K11: 4.971300609 | L11: 6653.013363 | M11: 578.7053998 | O11: 75 | P11: -9.069120428e-06 | Q11: 0 | R11: -0.0006615444299 | S11: 0.00115687418 | T11: 6678.134975 | U11: 4.971300596 | V11: 6653.013363 | W11: 578.7053992 | Y11: 75 | Z11: -1.337449014e-07 | AA11: -2.32769862e-13 | AB11: 1.029550355e-05 | AC11: -8.734350049e-12 | AD11: 3.023897079e-07 | AE11: -1.251423409e-08 | AF11: 3.513641786e-07 | AG11: -5.498919791e-07
A12: 外力(向心力) | B12: Fr | C12: 2 | E12: 100 | F12: -8.909162811e-06 | G12: 3.100568801e-13 | H12: -0.0008949122111 | I12: 0.001156874196 | J12: 6678.134955 | K12: 6.628400825 | L12: 6633.496101 | M12: 770.8540407 | O12: 100 | P12: -9.146597672e-06 | Q12: 0 | R12: -0.0008829206458 | S12: 0.00115687418 | T12: 6678.134956 | U12: 6.628400795 | V12: 6633.496102 | W12: 770.85404 | Y12: 100 | Z12: -2.374348607e-07 | AA12: -3.100568801e-13 | AB12: 1.199156535e-05 | AC12: -1.552015742e-11 | AD12: 5.915753718e-07 | AE12: -2.965462365e-08 | AF12: 6.789186955e-07 | AG12: -7.173701988e-07
A13: 外力(接線方向の力) | B13: Ft | C13: 0 | E13: 125 | F13: -8.87549835e-06 | G13: 3.870845647e-13 | H13: -0.001117235972 | I13: 0.001156874204 | J13: 6678.13493 | K13: 8.285501052 | L13: 6608.430477 | M13: 962.3579268 | O13: 125 | P13: -9.246052977e-06 | Q13: 0 | R13: -0.001105031451 | S13: 0.00115687418 | T13: 6678.134931 | U13: 8.285500994 | V13: 6608.430478 | W13: 962.3579259 | Y13: 125 | Z13: -3.705546276e-07 | AA13: -3.870845647e-13 | AB13: 1.220452131e-05 | AC13: -2.423503303e-11 | AD13: 9.747172953e-07 | AE13: -5.789733493e-08 | AF13: 1.111638085e-06 | AG13: -8.69624273e-07
A14: 質量 | B14: m | C14: 0 | D14: [kg] | E14: 150 | F14: -8.834410298e-06 | G14: 4.637884893e-13 | H14: -0.001338625261 | I14: 0.001156874215 | J14: 6678.134899 | K14: 9.942601292 | L14: 6577.837453 | M14: 1153.056881 | O14: 150 | P14: -9.367402343e-06 | Q14: 0 | R14: -0.00132805667 | S14: 0.00115687418 | T14: 6678.134901 | U14: 9.942601192 | V14: 6577.837455 | W14: 1153.05688 | Y14: 150 | Z14: -5.329920451e-07 | AA14: -4.637884893e-13 | AB14: 1.056859135e-05 | AC14: -3.487168757e-11 | AD14: 1.451695425e-06 | AE14: -1.00000527e-07 | AF14: 1.649262231e-06 | AG14: -1.000780458e-06
A15: 初期速度 | B15: r'0 | C15: 0 | D15: [m/s] | E15: 175 | F15: -8.785933025e-06 | G15: 5.401044983e-13 | H15: -0.001558894906 | I15: 0.001156874228 | J15: 6678.134863 | K15: 11.59970155 | L15: 6541.74262 | M15: 1342.7914 | O15: 175 | P15: -9.51054271e-06 | Q15: 0 | R15: -0.001552173805 | S15: 0.00115687418 | T15: 6678.134865 | U15: 11.59970139 | V15: 6541.742622 | W15: 1342.791399 | Y15: 175 | Z15: -7.246096853e-07 | AA15: -5.401044983e-13 | AB15: 6.721100568e-06 | AC15: -4.74212245e-11 | AD15: 2.022502485e-06 | AE15: -1.587107583e-07 | AF15: 2.2912036e-06 | AG15: -1.103611339e-06
A16: 初期角速度 | B16: φ'0 | C16: =SQRT(398600500000000/C17)/C17 -> 0.00115687418 | D16: [rad/s] | E16: 200 | F16: -8.730107074e-06 | G16: 6.159687604e-13 | H16: -0.001777860669 | I16: 0.001156874242 | J16: 6678.134821 | K16: 13.25680183 | L16: 6500.176167 | M16: 1531.402786 | O16: 200 | P16: -9.675351698e-06 | Q16: 0 | R16: -0.001777557567 | S16: 0.00115687418 | T16: 6678.134824 | U16: 13.25680159 | V16: 6500.17617 | W16: 1531.402785 | Y16: 200 | Z16: -9.452446245e-07 | AA16: -6.159687604e-13 | AB16: 3.031021242e-07 | AC16: -6.187314766e-11 | AD16: 2.687320375e-06 | AE16: -2.367607124e-07 | AF16: 3.03636989e-06 | AG16: -1.169292773e-06
A17: 初期位置 | B17: r0 | C17: =6378135+300000 -> 6678135 | D17: [m] | E17: 225 | F17: -8.666979137e-06 | G17: 6.913178223e-13 | H17: -0.001995339405 | I17: 0.001156874258 | J17: 6678.134774 | K17: 14.91390213 | L17: 6453.172861 | M17: 1718.733282 | O17: 225 | P17: -9.861687308e-06 | Q17: 0 | R17: -0.002004379404 | S17: 0.00115687418 | T17: 6678.134778 | U17: 14.91390179 | V17: 6453.172864 | W17: 1718.733281 | Y17: 225 | Z17: -1.194708171e-06 | AA17: -6.913178223e-13 | AB17: -9.039999078e-06 | AC17: -7.821536908e-11 | AD17: 3.446627488e-06 | AE17: -3.368668882e-07 | AF17: 3.882971214e-06 | AG17: -1.187174348e-06
A18: 初期角度 | B18: φ0 | C18: 0 | D18: [rad] | E18: 250 | F18: -8.596602018e-06 | G18: 7.660886614e-13 | H18: -0.002211149212 | I18: 0.001156874277 | J18: 6678.134722 | K18: 16.57100245 | L18: 6400.772015 | M18: 1904.626202 | O18: 250 | P18: -1.006938759e-05 | Q18: 0 | R18: -0.00223280703 | S18: 0.00115687418 | T18: 6678.134726 | U18: 16.57100199 | V18: 6400.77202 | W18: 1904.626201 | Y18: 250 | Z18: -1.472785573e-06 | AA18: -7.660886614e-13 | AB18: -2.165781776e-05 | AC18: -9.643421998e-11 | AD18: 4.301307854e-06 | AE18: -4.617273319e-07 | AF18: 4.828274541e-06 | AG18: -1.144566113e-06
A19: 位置表示スケール | B19: sf | C19: =1/1000 -> 0.001 | E19: 275 | F19: -8.51903457e-06 | G19: 8.402187388e-13 | H19: -0.002425109582 | I19: 0.001156874297 | J19: 6678.134664 | K19: 18.2281028 | L19: 6343.01746 | M19: 2088.926061 | O19: 275 | P19: -1.029827022e-05 | Q19: 0 | R19: -0.002463003945 | S19: 0.00115687418 | T19: 6678.134669 | U19: 18.22810219 | V19: 6343.017466 | W19: 2088.92606 | Y19: 275 | Z19: -1.779235647e-06 | AA19: -8.402187388e-13 | AB19: -3.789436306e-05 | AC19: -1.165144624e-10 | AD19: 5.252789379e-06 | AE19: -6.140193918e-07 | AF19: 5.868377229e-06 | AG19: -1.02654576e-06
E20: 300 | F20: -8.434341685e-06 | G20: 9.136460516e-13 | H20: -0.002637041557 | I20: 0.001156874319 | J20: 6678.1346 | K20: 19.88520318 | L20: 6279.957501 | M20: 2271.478708 | O20: 300 | P20: -1.054813209e-05 | Q20: 0 | R20: -0.002695128962 | S20: 0.00115687418 | T20: 6678.134607 | U20: 19.88520238 | V20: 6279.957508 | W20: 2271.478707 | Y20: 300 | Z20: -2.113790405e-06 | AA20: -9.136460516e-13 | AB20: -5.808740502e-05 | AC20: -1.384393006e-10 | AD20: 6.30318209e-06 | AE20: -7.963974724e-07 | AF20: 6.997903256e-06 | AG20: -8.157862794e-07
A21: 慣性座標系で解く | E21: 325 | F21: -8.342594196e-06 | G21: 9.863091845e-13 | H21: -0.002846767874 | I21: 0.001156874342 | J21: 6678.134532 | K21: 21.5423036 | L21: 6211.644884 | M21: 2452.131453 | O21: 325 | P21: -1.081874884e-05 | Q21: 0 | R21: -0.002929335719 | S21: 0.00115687418 | T21: 6678.134539 | U21: 21.54230258 | V21: 6211.644892 | W21: 2452.131453 | Y21: 325 | Z21: -2.476154642e-06 | AA21: -9.863091845e-13 | AB21: -8.256784451e-05 | AC21: -1.621903965e-10 | AD21: 7.45543548e-06 | AE21: -1.011490809e-06 | AF21: 8.209719454e-06 | AG21: -4.92408617e-07
A22: mR''⇡＝F⇡ ：並進運動方程式 | E22: 350 | F22: -8.243868841e-06 | G22: 1.058147362e-12 | H22: -0.003054113114 | I22: 0.001156874368 | J22: 6678.134458 | K22: 23.19940404 | L22: 6138.136744 | M22: 2630.733196 | O22: 350 | P22: -1.110987428e-05 | Q22: 0 | R22: -0.00316577219 | S22: 0.00115687418 | T22: 6678.134467 | U22: 23.19940278 | V22: 6138.136754 | W22: 2630.733196 | Y22: 350 | Z22: -2.866005442e-06 | AA22: -1.058147362e-12 | AB22: -0.0001116590755 | AC22: -1.877478847e-10 | AD22: 8.713528587e-06 | AE22: -1.261901282e-06 | AF22: 9.494605365e-06 | AG22: -3.385275704e-08
A23: Iφ''⇡＝R⇡✕F⇡ ：回転運動方程式 | E23: 375 | F23: -8.138248183e-06 | G23: 1.129100497e-12 | H23: -0.003258903851 | I23: 0.001156874395 | J23: 6678.134379 | K23: 24.85650453 | L23: 6059.494567 | M23: 2807.13455 | O23: 375 | P23: -1.142123989e-05 | Q23: 0 | R23: -0.003404580198 | S23: 0.00115687418 | T23: 6678.134389 | U23: 24.85650298 | V23: 6059.494578 | W23: 2807.134551 | Y23: 375 | Z23: -3.28299171e-06 | AA23: -1.129100497e-12 | AB23: -0.0001456763471 | AC23: -2.150903889e-10 | AD23: 1.008264007e-05 | AE23: -1.55020123e-06 | AF23: 1.084091309e-05 | AG23: 5.852189133e-07
A24: I＝mr^2 ：慣性モーメント | E24: 400 | F24: -8.025820574e-06 | G24: 1.199109244e-12 | H24: -0.003460968795 | I24: 0.001156874424 | J24: 6678.134295 | K24: 26.51360506 | L24: 5975.784128 | M24: 2981.18797 | O24: 400 | P24: -1.175255417e-05 | Q24: 0 | R24: -0.003645894917 | S24: 0.00115687418 | T24: 6678.134307 | U24: 26.51360318 | V24: 5975.784141 | W24: 2981.187972 | Y24: 400 | Z24: -3.726733596e-06 | AA24: -1.199109244e-12 | AB24: -0.0001849261221 | AC24: -2.441950392e-10 | AD24: 1.15693656e-05 | AE24: -1.878931283e-06 | AF24: 1.223421532e-05 | AG24: 1.392992544e-06
A25: Fr=1：F＝－mrφ'^2er ：向心力 | E25: 425 | F25: -7.906680046e-06 | G25: 1.268115047e-12 | H25: -0.003660138935 | I25: 0.001156874455 | J25: 6678.134206 | K25: 28.17070563 | L25: 5887.075446 | M25: 3152.747876 | O25: 425 | P25: -1.210350197e-05 | Q25: 0 | R25: -0.00388984437 | S25: 0.00115687418 | T25: 6678.134219 | U25: 28.17070338 | V25: 5887.075459 | W25: 3152.747879 | Y25: 425 | Z25: -4.196821923e-06 | AA25: -1.268115047e-12 | AB25: -0.0002297054345 | AC25: -2.750374926e-10 | AD25: 1.318193063e-05 | AE25: -2.250598289e-06 | AF25: 1.365692697e-05 | AG25: 2.420546025e-06
A26: Fr=2：F＝－GMm/r^2 ：重力 | E26: 450 | F26: -7.780926253e-06 | G26: 1.336060189e-12 | H26: -0.003856247683 | I26: 0.001156874488 | J26: 6678.134112 | K26: 29.82780624 | L26: 5793.442716 | M26: 3321.670772 | O26: 450 | P26: -1.247374384e-05 | Q26: 0 | R26: -0.004136548921 | S26: 0.00115687418 | T26: 6678.134127 | U26: 29.82780358 | V26: 5793.442731 | W26: 3321.670776 | Y26: 450 | Z26: -4.692817589e-06 | AA26: -1.336060189e-12 | AB26: -0.000280301238 | AC26: -3.075919519e-10 | AD26: 1.493042419e-05 | AE26: -2.667673147e-06 | AF26: 1.508792957e-05 | AG26: 3.701863079e-06
A27: Ft=0 | B27: 接線方向の力 | E27: 475 | F27: -7.648664367e-06 | G27: 1.40288784e-12 | H27: -0.00404913101 | I27: 0.001156874522 | J27: 6678.134013 | K27: 31.48490691 | L27: 5694.964255 | M27: 3487.815367 | O27: 475 | P27: -1.286291527e-05 | Q27: 0 | R27: -0.004386120768 | S27: 0.00115687418 | T27: 6678.13403 | U27: 31.48490378 | V27: 5694.964272 | W27: 3487.815372 | Y27: 475 | Z27: -5.214250901e-06 | AA27: -1.40288784e-12 | AB27: -0.0003369897579 | AC27: -3.418311888e-10 | AD27: 1.682704351e-05 | AE27: -3.132588802e-06 | AF27: 1.650216291e-05 | AG27: 5.273812803e-06
A28: 時間間隔 | B28: Δt | C28: 25 | D28: [s] | E28: 500 | F28: -7.510005011e-06 | G28: 1.468542105e-12 | H28: -0.004238627585 | I28: 0.001156874558 | J28: 6678.13391 | K28: 33.14200762 | L28: 5591.722432 | M28: 3651.042696 | O28: 500 | P28: -1.327062589e-05 | Q28: 0 | R28: -0.004638663418 | S28: 0.00115687418 | T28: 6678.133929 | U28: 33.14200397 | V28: 5591.72245 | W28: 3651.042703 | Y28: 500 | Z28: -5.760620882e-06 | AA28: -1.468542105e-12 | AB28: -0.0004000358327 | AC28: -3.777265651e-10 | AD28: 1.888635143e-05 | AE28: -3.647738168e-06 | AF28: 1.787023757e-05 | AG28: 7.176105555e-06
A29: 終了時間 | B29: TL | C29: 5000 | D29: [s] | E29: 525 | F29: -7.36506416e-06 | G29: 1.532968068e-12 | H29: -0.004424578911 | I29: 0.001156874595 | J29: 6678.133801 | K29: 34.79910839 | L29: 5483.803599 | M29: 3811.216231 | O29: 525 | P29: -1.369645872e-05 | Q29: 0 | R29: -0.004894271169 | S29: 0.00115687418 | T29: 6678.133823 | U29: 34.79910417 | V29: 5483.803618 | W29: 3811.216241 | Y29: 525 | Z29: -6.331394559e-06 | AA29: -1.532968068e-12 | AB29: -0.0004696922582 | AC29: -4.152480577e-10 | AD29: 2.112555103e-05 | AE29: -4.215472153e-06 | AF29: 1.915801477e-05 | AG29: 9.451207006e-06
A30: 出力間隔 | B30: Δtp | C30: 2 | D30: [s] | E30: 550 | F30: -7.213963057e-06 | G30: 1.596111845e-12 | H30: -0.004606829454 | I30: 0.001156874635 | J30: 6678.133689 | K30: 36.45620921 | L30: 5371.298021 | M30: 3968.202002 | O30: 550 | P30: -1.413996922e-05 | Q30: 0 | R30: -0.005153028579 | S30: 0.00115687418 | T30: 6678.133712 | U30: 36.45620437 | V30: 5371.298041 | W30: 3968.202015 | Y30: 550 | Z30: -6.926006165e-06 | AA30: -1.596111845e-12 | AB30: -0.0005461991251 | AC30: -4.54364283e-10 | AD30: 2.356477762e-05 | AE30: -4.838097702e-06 | AF30: 2.032620887e-05 | AG30: 1.214423082e-05
A31: 外力(向心力) | B31: Fr | C31: 2 | E31: 575 | F31: -7.056828073e-06 | G31: 1.65792062e-12 | H31: -0.004785226778 | I31: 0.001156874675 | J31: 6678.133571 | K31: 38.11331009 | L31: 5254.2998 | M31: 4121.868703 | O31: 575 | P31: -1.460068449e-05 | Q31: 0 | R31: -0.005415009926 | S31: 0.00115687418 | T31: 6678.133597 | U31: 38.11330457 | V31: 5254.299821 | W31: 4121.868718 | Y31: 575 | Z31: -7.54385642e-06 | AA31: -1.65792062e-12 | AB31: -0.0006297831487 | AC31: -4.950425241e-10 | AD31: 2.622737884e-05 | AE31: -5.517875799e-06 | AF31: 2.132996815e-05 | AG31: 1.530279224e-05
A32: 外力(接線方向の力) | B32: Ft | C32: 0 | E32: 600 | F32: -6.893790638e-06 | G32: 1.718342695e-12 | H32: -0.004959621667 | I32: 0.001156874717 | J32: 6678.133449 | K32: 39.77041103 | L32: 5132.906795 | M32: 4272.087804 | O32: 600 | P32: -1.507810228e-05 | Q32: 0 | R32: -0.005680278666 | S32: 0.00115687418 | T32: 6678.133478 | U32: 39.77040477 | V32: 5132.906817 | W32: 4272.087823 | Y32: 600 | Z32: -8.184311641e-06 | AA32: -1.718342695e-12 | AB32: -0.0007206569992 | AC32: -5.372487574e-10 | AD32: 2.914024844e-05 | AE32: -6.257019677e-06 | AF32: 2.211846913e-05 | AG32: 1.897683251e-05
A33: 質量 | B33: m | C33: 1 | D33: [kg] | E33: 625 | F33: -6.724987111e-06 | G33: 1.777327533e-12 | H33: -0.005129868255 | I33: 0.001156874761 | J33: 6678.133323 | K33: 41.42751203 | L33: 5007.22054 | M33: 4418.733659 | O33: 625 | P33: -1.557169003e-05 | Q33: 0 | R33: -0.005948886885 | S33: 0.00115687418 | T33: 6678.133356 | U33: 41.42750497 | V33: 5007.220563 | W33: 4418.733682 | Y33: 625 | Z33: -8.846702918e-06 | AA33: -1.777327533e-12 | AB33: -0.0008190186299 | AC33: -5.80947681e-10 | AD33: 3.233413008e-05 | AE33: -7.057692869e-06 | AF33: 2.263451188e-05 | AG33: 2.321841203e-05
A34: 初期速度 | B34: x'0 | C34: =-SQRT(398600500000000/C41)*SIN(C39) -> 0 | D34: [m/s] | E34: 650 | F34: -6.550558685e-06 | G34: 1.834825798e-12 | H34: -0.005295824145 | I34: 0.001156874806 | J34: 6678.133193 | K34: 43.08461309 | L34: 4877.346162 | M34: 4561.68361 | O34: 650 | P34: -1.60808839e-05 | Q34: 0 | R34: -0.006220874743 | S34: 0.00115687418 | T34: 6678.133229 | U34: 43.08460517 | V34: 4877.346185 | W34: 4561.683638 | Y34: 650 | Z34: -9.530325212e-06 | AA34: -1.834825798e-12 | AB34: -0.000925050598 | AC34: -6.261027452e-10 | AD34: 3.584396291e-05 | AE34: -7.922007484e-06 | AF34: 2.281412344e-05 | AG34: 2.808147656e-05
A35: 初期速度 | B35: y'0 | C35: =SQRT(398600500000000/C41)*COS(C39) -> 7725.761953 | D35: [m/s] | E35: 675 | F35: -6.370651249e-06 | G35: 1.890789397e-12 | H35: -0.005457350528 | I35: 0.001156874853 | J35: 6678.133058 | K35: 44.74171422 | L35: 4743.392289 | M35: 4700.818092 | O35: 675 | P35: -1.660508768e-05 | Q35: 0 | R35: -0.006496269907 | S35: 0.00115687418 | T35: 6678.133098 | U35: 44.74170537 | V35: 4743.392312 | W35: 4700.818126 | Y35: 675 | Z35: -1.023443643e-05 | AA35: -1.890789397e-12 | AB35: -0.001038919379 | AC35: -6.726761815e-10 | AD35: 3.970922626e-05 | AE35: -8.852022383e-06 | AF35: 2.258617496e-05 | AG35: 3.362158168e-05
A36: 初期角速度 | B36: φ'0 | C36: =SQRT(398600500000000/C41)/C41 -> 0.00115687418 | D36: [rad/s] | E36: 700 | F36: -6.185415287e-06 | G36: 1.945171521e-12 | H36: -0.0056143123 | I36: 0.001156874901 | J36: 6678.13292 | K36: 46.39881541 | L36: 4605.470963 | M36: 4836.020731 | O36: 700 | P36: -1.714367181e-05 | Q36: 0 | R36: -0.006775086981 | S36: 0.00115687418 | T36: 6678.132964 | U36: 46.39880556 | V36: 4605.470985 | W36: 4836.020771 | Y36: 700 | Z36: -1.095825652e-05 | AA36: -1.945171521e-12 | AB36: -0.001160774681 | AC36: -7.206290354e-10 | AD36: 4.397429257e-05 | AE36: -9.849741474e-06 | AF36: 2.187199698e-05 | AG36: 3.989560901e-05
A37: 初期位置 | B37: x0 | C37: =C41*COS(C39) -> 6678135 | D37: [m] | E37: 725 | F37: -5.995005726e-06 | G37: 1.997926684e-12 | H37: -0.005766578176 | I37: 0.00115687495 | J37: 6678.132778 | K37: 48.05591668 | L37: 4463.697542 | M37: 4967.17844 | O37: 725 | P37: -1.769597215e-05 | Q37: 0 | R37: -0.007057326928 | S37: 0.00115687418 | T37: 6678.132826 | U37: 48.05590576 | V37: 4463.697563 | W37: 4967.178487 | Y37: 725 | Z37: -1.170096642e-05 | AA37: -1.997926684e-12 | AB37: -0.001290748753 | AC37: -7.699211986e-10 | AD37: 4.868880296e-05 | AE37: -1.091711202e-05 | AF37: 2.058502378e-05 | AG37: 4.696142969e-05
A38: 初期位置 | B38: y0 | C38: =C41*SIN(C39) -> 0 | D38: [m] | E38: 750 | F38: -5.799581824e-06 | G38: 2.049010761e-12 | H38: -0.005914020797 | I38: 0.001156875001 | J38: 6678.132632 | K38: 49.71301802 | L38: 4318.190609 | M38: 5094.181516 | O38: 750 | P38: -1.826128896e-05 | Q38: 0 | R38: -0.007342976487 | S38: 0.00115687418 | T38: 6678.132686 | U38: 49.71300596 | V38: 4318.190627 | W38: 5094.18157 | Y38: 750 | Z38: -1.246170714e-05 | AA38: -2.049010761e-12 | AB38: -0.001428955689 | AC38: -8.205114431e-10 | AD38: 5.390803926e-05 | AE38: -1.205602305e-05 | AF38: 1.863044054e-05 | AG38: 5.487756061e-05
A39: 初期角度 | B39: φ0 | C39: 0 | D39: [rad] | E39: 775 | F39: -5.599307036e-06 | G39: 2.098381024e-12 | H39: -0.00605651684 | I39: 0.001156875052 | J39: 6678.132482 | K39: 51.37011943 | L39: 4169.071867 | M39: 5216.923731 | O39: 775 | P39: -1.883888573e-05 | Q39: 0 | R39: -0.007632007577 | S39: 0.00115687418 | T39: 6678.132542 | U39: 51.37010616 | V39: 4169.071883 | W39: 5216.923795 | Y39: 775 | Z39: -1.32395787e-05 | AA39: -2.098381024e-12 | AB39: -0.001575490737 | AC39: -8.723574539e-10 | AD39: 5.969330596e-05 | AE39: -1.326830378e-05 | AF39: 1.590485135e-05 | AG39: =W39-M39 -> 6.370278606e-05
A40: 位置表示スケール | B40: sf | C40: =1/1000 -> 0.001 | E40: 800 | F40: -5.394348875e-06 | G40: 2.145996178e-12 | H40: -0.006193947118 | I40: 0.001156875106 | J40: 6678.132329 | K40: 53.02722092 | L40: 4016.466042 | M40: 5335.302422 | O40: 800 | P40: -1.942798792e-05 | Q40: 0 | R40: -0.007924376699 | S40: 0.00115687418 | T40: 6678.132395 | U40: 53.02720636 | V40: 4016.466055 | W40: 5335.302496 | Y40: 800 | Z40: =P40-F40 -> -1.403363905e-05 | AA40: -2.145996178e-12 | AB40: -0.00173042958 | AC40: -9.25415867e-10 | AD40: 6.611235131e-05 | AE40: -1.4555722e-05 | AF40: 1.229598138e-05 | AG40: 7.349576663e-05
A41: 初期位置 | B41: r0 | C41: =6378135+300000 -> 6678135 | D41: [m] | E41: 825 | F41: -5.184878765e-06 | G41: 2.191816397e-12 | H41: -0.006326196682 | I41: 0.00115687516 | J41: 6678.132172 | K41: 54.68432248 | L41: 3860.500776 | M41: 5449.218574 | O41: 825 | P41: -2.002778182e-05 | Q41: 0 | R41: -0.008220024329 | S41: 0.00115687418 | T41: 6678.132246 | U41: 54.68430656 | V41: 3860.500784 | W41: 5449.218659 | Y41: 825 | Z41: -1.484290305e-05 | AA41: -2.191816397e-12 | AB41: -0.001893827647 | AC41: -9.796423039e-10 | AD41: 7.323974842e-05 | AE41: -1.591998269e-05 | AF41: 7.68236896e-06 | AG41: 8.43146081e-05
E42: 850 | F42: -4.971071913e-06 | G42: 2.235803355e-12 | H42: -0.006453154914 | I42: 0.001156875215 | J42: 6678.132013 | K42: 56.34142412 | L42: 3701.30652 | M42: 5558.576906 | O42: 850 | P42: -2.063741328e-05 | Q42: 0 | R42: -0.008518874308 | S42: 0.00115687418 | T42: 6678.132094 | U42: 56.34140676 | V42: 3701.306522 | W42: 5558.577002 | Y42: 850 | Z42: -1.566634137e-05 | AA42: -2.235803355e-12 | AB42: -0.002065719394 | AC42: -1.034991409e-09 | AD42: 8.115731998e-05 | AE42: -1.736272655e-05 | AF42: 1.933104159e-06 | AG42: 9.62164313e-05
E43: 875 | F43: -4.753107143e-06 | G43: 2.277920261e-12 | H43: -0.006574715625 | I43: 0.001156875272 | J43: 6678.13185 | K43: 57.99852584 | L43: 3539.016428 | M43: 5663.285948 | O43: 875 | P43: -2.125598648e-05 | Q43: 0 | R43: -0.008820833215 | S43: 0.00115687418 | T43: 6678.13194 | U43: 57.99850696 | V43: 3539.016423 | W43: 5663.286057 | Y43: 875 | Z43: -1.650287934e-05 | AA43: -2.277920261e-12 | AB43: -0.00224611759 | AC43: -1.091416887e-09 | AD43: 8.995456392e-05 | AE43: -1.888552864e-05 | AF43: -5.092417268e-06 | AG43: 0.0001092569146
E44: 900 | F44: -4.531166765e-06 | G44: 2.318131888e-12 | H44: -0.006690777139 | I44: 0.001156875329 | J44: 6678.131684 | K44: 59.65562764 | L44: 3373.76624 | M44: 5763.258119 | O44: 900 | P44: -2.188256261e-05 | Q44: 0 | R44: -0.009125789743 | S44: 0.00115687418 | T44: 6678.131784 | U44: 59.65560715 | V44: 3373.766227 | W44: 5763.258242 | Y44: 900 | Z44: -1.735139584e-05 | AA44: -2.318131888e-12 | AB44: -0.002435012604 | AC44: -1.148871543e-09 | AD44: 9.972908356e-05 | AE44: -2.048989705e-05 | AF44: -1.354471669e-05 | AG44: 0.0001234898164
E45: 925 | F45: -4.305436417e-06 | G45: 2.3564046e-12 | H45: -0.006801242378 | I45: 0.001156875387 | J45: 6678.131515 | K45: 61.31272953 | L45: 3205.694176 | M45: 5858.4098 | O45: 925 | P45: -2.251615859e-05 | Q45: 0 | R45: -0.009433614065 | S45: 0.00115687418 | T45: 6678.131626 | U45: 61.31270735 | V45: 3205.694152 | W45: 5858.409939 | Y45: 925 | Z45: -1.821072217e-05 | AA45: -2.3564046e-12 | AB45: -0.002632371686 | AC45: -1.207307322e-09 | AD45: 0.0001105870197 | AE45: -2.217727165e-05 | AF45: -2.358442771e-05 | AG45: 0.0001389664967
E46: 950 | F46: -4.076104898e-06 | G46: 2.392706386e-12 | H46: -0.006906018948 | I46: 0.001156875447 | J46: 6678.131344 | K46: 62.9698315 | L46: 3034.940813 | M46: 5948.661405 | O46: 950 | P46: -2.315574578e-05 | Q46: 0 | R46: -0.009744157194 | S46: 0.00115687418 | T46: 6678.131467 | U46: 62.96980755 | V46: 3034.940777 | W46: 5948.661561 | Y46: 950 | Z46: -1.907964088e-05 | AA46: -2.392706386e-12 | AB46: -0.002838138246 | AC46: -1.266675348e-09 | AD46: 0.0001226434988 | AE46: -2.39490229e-05 | AF46: -3.53824712e-05 | AG46: 0.0001557354199
E47: 975 | F47: -3.843364018e-06 | G47: 2.427006881e-12 | H47: -0.00700501921 | I47: 0.001156875507 | J47: 6678.13117 | K47: 64.62693356 | L47: 2861.648972 | M47: 6033.937445 | O47: 975 | P47: -2.38002486e-05 | Q47: 0 | R47: -0.01005725034 | S47: 0.00115687418 | T47: 6678.131306 | U47: 64.62690775 | V47: 2861.648923 | W47: 6033.937619 | Y47: 975 | Z47: -1.995688458e-05 | AA47: -2.427006881e-12 | AB47: -0.00305223113 | AC47: -1.326925963e-09 | AD47: 0.0001360230781 | AE47: -2.580645067e-05 | AF47: -4.91202054e-05 | AG47: 0.0001738416477
E48: 1000 | F48: -3.607408451e-06 | G48: 2.459277395e-12 | H48: -0.007098160358 | I48: 0.001156875568 | J48: 6678.130994 | K48: 66.2840357 | L48: 2685.963597 | M48: 6114.166593 | O48: 1000 | P48: -2.444854324e-05 | Q48: 0 | R48: -0.01037270425 | S48: 0.00115687418 | T48: 6678.131145 | U48: 66.28400795 | V48: 2685.963532 | W48: 6114.166786 | Y48: 1000 | Z48: -2.084113479e-05 | AA48: -2.459277395e-12 | AB48: -0.00327454389 | AC48: -1.388008774e-09 | AD48: 0.000150860209 | AE48: -2.775078315e-05 | AF48: -6.498953962e-05 | AG48: 0.0001933263402
E49: 1025 | F49: -3.368435542e-06 | G49: 2.489490936e-12 | H49: -0.007185364486 | I49: 0.00115687563 | J49: 6678.130815 | K49: 67.94113793 | L49: 2508.031635 | M49: 6189.281744 | O49: 1025 | P49: -2.509945628e-05 | Q49: 0 | R49: -0.01069030856 | S49: 0.00115687418 | T49: 6678.130983 | U49: 67.94110815 | V49: 2508.031552 | W49: 6189.281958 | Y49: 1025 | Z49: -2.173102073e-05 | AA49: -2.489490936e-12 | AB49: -0.003504944071 | AC49: -1.44987269e-09 | AD49: 0.0001672996777 | AE49: -2.978317588e-05 | AF49: -8.319303379e-05 | AG49: 0.0002142262256
E50: 1050 | F50: -3.126645182e-06 | G50: 2.517622232e-12 | H50: -0.007266558655 | I50: 0.001156875693 | J50: 6678.130635 | K50: 69.59824025 | L50: 2328.001911 | M50: 6259.220069 | O50: 1050 | P50: -2.575176331e-05 | Q50: 0 | R50: -0.01100983112 | S50: 0.00115687418 | T50: 6678.13082 | U50: 69.59820835 | V50: 2328.001807 | W50: 6259.220306 | Y50: 1050 | Z50: -2.262511813e-05 | AA50: -2.517622232e-12 | AB50: -0.003743272467 | AC50: -1.512465967e-09 | AD50: 0.0001854970888 | AE50: -3.19047107e-05 | AF50: -0.000103943968 | AG50: 0.0002365731052
E51: 1075 | F51: -2.882239597e-06 | G51: 2.543647752e-12 | H51: -0.00734167495 | I51: 0.001156875756 | J51: 6678.130452 | K51: 71.25534266 | L51: 2146.025004 | M51: 6323.923072 | O51: 1075 | P51: -2.640418763e-05 | Q51: 0 | R51: -0.01133101736 | S51: 0.00115687418 | T51: 6678.130658 | U51: 71.25530855 | V51: 2146.024876 | W51: 6323.923332 | Y51: 1075 | Z51: -2.352194803e-05 | AA51: -2.543647752e-12 | AB51: -0.003989342406 | AC51: -1.575736252e-09 | AD51: 0.0002056193161 | AE51: -3.411639496e-05 | AF51: -0.0001274663887 | AG51: 0.0002603933308
E52: 1100 | F52: -2.63542322e-06 | G52: 2.567545729e-12 | H52: -0.007410650543 | I52: 0.00115687582 | J52: 6678.130268 | K52: 72.91244516 | L52: 1962.253123 | M52: 6383.336631 | O52: 1100 | P52: -2.70553988e-05 | Q52: 0 | R52: -0.01165358956 | S52: 0.00115687418 | T52: 6678.130495 | U52: 72.91240874 | V52: 1962.252969 | W52: 6383.336917 | Y52: 1100 | Z52: -2.441997558e-05 | AA52: -2.567545729e-12 | AB52: -0.004242939016 | AC52: -1.639630625e-09 | AD52: 0.0002278449729 | AE52: -3.641916052e-05 | AF52: -0.0001539951331 | AG52: 0.0002857072941
E53: 1125 | F53: -2.386402494e-06 | G53: 2.589296171e-12 | H53: -0.00747342774 | I53: 0.001156875884 | J53: 6678.130082 | K53: 74.56954776 | L53: 1776.839979 | M53: 6437.411054 | O53: 1125 | P53: -2.770401131e-05 | Q53: 0 | R53: -0.01197724624 | S53: 0.00115687418 | T53: 6678.130334 | U53: 74.56950894 | V53: 1776.839795 | W53: 6437.411366 | Y53: 1125 | Z53: -2.531760882e-05 | AA53: -2.589296171e-12 | AB53: -0.004503818502 | AC53: -1.704095642e-09 | AD53: 0.0002523648873 | AE53: -3.881386316e-05 | AF53: -0.000183775828 | AG53: 0.0003125289295
E54: 1150 | F54: -2.135385693e-06 | G54: 2.608880886e-12 | H54: -0.007529954032 | I54: 0.001156875949 | J54: 6678.129894 | K54: 76.22665044 | L54: 1589.940654 | M54: 6486.101109 | O54: 1150 | P54: -2.834858325e-05 | Q54: 0 | R54: -0.01230166145 | S54: 0.00115687418 | T54: 6678.130173 | U54: 76.22660914 | V54: 1589.940437 | W54: 6486.10145 | Y54: 1150 | Z54: -2.621319756e-05 | AA54: -2.608880886e-12 | AB54: -0.004771707416 | AC54: -1.769077384e-09 | AD54: 0.0002793825533 | AE54: -4.130128167e-05 | AF54: -0.0002170648688 | AG54: 0.0003408652128
E55: 1175 | F55: -1.88258278e-06 | G55: 2.626283493e-12 | H55: -0.007580182139 | I55: 0.001156876015 | J55: 6678.129705 | K55: 77.88375322 | L55: 1401.711473 | M55: 6529.366072 | O55: 1175 | P55: -2.898761489e-05 | Q55: 0 | R55: -0.01262648408 | S55: 0.00115687418 | T55: 6678.130014 | U55: 77.88370934 | V55: 1401.711219 | W55: 6529.366443 | Y55: 1175 | Z55: -2.710503211e-05 | AA55: -2.626283493e-12 | AB55: -0.005046301941 | AC55: -1.834521501e-09 | AD55: 0.0003091146255 | AE55: -4.388211734e-05 | AF55: -0.0002541293809 | AG55: 0.0003707156793
E56: 1200 | F56: -1.628205195e-06 | G56: 2.641489434e-12 | H56: -0.007624070048 | I56: 0.001156876081 | J56: 6678.129515 | K56: 79.5408561 | L56: 1212.309876 | M56: 6567.169754 | O56: 1200 | P56: -2.961954732e-05 | Q56: 0 | R56: -0.01295133721 | S56: 0.00115687418 | T56: 6678.129857 | U56: 79.54080954 | V56: 1212.309581 | W56: 6567.170157 | Y56: 1200 | Z56: -2.799134213e-05 | AA56: -2.641489434e-12 | AB56: -0.005327267164 | AC56: -1.900373252e-09 | AD56: 0.0003417913704 | AE56: -4.655699331e-05 | AF56: -0.0002952471609 | AG56: 0.0004020719543
E57: 1225 | F57: -1.372465706e-06 | G57: 2.654485989e-12 | H57: -0.007661581049 | I57: 0.001156876147 | J57: 6678.129324 | K57: 81.19795906 | L57: 1021.89428 | M57: 6599.480536 | O57: 1225 | P57: -3.024276119e-05 | Q57: 0 | R57: -0.01327581741 | S57: 0.00115687418 | T57: 6678.129702 | U57: 81.19790974 | V57: 1021.89394 | W57: 6599.480971 | Y57: 1225 | Z57: -2.887029549e-05 | AA57: -2.654485989e-12 | AB57: -0.005614236361 | AC57: -1.96657756e-09 | AD57: 0.000377657132 | AE57: -4.932645405e-05 | AF57: -0.0003407066051 | AG57: 0.0004349172823
E58: 1250 | F58: -1.115578223e-06 | G58: 2.665262288e-12 | H58: -0.007692683766 | I58: 0.001156876213 | J58: 6678.129132 | K58: 82.85506213 | L58: 830.6239538 | M58: 6626.271391 | O58: 1250 | P58: -3.085557531e-05 | Q58: 0 | R58: -0.01359949405 | S58: 0.00115687418 | T58: 6678.129549 | U58: 82.85500994 | V58: 830.623563 | W58: 6626.27186 | Y58: 1250 | Z58: -2.973999708e-05 | AA58: -2.665262288e-12 | AB58: -0.005906810287 | AC58: -2.033079048e-09 | AD58: 0.0004169708054 | AE58: -5.219096492e-05 | AF58: -0.0003908066217 | AG58: 0.0004692260927
E59: 1275 | F59: -8.577576041e-07 | G59: 2.673809316e-12 | H59: -0.007717352183 | I59: 0.00115687628 | J59: 6678.128939 | K59: 84.51216529 | L59: 638.658878 | M59: 6647.519911 | O59: 1275 | P59: -3.145624534e-05 | Q59: 0 | R59: -0.01392190865 | S59: 0.00115687418 | T59: 6678.129399 | U59: 84.51211014 | V59: 638.6584321 | W59: 6647.520416 | Y59: 1275 | Z59: -3.059848774e-05 | AA59: -2.673809316e-12 | AB59: -0.006204556467 | AC59: -2.099822095e-09 | AD59: 0.0004600062866 | AE59: -5.515091182e-05 | AF59: -0.0004458565329 | AG59: 0.0005049635656
E60: 1300 | F60: -5.992194951e-07 | G60: 2.680119923e-12 | H60: -0.007735565667 | I60: 0.001156876347 | J60: 6678.128746 | K60: 86.16926854 | L60: 446.1596161 | M60: 6663.208322 | O60: 1300 | P60: -3.204296258e-05 | Q60: 0 | R60: -0.01424257416 | S60: 0.00115687418 | T60: 6678.129253 | U60: 86.16921033 | V60: 446.1591099 | W60: 6663.208864 | Y60: 1300 | Z60: -3.144374309e-05 | AA60: -2.680119923e-12 | AB60: -0.006507008493 | AC60: -2.166750876e-09 | AD60: 0.0005070529323 | AE60: -5.820660078e-05 | AF60: -0.0005061759699 | AG60: 0.0005420852158
E61: 1325 | F61: -3.401801384e-07 | G61: 2.684188829e-12 | H61: -0.007747308981 | I61: 0.001156876414 | J61: 6678.128553 | K61: 87.82637189 | L61: 253.287178 | M61: 6673.323503 | O61: 1325 | P61: -3.261385263e-05 | Q61: 0 | R61: -0.01456097431 | S61: 0.00115687418 | T61: 6678.129111 | U61: 87.82631053 | V61: 253.2866059 | W61: 6673.324083 | Y61: 1325 | Z61: -3.227367249e-05 | AA61: -2.684188829e-12 | AB61: -0.006813665334 | AC61: -2.233809409e-09 | AD61: 0.0005584160044 | AE61: -6.135825778e-05 | AF61: -0.0005720947644 | AG61: 0.0005805365117
E62: 1350 | F62: -8.085620495e-08 | G62: 2.686012632e-12 | H62: -0.007752572302 | I62: 0.001156876481 | J62: 6678.128359 | K62: 89.48347534 | L62: 60.2028858 | M62: 6677.856991 | O62: 1350 | P62: -3.316697417e-05 | Q62: 0 | R62: -0.01487656295 | S62: 0.00115687418 | T62: 6678.128973 | U62: 89.48341073 | V62: 60.20224185 | W62: 6677.857611 | Y62: 1350 | Z62: -3.308611797e-05 | AA62: -2.686012632e-12 | AB62: -0.007123990647 | AC62: -2.300941607e-09 | AD62: 0.0006144171175 | AE62: -6.460602853e-05 | AF62: -0.0006439528363 | AG62: 0.0006202524919
E63: 1375 | F63: 1.78535406e-07 | G63: 2.685589803e-12 | H63: -0.007751351227 | I63: 0.001156876548 | J63: 6678.128165 | K63: 91.14057888 | L63: -132.9317612 | M63: 6676.804995 | O63: 1375 | P63: -3.370031781e-05 | Q63: 0 | R63: -0.01518876333 | S63: 0.00115687418 | T63: 6678.12884 | U63: 91.14051093 | V63: -132.9324833 | W63: 6676.805656 | Y63: 1375 | Z63: -3.387885322e-05 | AA63: -2.685589803e-12 | AB63: -0.007437412104 | AC63: -2.368091318e-09 | AD63: 0.0006753946673 | AE63: -6.79499783e-05 | AF63: -0.000722100078 | AG63: 0.0006611574081
E64: 1400 | F64: 4.37777722e-07 | G64: 2.682920696e-12 | H64: -0.007743646776 | I64: 0.001156876615 | J64: 6678.127971 | K64: 92.79768252 | L64: -325.9552216 | M64: 6670.168393 | O64: 1400 | P64: -3.421180491e-05 | Q64: 0 | R64: -0.0154969675 | S64: 0.00115687418 | T64: 6678.128713 | U64: 92.79761113 | V64: -325.9560285 | W64: 6670.169096 | Y64: 1400 | Z64: -3.464958263e-05 | AA64: -2.682920696e-12 | AB64: -0.007753320722 | AC64: -2.435202377e-09 | AD64: 0.0007417042571 | AE64: -7.139009197e-05 | AF64: -0.000806896247 | AG64: 0.0007031643963
E65: 1425 | F65: 6.966539202e-07 | G65: 2.678007542e-12 | H65: -0.007729465392 | I65: 0.001156876682 | J65: 6678.127778 | K65: 94.45478625 | L65: -518.7060469 | M65: 6657.952738 | O65: 1425 | P65: -3.469928641e-05 | Q65: 0 | R65: -0.0158005356 | S65: 0.00115687418 | T65: 6678.128592 | U65: 94.45471133 | V65: -518.7069456 | W65: 6657.953484 | Y65: 1425 | Z65: -3.539594033e-05 | AA65: -2.678007542e-12 | AB65: -0.008071070212 | AC65: -2.502218651e-09 | AD65: 0.0008137191089 | AE65: -7.492627395e-05 | AF65: -0.000898710865 | AG65: 0.0007461751502
E66: 1450 | F66: 9.549474692e-07 | G66: 2.67085445e-12 | H66: -0.007708818935 | I66: 0.001156876749 | J66: 6678.127585 | K66: 96.11189009 | L66: -711.0230166 | M66: 6640.168244 | O66: 1450 | P66: -3.516054183e-05 | Q66: 0 | R66: -0.01609879527 | S66: 0.00115687418 | T66: 6678.128477 | U66: 96.11181153 | V66: -711.0240145 | W66: 6640.169034 | Y66: 1450 | Z66: -3.61154893e-05 | AA66: -2.67085445e-12 | AB66: -0.008389976335 | AC66: -2.569084086e-09 | AD66: 0.0008918304748 | AE66: -7.855834835e-05 | AF66: -0.0009979231223 | AG66: 0.0007900796236
E67: 1475 | F67: 1.212442329e-06 | G67: 2.661467402e-12 | H67: -0.007681724675 | I67: 0.001156876816 | J67: 6678.127393 | K67: 97.76899401 | L67: -902.7452732 | M67: 6616.829788 | O67: 1475 | P67: -3.559327822e-05 | Q67: 0 | R67: -0.01639104095 | S67: 0.00115687418 | T67: 6678.128369 | U67: 97.76891173 | V67: -902.7463781 | W67: 6616.830623 | Y67: 1475 | Z67: -3.680572055e-05 | AA67: -2.661467402e-12 | AB67: -0.008709316278 | AC67: -2.635742756e-09 | AD67: 0.0009764480192 | AE67: -8.2286059e-05 | AF67: -0.00110492181 | AG67: 0.0008347557532
E68: 1500 | F68: 1.468923119e-06 | G68: 2.649854249e-12 | H68: -0.00764820527 | I68: 0.001156876882 | J68: 6678.127201 | K68: 99.42609803 | L68: -1093.712456 | M68: 6587.956889 | O68: 1500 | P68: -3.599512916e-05 | Q68: 0 | R68: -0.01667653331 | S68: 0.00115687418 | T68: 6678.128269 | U68: 99.42601192 | V68: -1093.713677 | W68: 6587.957769 | Y68: 1500 | Z68: -3.746405228e-05 | AA68: -2.649854249e-12 | AB68: -0.009028328042 | AC68: -2.702138904e-09 | AD68: 0.001068000194 | AE68: -8.610906978e-05 | AF68: -0.001220105247 | AG68: 0.0008800691839
E69: 1525 | F69: 1.724175322e-06 | G69: 2.636024702e-12 | H69: -0.007608288757 | I69: 0.001156876948 | J69: 6678.12701 | K69: 101.0832022 | L69: -1283.764838 | M69: 6553.573697 | O69: 1525 | P69: -3.636365391e-05 | Q69: 0 | R69: -0.0169544986 | S69: 0.00115687418 | T69: 6678.128177 | U69: 101.0831121 | V69: -1283.766182 | W69: 6553.574623 | Y69: 1525 | Z69: -3.808782923e-05 | AA69: -2.636024702e-12 | AB69: -0.009346209842 | AC69: -2.768216997e-09 | AD69: 0.001166934609 | AE69: -9.002696486e-05 | AF69: -0.001343881251 | AG69: 0.0009258730161
E70: 1550 | F70: 1.977985433e-06 | G70: 2.619990328e-12 | H70: -0.007562008522 | I70: 0.001156877014 | J70: 6678.126821 | K70: 102.7403064 | L70: -1472.743453 | M70: 6513.70897 | O70: 1550 | P70: -3.669633652e-05 | Q70: 0 | R70: -0.01722412806 | S70: 0.00115687418 | T70: 6678.128094 | U70: 102.7402123 | V70: -1472.74493 | W70: 6513.709942 | Y70: 1550 | Z70: -3.867432195e-05 | AA70: -2.619990328e-12 | AB70: -0.009662119543 | AC70: -2.833921764e-09 | AD70: 0.00127371836 | AE70: -9.403924903e-05 | AF70: -0.001476667112 | AG70: 0.0009720075686
E71: 1575 | F71: 2.230141161e-06 | G71: 2.601764538e-12 | H71: -0.007509403273 | I71: 0.001156877079 | J71: 6678.126632 | K71: 104.3974107 | L71: -1660.490238 | M71: 6468.396052 | O71: 1575 | P71: -3.699058507e-05 | Q71: 0 | R71: -0.01748457736 | S71: 0.00115687418 | T71: 6678.128021 | U71: 104.3973125 | V71: -1660.491857 | W71: 6468.39707 | Y71: 1575 | Z71: -3.922072623e-05 | AA71: -2.601764538e-12 | AB71: -0.009975174091 | AC71: -2.89919825e-09 | AD71: 0.001388838372 | AE71: -9.814534818e-05 | AF71: -0.001618889609 | AG71: 0.00101830014
E72: 1600 | F72: 2.480431587e-06 | G72: 2.581362576e-12 | H72: -0.007450517009 | I72: 0.001156877144 | J72: 6678.126445 | K72: 106.0545151 | L72: -1846.848156 | M72: 6417.672842 | O72: 1600 | P72: -3.724373101e-05 | Q72: 0 | R72: -0.017734966 | S72: 0.00115687418 | T72: 6678.127958 | U72: 106.0544127 | V72: -1846.849927 | W72: 6417.673906 | Y72: =O72 -> 1600 | Z72: =P72-F72 -> -3.97241626e-05 | AA72: -2.581362576e-12 | AB72: -0.01028444899 | AC72: -2.963991855e-09 | AD72: 0.001512801696 | AE72: -0.0001023446096 | AF72: -0.001770985045 | AG72: 0.001064564781
E73: 1625 | F73: 2.728647377e-06 | G73: 2.558801504e-12 | H73: -0.007385398984 | I73: 0.001156877208 | J73: 6678.12626 | K73: 107.7116196 | L73: -2031.661335 | M73: 6361.581765 | O73: 1625 | P73: -3.745302848e-05 | Q73: 0 | R73: -0.01797437678 | S73: 0.00115687418 | T73: 6678.127906 | U73: 107.7115129 | V73: -2031.663269 | W73: 6361.582876 | Y73: 1625 | Z73: -4.018167585e-05 | AA73: -2.558801504e-12 | AB73: -0.01058897779 | AC73: -3.028248385e-09 | AD73: 0.001646135791 | AE73: -0.0001066363029 | AF73: -0.001933399321 | AG73: 0.001110602079
E74: 1650 | F74: 2.974580916e-06 | G74: 2.534100193e-12 | H74: -0.007314103661 | I74: 0.001156877272 | J74: 6678.126076 | K74: 109.3687241 | L74: -2214.775193 | M74: 6300.169738 | O74: 1650 | P74: -3.761565383e-05 | Q74: 0 | R74: -0.01820185527 | S74: 0.00115687418 | T74: 6678.127865 | U74: 109.3686131 | V74: -2214.777299 | W74: 6300.170894 | Y74: 1650 | Z74: -4.059023475e-05 | AA74: -2.534100193e-12 | AB74: -0.01088775161 | AC74: -3.091914094e-09 | AD74: 0.001789388791 | AE74: -0.0001110196201 | AF74: -0.002106588044 | AG74: 0.001156198925
E75: 1675 | F75: 3.218026485e-06 | G75: 2.507279303e-12 | H75: -0.007236690672 | I75: 0.001156877335 | J75: 6678.125894 | K75: 111.0258288 | L75: -2396.036569 | M75: 6233.488126 | O75: 1675 | P75: -3.772870516e-05 | Q75: 0 | R75: -0.01841640932 | S75: 0.00115687418 | T75: 6678.127837 | U75: 111.0257133 | V75: -2396.03886 | W75: 6233.489327 | Y75: 1675 | Z75: -4.094673165e-05 | AA75: -2.507279303e-12 | AB75: -0.01117971865 | AC75: -3.15493573e-09 | AD75: 0.001943129752 | AE75: -0.0001154936768 | AF75: -0.002291016672 | AG75: 0.001201128296
E76: 1700 | F76: 3.458780479e-06 | G76: 2.478361267e-12 | H76: -0.007153224768 | I76: 0.001156877397 | J76: 6678.125714 | K76: 112.6829336 | L76: -2575.293854 | M76: 6161.592702 | O76: 1700 | P76: -3.778920197e-05 | Q76: 0 | R76: -0.01861700857 | S76: 0.00115687418 | T76: 6678.127822 | U76: 112.6828135 | V76: -2575.296341 | W76: 6161.593947 | Y76: 1700 | Z76: -4.124798245e-05 | AA76: -2.478361267e-12 | AB76: -0.0114637838 | AC76: -3.217260581e-09 | AD76: 0.002107948852 | AE76: -0.0001200575125 | AF76: -0.002487160694 | AG76: 0.001245149016
E77: 1725 | F77: 3.696641512e-06 | G77: 2.44737027e-12 | H77: -0.007063775758 | I77: 0.001156877459 | J77: 6678.125536 | K77: 114.3400384 | L77: -2752.397112 | M77: 6084.5436 | O77: 1725 | P77: -3.779408496e-05 | Q77: 0 | R77: -0.01880258401 | S77: 0.00115687418 | T77: 6678.127821 | U77: 114.3399137 | V77: -2752.399807 | W77: 6084.544888 | Y77: 1725 | Z77: -4.149072648e-05 | AA77: -2.44737027e-12 | AB77: -0.01173880825 | AC77: -3.278836517e-09 | AD77: 0.002284457587 | AE77: -0.0001247100918 | AF77: -0.002695505865 | AG77: 0.001288005499
E78: 1750 | F78: 3.931410638e-06 | G78: 2.414332235e-12 | H78: -0.00696841846 | I78: 0.00115687752 | J78: 6678.125361 | K78: 115.9971434 | L78: -2927.19821 | M78: 6002.405266 | O78: 1750 | P78: -3.774021586e-05 | Q78: 0 | R78: -0.01897202754 | S78: 0.00115687418 | T78: 6678.127834 | U78: 115.9970139 | V78: -2927.201127 | W78: 6002.406595 | Y78: 1750 | Z78: -4.16716265e-05 | AA78: -2.414332235e-12 | AB78: -0.01200360908 | AC78: -3.339612035e-09 | AD78: 0.002473288919 | AE78: -0.000129450305 | AF78: -0.00291654847 | AG78: 0.001329427492
E79: 1775 | F79: 4.162891491e-06 | G79: 2.379274794e-12 | H79: -0.00686723263 | I79: 0.00115687758 | J79: 6678.125188 | K79: 117.6542484 | L79: -3099.550942 | M79: 5915.246401 | O79: 1775 | P79: -3.762437746e-05 | Q79: 0 | R79: -0.0191241916 | S79: 0.00115687418 | T79: 6678.127863 | U79: 117.6541141 | V79: -3099.554093 | W79: 5915.24777 | Y79: 1775 | Z79: -4.178726895e-05 | AA79: -2.379274794e-12 | AB79: -0.01225695897 | AC79: -3.3995363e-09 | AD79: 0.002675097412 | AE79: -0.0001342769691 | AF79: -0.003150795641 | AG79: 0.001369129781
E80: 1800 | F80: 4.390890446e-06 | G80: 2.342227268e-12 | H80: -0.006760302903 | I80: 0.001156877639 | J80: 6678.125018 | K80: 119.3113535 | L80: -3269.311148 | M80: 5823.139906 | O80: 1800 | P80: -3.744327368e-05 | Q80: 0 | R80: -0.01925788882 | S80: 0.00115687418 | T80: 6678.127908 | U80: 119.3112143 | V80: -3269.314547 | W80: 5823.141313 | Y80: 1800 | Z80: -4.183416413e-05 | AA80: -2.342227268e-12 | AB80: -0.01249758591 | AC80: -3.458559189e-09 | AD80: 0.00289055932 | AE80: -0.0001391888288 | AF80: -0.00339876572 | AG80: 0.001406811873
E81: 1825 | F81: 4.615216797e-06 | G81: 2.303220646e-12 | H81: -0.006647718715 | I81: 0.001156877697 | J81: 6678.12485 | K81: 120.9684587 | L81: -3436.336837 | M81: 5726.162821 | O81: 1825 | P81: -3.719352987e-05 | Q81: 0 | R81: -0.01937189167 | S81: 0.00115687418 | T81: 6678.12797 | U81: 120.9683145 | V81: -3436.340498 | W81: 5726.164263 | Y81: 1825 | Z81: -4.180874667e-05 | AA81: -2.303220646e-12 | AB81: -0.01272417295 | AC81: -3.516631336e-09 | AD81: 0.003120372652 | AE81: -0.0001441845574 | AF81: -0.003660988667 | AG81: 0.001442157634
E82: 1850 | F82: 4.835682918e-06 | G82: 2.262287552e-12 | H82: -0.006529574234 | I82: 0.001156877754 | J82: 6678.124685 | K82: 122.625564 | L82: -3600.488305 | M82: 5624.396259 | O82: 1850 | P82: -3.687169314e-05 | Q82: 0 | R82: -0.01946493221 | S82: 0.00115687418 | T82: 6678.128051 | U82: 122.6254147 | V82: -3600.492243 | W82: 5624.397734 | Y82: 1850 | Z82: -4.170737606e-05 | AA82: -2.262287552e-12 | AB82: -0.01293535798 | AC82: -3.573704167e-09 | AD82: 0.003365257194 | AE82: -0.0001492627583 | AF82: -0.003938006504 | AG82: 0.001474834914
E83: 1875 | F83: 5.052104401e-06 | G83: 2.219462223e-12 | H83: -0.006405968277 | I83: 0.00115687781 | J83: 6678.124524 | K83: 124.2826693 | L83: -3761.628252 | M83: 5517.925339 | O83: 1875 | P83: -3.647423291e-05 | Q83: 0 | R83: -0.01953570186 | S83: 0.00115687418 | T83: 6678.12815 | U83: 124.2825149 | V83: -3761.632482 | W83: 5517.926843 | Y83: 1875 | Z83: -4.152633731e-05 | AA83: -2.219462223e-12 | AB83: -0.01312973358 | AC83: -3.629729944e-09 | AD83: 0.00362595449 | AE83: -0.0001544219658 | AF83: -0.004230373826 | AG83: 0.001504495083
E84: 1900 | F84: 5.264300227e-06 | G84: 2.174780478e-12 | H84: -0.00627700423 | I84: 0.001156877865 | J84: 6678.124365 | K84: 125.9397748 | L84: -3919.621898 | M84: 5406.839115 | O84: 1900 | P84: -3.599754162e-05 | Q84: 0 | R84: -0.01958285114 | S84: 0.00115687418 | T84: 6678.128268 | U84: 125.9396151 | V84: -3919.626436 | W84: 5406.840646 | Y84: 1900 | Z84: -4.126184184e-05 | AA84: -2.174780478e-12 | AB84: -0.01330584691 | AC84: -3.684661806e-09 | AD84: 0.003903227795 | AE84: -0.0001596606463 | AF84: -0.004538658327 | AG84: 0.00153077255
E85: 1925 | F85: 5.472092906e-06 | G85: 2.128279691e-12 | H85: -0.006142789961 | I85: 0.001156877919 | J85: 6678.12421 | K85: 127.5968803 | L85: -4074.337092 | M85: 5291.230501 | O85: 1925 | P85: -3.543793547e-05 | Q85: 0 | R85: -0.01960498962 | S85: 0.00115687418 | T85: 6678.128408 | U85: 127.5967153 | V85: -4074.341956 | W85: 5291.232055 | Y85: 1925 | Z85: -4.091002838e-05 | AA85: -2.128279691e-12 | AB85: -0.01346219965 | AC85: -3.738453808e-09 | AD85: 0.004197861985 | AE85: -0.0001649772001 | AF85: -0.004863441409 | AG85: 0.001553284207
E86: 1950 | F86: 5.675308641e-06 | G86: 2.079998754e-12 | H86: -0.006003437728 | I86: 0.001156877971 | J86: 6678.124058 | K86: 129.2539859 | L86: -4225.644429 | M86: 5171.196196 | O86: 1950 | P86: -3.479165554e-05 | Q86: 0 | R86: -0.01960068572 | S86: 0.00115687418 | T86: 6678.128569 | U86: 129.2538155 | V86: -4225.649634 | W86: 5171.197767 | Y86: 1950 | Z86: -4.046696418e-05 | AA86: -2.079998754e-12 | AB86: -0.01359724799 | AC86: -3.791060955e-09 | AD86: 0.004510663402 | AE86: -0.0001703699619 | AF86: -0.005205318794 | AG86: 0.001571628799
E87: 1975 | F87: 5.873777453e-06 | G87: 2.029978051e-12 | H87: -0.005859064089 | I87: 0.001156878023 | J87: 6678.12391 | K87: 130.9110915 | L87: -4373.417351 | M87: 5046.836596 | O87: 1975 | P87: -3.405486886e-05 | Q87: 0 | R87: -0.01956846676 | S87: 0.00115687418 | T87: 6678.128752 | U87: 130.9109157 | V87: -4373.422916 | W87: 5046.838182 | Y87: 1975 | Z87: -3.992864632e-05 | AA87: -2.029978051e-12 | AB87: -0.01370940267 | AC87: -3.842439247e-09 | AD87: 0.004842459686 | AE87: -0.000175837203 | AF87: -0.005564901187 | AG87: 0.001585386247
E88: 2000 | F88: 6.067333329e-06 | G88: 1.978259419e-12 | H88: -0.0057097898 | I88: 0.001156878073 | J88: 6678.123765 | K88: 132.5681973 | L88: -4517.532257 | M88: 4918.25572 | O88: 2000 | P88: -3.322366986e-05 | Q88: 0 | R88: -0.01950681889 | S88: 0.00115687418 | T88: 6678.128959 | U88: 132.5680159 | V88: -4517.5382 | W88: 4918.257314 | Y88: 2000 | Z88: -3.929100319e-05 | AA88: -1.978259419e-12 | AB88: -0.01379702909 | AC88: -3.892545707e-09 | AD88: 0.005194099538 | AE88: -0.0001813771322 | AF88: -0.005942814991 | AG88: 0.001594116854
E89: 2025 | F89: 6.25581438e-06 | G89: 1.924886117e-12 | H89: -0.005555739716 | I89: 0.001156878121 | J89: 6678.123624 | K89: 134.2253031 | L89: -4657.868607 | M89: 4785.561114 | O89: 2025 | P89: -3.229408185e-05 | Q89: 0 | R89: -0.01941418721 | S89: 0.00115687418 | T89: 6678.129191 | U89: 134.2251161 | V89: -4657.874947 | W89: 4785.562712 | Y89: 2025 | Z89: -3.854989623e-05 | AA89: -1.924886117e-12 | AB89: -0.01385844749 | AC89: -3.941338428e-09 | AD89: 0.005566452433 | AE89: -0.0001869878977 | AF89: -0.006339703011 | AG89: 0.001597360459
E90: 2050 | F90: 6.439062949e-06 | G90: 1.869902788e-12 | H90: -0.005397042688 | I90: 0.001156878169 | J90: 6678.123487 | K90: 135.882409 | L90: -4794.309021 | M90: 4648.863767 | O90: 2050 | P90: -3.126205879e-05 | Q90: 0 | R90: -0.01928897587 | S90: 0.00115687418 | T90: 6678.129448 | U90: 135.8822163 | V90: -4794.315777 | W90: 4648.865362 | Y90: 2050 | Z90: -3.770112174e-05 | AA90: -1.869902788e-12 | AB90: -0.01389193318 | AC90: -3.988776595e-09 | AD90: 0.005960408292 | AE90: -0.0001926675884 | AF90: -0.006756225242 | AG90: 0.001594635465
E91: 2075 | F91: 6.616925764e-06 | G91: 1.81335542e-12 | H91: -0.005233831453 | I91: 0.001156878215 | J91: 6678.123354 | K91: 137.5395149 | L91: -4926.739376 | M91: 4508.278015 | O91: 2075 | P91: -3.012348727e-05 | Q91: 0 | R91: -0.01912954829 | S91: 0.00115687418 | T91: 6678.129731 | U91: 137.5393165 | V91: -4926.746569 | W91: 4508.2796 | Y91: 2075 | Z91: -3.674041303e-05 | AA91: -1.81335542e-12 | AB91: -0.01389571683 | AC91: -4.034820532e-09 | AD91: 0.006376877092 | AE91: -0.0001984142353 | AF91: -0.00719305964 | AG91: 0.001585437791
E92: 2100 | F92: 6.789254059e-06 | G92: 1.75529131e-12 | H92: -0.005066242524 | I92: 0.00115687826 | J92: 6678.123226 | K92: 139.1966209 | L92: -5055.048905 | M92: 4363.921446 | O92: 2100 | P92: -2.887418861e-05 | Q92: 0 | R92: -0.01893422739 | S92: 0.00115687418 | T92: 6678.130042 | U92: 139.1964167 | V92: -5055.056556 | W92: 4363.923015 | Y92: 2100 | Z92: -3.566344267e-05 | AA92: -1.75529131e-12 | AB92: -0.01386798487 | AC92: -4.079431726e-09 | AD92: 0.006816788425 | AE92: -0.0002042258136 | AF92: -0.00765090289 | AG92: 0.00156923972
E93: 2125 | F93: 6.955903685e-06 | G93: 1.695759026e-12 | H93: -0.004894416075 | I93: 0.001156878303 | J93: 6678.123101 | K93: 140.853727 | L93: -5179.130286 | M93: 4215.914804 | O93: 2125 | P93: -2.750992134e-05 | Q93: 0 | R93: -0.01870129596 | S93: 0.00115687418 | T93: 6678.130382 | U93: 140.8535169 | V93: -5179.138417 | W93: 4215.916349 | Y93: 2125 | Z93: -3.446582503e-05 | AA93: -1.695759026e-12 | AB93: -0.01380687989 | AC93: -4.122572863e-09 | AD93: 0.007281090988 | AE93: -0.0002101002444 | AF93: -0.00813047124 | AG93: 0.001545488599
E94: 2150 | F94: 7.116735246e-06 | G94: 1.63480836e-12 | H94: -0.004718495827 | I94: 0.001156878344 | J94: 6678.122981 | K94: 142.5108331 | L94: -5298.879736 | M94: 4064.381883 | O94: 2150 | P94: -2.602638377e-05 | Q94: 0 | R94: -0.01842899707 | S94: 0.00115687418 | T94: 6678.130752 | U94: 142.5106171 | V94: -5298.888369 | W94: 4064.383396 | Y94: 2150 | Z94: -3.314311901e-05 | AA94: -1.63480836e-12 | AB94: -0.01371050124 | AC94: -4.164207857e-09 | AD94: 0.007770752026 | AE94: -0.0002160353958 | AF94: -0.008632501287 | AG94: 0.00151360546
E95: 2175 | F95: 7.271614229e-06 | G95: 1.572490294e-12 | H95: -0.004538628921 | I95: 0.001156878384 | J95: 6678.122865 | K95: 144.1679393 | L95: -5414.197094 | M95: 3909.449429 | O95: 2175 | P95: -2.441921683e-05 | Q95: 0 | R95: -0.0181155345 | S95: 0.00115687418 | T95: 6678.131152 | U95: 144.1677173 | V95: -5414.206251 | W95: 3909.450902 | Y95: 2175 | Z95: -3.169083106e-05 | AA95: -1.572490294e-12 | AB95: -0.01357690558 | AC95: -4.204301884e-09 | AD95: 0.008286756704 | AE95: -0.0002220290853 | AF95: -0.009157750775 | AG95: 0.001472983496
E96: 2200 | F96: 7.420411088e-06 | G96: 1.508856952e-12 | H96: -0.004354965803 | I96: 0.001156878423 | J96: 6678.122754 | K96: 145.8250456 | L96: -5524.985904 | M96: 3751.24703 | O96: 2200 | P96: -2.268400726e-05 | Q96: 0 | R96: -0.01775907341 | S96: 0.00115687418 | T96: 6678.131584 | U96: 145.8248175 | V96: -5524.995611 | W96: 3751.248453 | Y96: 2200 | Z96: -3.010441834e-05 | AA96: -1.508856952e-12 | AB96: -0.01340410761 | AC96: -4.24282141e-09 | AD96: 0.008830107418 | AE96: -0.0002280790817 | AF96: -0.009706999381 | AG96: 0.001422986406
E97: 2225 | F97: 7.563001358e-06 | G97: 1.443961557e-12 | H97: -0.004167660092 | I97: 0.00115687846 | J97: 6678.122648 | K97: 147.4821519 | L97: -5631.153501 | M97: 3589.90701 | O97: 2225 | P97: -2.081629092e-05 | Q97: 0 | R97: -0.01735774092 | S97: 0.00115687418 | T97: 6678.132049 | U97: 147.4819177 | V97: -5631.163782 | W97: 3589.908373 | Y97: 2225 | Z97: -2.837929227e-05 | AA97: -1.443961557e-12 | AB97: -0.01319008083 | AC97: -4.279734214e-09 | AD97: 0.009401823028 | AE97: -0.0002341831062 | AF97: -0.01028104947 | AG97: 0.001362946607
E98: 2250 | F98: 7.699265775e-06 | G98: 1.377858391e-12 | H98: -0.003976868454 | I98: 0.001156878495 | J98: 6678.122546 | K98: 149.1392582 | L98: -5732.611084 | M98: 3425.564317 | O98: 2250 | P98: -1.881155648e-05 | Q98: 0 | R98: -0.01690962688 | S98: 0.00115687418 | T98: 6678.132549 | U98: 149.1390179 | V98: -5732.621965 | W98: 3425.565609 | Y98: 2250 | Z98: -2.651082226e-05 | AA98: -1.377858391e-12 | AB98: -0.01293275843 | AC98: -4.315009422e-09 | AD98: 0.01000293803 | AE98: -0.0002403388351 | AF98: -0.0108807268 | AG98: 0.001292163317
E99: 2275 | F99: 7.829090354e-06 | G99: 1.310602743e-12 | H99: -0.003782750472 | I99: 0.001156878529 | J99: 6678.122449 | K99: 150.7963646 | L99: -5829.273792 | M99: 3258.356411 | O99: 2275 | P99: -1.666524932e-05 | Q99: 0 | R99: -0.01641278474 | S99: 0.00115687418 | T99: 6678.133083 | U99: 150.7961181 | V99: -5829.285299 | W99: 3258.357621 | Y99: 2275 | Z99: -2.449433967e-05 | AA99: -1.310602743e-12 | AB99: -0.01263003427 | AC99: -4.348617529e-09 | AD99: 0.01063450167 | AE99: -0.0002465439016 | AF99: -0.01150688123 | AG99: 0.001209900481
E100: 2300 | F100: 7.952366519e-06 | G100: 1.242250869e-12 | H100: -0.003585468511 | I100: 0.001156878561 | J100: 6678.122357 | K100: 152.4534711 | L100: -5921.060773 | M100: 3088.423147 | O100: 2300 | P100: -1.437277572e-05 | Q100: 0 | R100: -0.01586523246 | S100: 0.00115687418 | T100: 6678.133654 | U100: 152.4532183 | V100: -5921.072933 | W100: 3088.424262 | Y100: 2300 | Z100: -2.232514224e-05 | AA100: -1.242250869e-12 | AB100: -0.01227976394 | AC100: -4.380530423e-09 | AD100: 0.01129757693 | AE100: -0.0002527958973 | AF100: -0.01216038731 | AG100: 0.001115384548
E101: 2325 | F101: 8.068991148e-06 | G101: 1.172859938e-12 | H101: -0.00338518758 | I101: 0.001156878591 | J101: 6678.122269 | K101: 154.1105776 | L101: -6007.895254 | M101: 2915.906661 | O101: 2325 | P101: -1.192950744e-05 | Q101: 0 | R101: -0.01526495355 | S101: 0.00115687418 | T101: 6678.134263 | U101: 154.1103185 | V101: -6007.908097 | W101: 2915.907669 | Y101: 2325 | Z101: -1.999849859e-05 | AA101: -1.172859938e-12 | AB101: -0.01187976597 | AC101: -4.410721413e-09 | AD101: 0.01199323952 | AE101: -0.0002590923747 | AF101: -0.01284214482 | AG101: 0.001007802114
E102: 2350 | F102: 8.178866695e-06 | G102: 1.102487993e-12 | H102: -0.003182075199 | I102: 0.001156878619 | J102: 6678.122187 | K102: 155.7676841 | L102: -6089.704606 | M102: 2740.95125 | O102: 2350 | P102: -9.330786438e-06 | Q102: 0 | R102: -0.01460989827 | S102: 0.00115687418 | T102: 6678.13491 | U102: 155.7674187 | V102: -6089.71816 | W102: 2740.952136 | Y102: 2350 | Z102: -1.750965313e-05 | AA102: -1.102487993e-12 | AB102: -0.01142782307 | AC102: -4.439165244e-09 | AD102: 0.0127225767 | AE102: -0.0002654308491 | AF102: -0.01355307929 | AG102: 0.0008862974105
E103: 2375 | F103: 8.281901254e-06 | G103: 1.031193893e-12 | H103: -0.002976301257 | I103: 0.001156878646 | J103: 6678.12211 | K103: 157.4247907 | L103: -6166.420402 | M103: 2563.70325 | O103: 2375 | P103: -6.571930075e-06 | Q103: 0 | R103: -0.01389798482 | S103: 0.00115687418 | T103: 6678.135597 | U103: 157.4245189 | V103: -6166.434696 | W103: 2563.704 | Y103: 2375 | Z103: -1.485383133e-05 | AA103: -1.031193893e-12 | AB103: -0.01092168356 | AC103: -4.465838127e-09 | AD103: 0.01348668609 | AE103: -0.0002718088008 | AF103: -0.01429414231 | AG103: 0.0007499696221
E104: 2400 | F104: 8.378008647e-06 | G104: 9.590372713e-13 | H104: -0.002768037867 | I104: 0.001156878671 | J104: 6678.122039 | K104: 159.0818973 | L104: -6237.978473 | M104: 2384.310914 | O104: 2400 | P104: -3.648236535e-06 | Q104: 0 | R104: -0.01312710077 | S104: 0.00115687418 | T104: 6678.136325 | U104: 159.0816191 | V104: -6237.993539 | W104: 2384.311512 | Y104: 2400 | Z104: -1.202624518e-05 | AA104: -9.590372713e-13 | AB104: -0.0103590629 | AC104: -4.490717751e-09 | AD104: 0.01428667437 | AE104: -0.0002782236768 | AF104: -0.01506631184 | AG104: 0.0005978700765
E105: 2425 | F105: 8.467108482e-06 | G105: 8.860784816e-13 | H105: -0.002557459225 | I105: 0.001156878694 | J105: 6678.121972 | K105: 160.739004 | L105: -6304.318967 | M105: 2202.92429 | O105: 2425 | P105: -5.549906379e-07 | Q105: 0 | R105: -0.01229510454 | S105: 0.00115687418 | T105: 6678.137096 | U105: 160.7387193 | V105: -6304.334838 | W105: 2202.924719 | Y105: 2425 | Z105: -9.02209912e-06 | AA105: -8.860784816e-13 | AB105: -0.009737645313 | AC105: -4.513783306e-09 | AD105: 0.01512365587 | AE105: -0.0002846728934 | AF105: -0.01587059235 | AG105: 0.0004289992676
E106: 2450 | F106: 8.54912623e-06 | G106: 8.123785487e-13 | H106: -0.002344741465 | I106: 0.001156878715 | J106: 6678.121911 | K106: 162.3961106 | L106: -6365.386397 | M106: 2019.695094 | O106: 2450 | P106: 2.712530037e-06 | Q106: 0 | R106: -0.011399827 | S106: 0.00115687418 | T106: 6678.137909 | U106: 162.3958195 | V106: -6365.403105 | W106: 2019.695337 | Y106: 2450 | Z106: -5.836596193e-06 | AA106: -8.123785487e-13 | AB106: -0.009055085535 | AC106: -4.535015499e-09 | AD106: 0.01599875111 | AE106: -0.0002911538381 | AF106: -0.01670801479 | AG106: 0.0002423037445
E107: 2475 | F107: 8.623993297e-06 | G107: 7.379991174e-13 | H107: -0.002130062507 | I107: 0.001156878735 | J107: 6678.121855 | K107: 164.0532173 | L107: -6421.129682 | M107: 1834.776583 | O107: 2475 | P107: 6.159048644e-06 | Q107: 0 | R107: -0.01043907325 | S107: 0.00115687418 | T107: 6678.138768 | U107: 164.0529197 | V107: -6421.147262 | W107: 1834.776619 | Y107: 2475 | Z107: -2.464944653e-06 | AA107: -7.379991174e-13 | AB107: -0.008309010741 | AC107: -4.55439657e-09 | AD107: 0.01691308521 | AE107: -0.000297663872 | AF107: =V107-L107 -> -0.0175796365 | AG107: 3.667284409e-05
E108: 2500 | F108: 8.691647057e-06 | G108: 6.63002401e-13 | H108: -0.001913601915 | I108: 0.001156878752 | J108: 6678.121804 | K108: 165.7103241 | L108: -6471.502199 | M108: 1648.323425 | O108: 2500 | P108: 9.789282217e-06 | Q108: 0 | R108: -0.009410624471 | S108: 0.00115687418 | T108: 6678.139672 | U108: 165.7100199 | V108: -6471.520686 | W108: 1648.323236 | Y108: 2500 | Z108: =P108-F108 -> 1.09763516e-06 | AA108: -6.63002401e-13 | AB108: -0.007497022556 | AC108: -4.57191031e-09 | AD108: 0.01786778627 | AE108: -0.0003042003316 | AF108: -0.01848654085 | AG108: -0.0001890647377
E109: 2525 | F109: 8.752030914e-06 | G109: 5.874511288e-13 | H109: -0.001695540741 | I109: 0.001156878768 | J109: 6678.121759 | K109: 167.3674308 | L109: -6516.461815 | M109: 1460.491575 | O109: 2525 | P109: 1.360793442e-05 | Q109: 0 | R109: -0.008312239967 | S109: 0.00115687418 | T109: 6678.140623 | U109: 167.3671201 | V109: -6516.481245 | W109: 1460.491139 | Y109: =O109 -> 2525 | Z109: =P109-F109 -> 4.855903505e-06 | AA109: =Q109-G109 -> -5.874511288e-13 | AB109: =R109-H109 -> -0.006616699226 | AC109: =S109-I109 -> -4.587542069e-09 | AD109: =T109-J109 -> 0.01886398353 | AE109: =U109-K109 -> -0.0003107605316 | AF109: =V109-L109 -> -0.01942983679 | AG109: =W109-M109 -> -0.0004361444708
E110: 2550 | F110: 8.805094376e-06 | G110: 5.114084943e-13 | H110: -0.001476061377 | I110: 0.001156878781 | J110: 6678.121719 | K110: 169.0245376 | L110: -6555.970924 | M110: 1271.438139 | O110: 2550 | P110: 1.761968794e-05 | Q110: 0 | R110: -0.007141659307 | S110: 0.00115687418 | T110: 6678.141622 | U110: 169.0242203 | V110: -6555.991335 | W110: 1271.437433 | Y110: 2550 | Z110: 8.81459356e-06 | AA110: -5.114084943e-13 | AB110: -0.00566559793 | AC110: -4.601278772e-09 | AD110: 0.01990280558 | AE110: -0.0003173417667 | AF110: -0.02041065813 | AG110: -0.0007058696735
E111: 2575 | F111: 8.850793044e-06 | G111: 4.349381018e-13 | H111: -0.0012553474 | I111: 0.001156878793 | J111: 6678.121685 | K111: 170.6816444 | L111: -6589.99648 | M111: 1081.321245 | O111: 2575 | P111: 2.182919646e-05 | Q111: 0 | R111: -0.00589660464 | S111: 0.00115687418 | T111: 6678.142671 | U111: 170.6813205 | V111: -6590.01791 | W111: 1081.320245 | Y111: 2575 | Z111: 1.297840342e-05 | AA111: -4.349381018e-13 | AB111: -0.00464125724 | AC111: -4.613108928e-09 | AD111: 0.02098537835 | AE111: -0.000323941314 | AF111: -0.02143016267 | AG111: -0.0009996153244
E112: 2600 | F112: 8.889088705e-06 | G112: 3.581039136e-13 | H112: -0.00103358342 | I112: 0.001156878803 | J112: 6678.121657 | K112: 172.3387512 | L112: -6618.510023 | M112: 890.2999108 | O112: 2600 | P112: 2.624107624e-05 | Q112: 0 | R112: -0.004574783151 | S112: 0.00115687418 | T112: 6678.14377 | U112: 172.3384207 | V112: -6618.532513 | W112: 890.298592 | Y112: 2600 | Z112: 1.735198754e-05 | AA112: -3.581039136e-13 | AB112: -0.00354119973 | AC112: -4.623022645e-09 | AD112: 0.02211282307 | AE112: -0.0003305564353 | AF112: -0.02248953105 | AG112: -0.001318831978
E113: 2625 | F113: 8.919949319e-06 | G113: 2.80970196e-13 | H113: -0.0008109549274 | I113: 0.001156878811 | J113: 6678.121634 | K113: 173.9958581 | L113: -6641.487704 | M113: 698.533911 | O113: 2625 | P113: 3.085989728e-05 | Q113: 0 | R113: -0.003173889676 | S113: 0.00115687418 | T113: 6678.14492 | U113: 173.9955209 | V113: -6641.511294 | W113: 698.532246 | Y113: 2625 | Z113: 2.193994796e-05 | AA113: -2.80970196e-13 | AB113: -0.002362934749 | AC113: -4.631011628e-09 | AD113: 0.02328625405 | AE113: -0.0003371843793 | AF113: -0.02358996538 | AG113: -0.001665049771
E114: 2650 | F114: 8.943349078e-06 | G114: 2.036014663e-13 | H114: -0.0005876481325 | I114: 0.001156878817 | J114: 6678.121616 | K114: 175.6529649 | L114: -6658.910304 | M114: 506.1836427 | O114: 2650 | P114: 3.569017403e-05 | Q114: 0 | R114: -0.001691609481 | S114: 0.00115687418 | T114: 6678.146123 | U114: 175.6526211 | V114: -6658.935037 | W114: 506.1816028 | Y114: 2650 | Z114: 2.674682495e-05 | AA114: -2.036014663e-13 | AB114: -0.001103961348 | AC114: -4.637069196e-09 | AD114: 0.02450677646 | AE114: -0.0003438223842 | AF114: -0.02473268762 | AG114: -0.002039882566
E115: 2675 | F115: 8.959268407e-06 | G115: 1.260624379e-13 | H115: -0.0003638498148 | I115: 0.001156878821 | J115: 6678.121604 | K115: 177.3100717 | L115: -6670.76325 | M115: 313.4099916 | O115: 2675 | P115: 4.073635575e-05 | Q115: 0 | R115: -0.0001256211972 | S115: 0.00115687418 | T115: 6678.14738 | U115: 177.3097213 | V115: -6670.789169 | W115: 313.4075466 | Y115: 2675 | Z115: 3.177708734e-05 | AA115: -1.260624379e-13 | AB115: 0.0002382286177 | AC115: -4.641190282e-09 | AD115: 0.02577548387 | AE115: -0.0003504676794 | AF115: -0.02591893768 | AG115: -0.002445032117
E116: 2700 | F116: 8.967693993e-06 | G116: 4.84179669e-14 | H116: -0.0001397471645 | I116: 0.001156878824 | J116: 6678.121598 | K116: 178.9671786 | L116: -6677.036628 | M116: 120.3741977 | O116: 2700 | P116: 4.60028163e-05 | Q116: 0 | R116: 0.00152640006 | S116: 0.00115687418 | T116: 6678.148691 | U116: 178.9668215 | V116: -6677.063778 | W116: 120.3713154 | Y116: 2700 | Z116: 3.703512231e-05 | AA116: -4.84179669e-14 | AB116: 0.001666147225 | AC116: -4.643371439e-09 | AD116: 0.02709345574 | AE116: -0.0003571174886 | AF116: -0.02714997121 | AG116: -0.002882292355
E117: 2725 | F117: 8.968618787e-06 | G117: -2.926700241e-14 | H117: 8.447237379e-05 | I117: 0.001156878824 | J117: 6678.121597 | K117: 180.6242854 | L117: -6677.72519 | M117: -72.76227966 | O117: 2725 | P117: 5.14938436e-05 | Q117: 0 | R117: 0.003266779408 | S117: 0.00115687418 | T117: 6678.150059 | U117: 180.6239217 | V117: -6677.753617 | W117: -72.76563322 | Y117: 2725 | Z117: 4.252522481e-05 | AA117: 2.926700241e-14 | AB117: 0.003182307034 | AC117: -4.643610843e-09 | AD117: 0.02846175484 | AE117: -0.0003637690316 | AF117: -0.02842705712 | AG117: -0.003353553695
E118: 2750 | F118: 8.962042014e-06 | G118: -1.069274919e-13 | H118: 0.0003086212574 | I118: 0.001156878822 | J118: 6678.121602 | K118: 182.2813923 | L118: -6672.828362 | M118: -265.8378971 | O118: 2750 | P118: 5.721362852e-05 | Q118: 0 | R118: 0.005097838721 | S118: 0.00115687418 | T118: 6678.151484 | U118: 182.2810219 | V118: -6672.858113 | W118: -265.841758 | Y118: 2750 | Z118: 4.82515865e-05 | AA118: 1.069274919e-13 | AB118: 0.004789217463 | AC118: -4.641908293e-09 | AD118: 0.02988142446 | AE118: -0.0003704195265 | AF118: -0.02975147478 | AG118: -0.003860807376
E119: 2775 | F119: 8.947969172e-06 | G119: -1.844985439e-13 | H119: 0.0005325120028 | I119: 0.001156878818 | J119: 6678.121613 | K119: 183.9384991 | L119: -6662.350238 | M119: -458.6911622 | O119: 2775 | P119: 6.316625341e-05 | Q119: 0 | R119: 0.007021892982 | S119: 0.00115687418 | T119: 6678.152966 | U119: 183.9381221 | V119: -6662.381362 | W119: -458.6955683 | Y119: 2775 | Z119: 5.421828424e-05 | AA119: 1.844985439e-13 | AB119: 0.006489380979 | AC119: -4.638265214e-09 | AD119: 0.03135348552 | AE119: -0.0003770661927 | AF119: -0.03112451085 | AG119: -0.004406149843
E120: 2800 | F120: 8.926412038e-06 | G120: -2.619152755e-13 | H120: 0.0007559573425 | I120: 0.001156878813 | J120: 6678.121629 | K120: 185.595606 | L120: -6646.299583 | M120: -651.1607682 | O120: 2800 | P120: 6.935568007e-05 | Q120: 0 | R120: 0.009041246437 | S120: 0.00115687418 | T120: 6678.154508 | U120: 185.5952223 | V120: -6646.33213 | W120: -651.16576 | Y120: 2800 | Z120: 6.042926803e-05 | AA120: 2.619152755e-13 | AB120: 0.008285289095 | AC120: -4.632684652e-09 | AD120: 0.03287893364 | AE120: -0.0003837062525 | AF120: -0.03254745586 | AG120: -0.004991787083
E121: 2825 | F121: 8.897388644e-06 | G121: -3.391129329e-13 | H121: 0.0009787703816 | I121: 0.001156878805 | J121: 6678.12165 | K121: 187.2527128 | L121: -6624.689822 | M121: -843.0857295 | O121: 2825 | P121: 7.578573721e-05 | Q121: 0 | R121: 0.01115818855 | S121: 0.00115687418 | T121: 6678.156109 | U121: 187.2523225 | V121: -6624.723843 | W121: -843.0913495 | Y121: 2825 | Z121: 6.688834856e-05 | AA121: 3.391129329e-13 | AB121: 0.01017941817 | AC121: -4.625171276e-09 | AD121: 0.03445873597 | AE121: -0.0003903369338 | AF121: -0.03402160031 | AG121: -0.005620038978
E122: 2850 | F122: 8.860923261e-06 | G122: -4.160269458e-13 | H122: 0.001200764754 | I122: 0.001156878796 | J122: 6678.121678 | K122: 188.9098196 | L122: -6597.539029 | M122: -1034.305516 | O122: 2850 | P122: 8.246010751e-05 | Q122: 0 | R122: 0.01337498977 | S122: 0.00115687418 | T122: 6678.157772 | U122: 188.9094227 | V122: -6597.574577 | W122: -1034.311809 | Y122: 2850 | Z122: 7.359918425e-05 | AA122: 4.160269458e-13 | AB122: 0.01217422502 | AC122: -4.615731369e-09 | AD122: 0.03609382795 | AE122: -0.0003969554723 | AF122: -0.0355482305 | AG122: -0.006293343582
E123: 2875 | F123: 8.817046399e-06 | G123: -4.925929807e-13 | H123: 0.001421754778 | I123: 0.001156878785 | J123: 6678.121711 | K123: 190.5669264 | L123: -6564.869915 | M123: -1224.660187 | O123: 2875 | P123: 8.93823141e-05 | Q123: 0 | R123: 0.01569389709 | S123: 0.00115687418 | T123: 6678.159496 | U123: 190.5665229 | V123: -6564.907044 | W123: -1224.667202 | Y123: 2875 | Z123: 8.05652677e-05 | AA123: 4.925929807e-13 | AB123: 0.01427214231 | AC123: -4.604372828e-09 | AD123: 0.03778510994 | AE123: -0.000403559114 | AF123: -0.03712862401 | AG123: -0.007014261321
E124: 2900 | F124: 8.765794748e-06 | G124: -5.687469956e-13 | H124: 0.001641555613 | I124: 0.001156878771 | J124: 6678.121749 | K124: 192.2240332 | L124: -6526.709805 | M124: -1413.990527 | O124: 2900 | P124: 9.655570656e-05 | Q124: 0 | R124: 0.01811712936 | S124: 0.00115687418 | T124: 6678.161282 | U124: 192.2236231 | V124: -6526.748569 | W124: -1413.998313 | Y124: 2900 | Z124: 8.778991181e-05 | AA124: 5.687469956e-13 | AB124: 0.01647557374 | AC124: -4.591105154e-09 | AD124: 0.03953344371 | AE124: -0.0004101451173 | AF124: -0.03876404468 | AG124: -0.007785479134
E125: 2925 | F125: 8.707211185e-06 | G125: -6.444252928e-13 | H125: 0.001859983412 | I125: 0.001156878756 | J125: 6678.121793 | K125: 193.88114 | L125: -6483.090617 | M125: -1602.138175 | O125: 2925 | P125: 0.0001039834463 | Q125: 0 | R125: 0.02064687246 | S125: 0.00115687418 | T125: 6678.163132 | U125: 193.8807233 | V125: -6483.131072 | W125: -1602.146785 | Y125: 2925 | Z125: 9.527623516e-05 | AA125: 6.444252928e-13 | AB125: 0.01878688905 | AC125: -4.575939443e-09 | AD125: 0.0413396488 | AE125: -0.0004167107552 | AF125: -0.04045573735 | AG125: -0.00860981444
E126: 2950 | F126: 8.641344709e-06 | G126: -7.195645729e-13 | H126: 0.002076855477 | I126: 0.001156878739 | J126: 6678.121842 | K126: 195.5382467 | L126: -6434.048834 | M126: -1788.945761 | O126: 2950 | P126: 0.0001116684918 | Q126: 0 | R126: 0.02328527421 | S126: 0.00115687418 | T126: 6678.165046 | U126: 195.5378235 | V126: -6434.091039 | W126: -1788.955251 | Y126: 2950 | Z126: 0.0001030271471 | AA126: 7.195645729e-13 | AB126: 0.02120841873 | AC126: -4.558888381e-09 | AD126: 0.04320449873 | AE126: -0.000423253318 | AF126: -0.04220492209 | AG126: -0.009490218982
E127: 2975 | F127: 8.568250401e-06 | G127: -7.941019869e-13 | H127: 0.002291990411 | I127: 0.00115687872 | J127: 6678.121896 | K127: 197.1953534 | L127: -6379.625477 | M127: -1974.257035 | O127: 2975 | P127: 0.0001196135825 | Q127: 0 | R127: 0.02603443901 | S127: 0.00115687418 | T127: 6678.167025 | U127: 197.1949236 | V127: -6379.66949 | W127: -1974.267465 | Y127: 2975 | Z127: 0.0001110453321 | AA127: 7.941019869e-13 | AB127: 0.0237424486 | AC127: -4.53996623e-09 | AD127: 0.04512871712 | AE127: -0.000429770115 | AF127: -0.04401278813 | AG127: -0.01042978249
E128: 3000 | F128: 8.487989419e-06 | G128: -8.679751896e-13 | H128: 0.002505208271 | I128: 0.001156878699 | J128: 6678.121956 | K128: 198.8524601 | L128: -6319.866066 | M128: -2157.916998 | O128: 3000 | P128: 0.0001278212231 | Q128: 0 | R128: 0.02889642236 | S128: 0.00115687418 | T128: 6678.169069 | U128: 198.8520238 | V128: -6319.911947 | W128: -2157.92843 | Y128: 3000 | Z128: 0.0001193332337 | AA128: 8.679751896e-13 | AB128: 0.02639121409 | AC128: -4.519188817e-09 | AD128: 0.04711297358 | AE128: -0.0004362584773 | AF128: -0.04588048728 | AG128: -0.01143173611
E129: 3025 | F129: 8.400628884e-06 | G129: -9.411223913e-13 | H129: 0.002716330715 | I129: 0.001156878677 | J129: 6678.122022 | K129: 200.5095668 | L129: -6254.820586 | M129: -2339.772034 | O129: 3025 | P129: 0.0001362936668 | Q129: 0 | R129: 0.03187322506 | S129: 0.00115687418 | T129: 6678.17118 | U129: 200.509124 | V129: -6254.868395 | W129: -2339.784534 | Y129: 3025 | Z129: 0.0001278930379 | AA129: 9.411223913e-13 | AB129: 0.02915689434 | AC129: -4.496573521e-09 | AD129: 0.04915787957 | AE129: -0.0004427157597 | AF129: -0.04780912711 | AG129: -0.01249945563
E130: 3050 | F130: 8.306241875e-06 | G130: -1.013482409e-12 | H130: 0.002925181157 | I130: 0.001156878652 | J130: 6678.122092 | K130: 202.1666734 | L130: -6184.543442 | M130: -2519.670036 | O130: 3050 | P130: 0.0001450328978 | Q130: 0 | R130: 0.03496678718 | S130: 0.00115687418 | T130: 6678.173356 | U130: 202.1662242 | V130: -6184.593242 | W130: -2519.683672 | Y130: 3050 | Z130: 0.000136726656 | AA130: 1.013482409e-12 | AB130: 0.03204160603 | AC130: -4.472139258e-09 | AD130: 0.05126398404 | AE130: -0.0004491393431 | AF130: -0.04979976361 | AG130: -0.01363646437
E131: 3075 | F131: 8.204907335e-06 | G131: -1.08499472e-12 | H131: 0.003131584909 | I131: 0.001156878626 | J131: 6678.122168 | K131: 203.82378 | L131: -6109.093416 | M131: -2697.460532 | O131: 3075 | P131: 0.0001540406141 | Q131: 0 | R131: 0.03817898187 | S131: 0.00115687418 | T131: 6678.1756 | U131: 203.8233244 | V131: -6109.145269 | W131: -2697.475379 | Y131: 3075 | Z131: 0.0001458357068 | AA131: 1.08499472e-12 | AB131: 0.03504739696 | AC131: -4.445906465e-09 | AD131: 0.05343176897 | AE131: -0.0004555266363 | AF131: -0.05185339348 | AG131: -0.01484643582
E132: 3100 | F132: 8.096710029e-06 | G132: -1.155599509e-12 | H132: 0.00333536933 | I132: 0.001156878598 | J132: 6678.122249 | K132: 205.4808865 | L132: -6028.533616 | M132: -2872.994816 | O132: 3100 | P132: 0.0001633182084 | Q132: 0 | R132: 0.0415116088 | S132: 0.00115687418 | T132: 6678.17791 | U132: 205.4804246 | V132: -6028.587587 | W132: -2873.010949 | Y132: 3100 | Z132: 0.0001552214984 | AA132: 1.155599509e-12 | AB132: 0.03817623947 | AC132: -4.417897085e-09 | AD132: 0.05566164472 | AE132: -0.0004618750786 | AF132: -0.05397094611 | AG132: -0.01613319592
E133: 3125 | F133: 7.981740451e-06 | G133: -1.225237719e-12 | H133: 0.00353636397 | I133: 0.001156878568 | J133: 6678.122335 | K133: 207.137993 | L133: -5942.931423 | M133: -3046.126067 | O133: 3125 | P133: 0.0001728667498 | Q133: 0 | R133: 0.04496638745 | S133: 0.00115687418 | T133: 6678.180289 | U133: 207.1375248 | V133: -5942.987577 | W133: -3046.143567 | Y133: 3125 | Z133: 0.0001648850093 | AA133: 1.225237719e-12 | AB133: 0.04143002348 | AC133: -4.388134545e-09 | AD133: 0.05795394531 | AE133: -0.000468182142 | AF133: -0.05615327512 | AG133: -0.01750072494
E134: 3150 | F134: 7.860094772e-06 | G134: -1.293851103e-12 | H134: 0.003734400714 | I134: 0.001156878537 | J134: 6678.122426 | K134: 208.7950995 | L134: -5852.358439 | M134: -3216.709474 | O134: 3150 | P134: 0.0001826869639 | Q134: 0 | R134: 0.04854495011 | S134: 0.00115687418 | T134: 6678.182734 | U134: 208.794625 | V134: -5852.41684 | W134: -3216.728427 | Y134: 3150 | Z134: 0.0001748268692 | AA134: 1.293851103e-12 | AB134: 0.0448105494 | AC134: -4.35664374e-09 | AD134: 0.06030892349 | AE134: -0.0004744453329 | AF134: -0.05840114954 | AG134: -0.01895315898
E135: 3175 | F135: 7.731874738e-06 | G135: -1.361382272e-12 | H135: 0.003929313919 | I135: 0.001156878504 | J135: 6678.122521 | K135: 210.4522059 | L135: -5756.890419 | M135: -3384.602357 | O135: 3175 | P135: 0.0001927792132 | Q135: 0 | R135: 0.05224883464 | S135: 0.00115687418 | T135: 6678.185248 | U135: 210.4517252 | V135: -5756.951134 | W135: -3384.622852 | Y135: 3175 | Z135: 0.0001850473385 | AA135: 1.361382272e-12 | AB135: 0.04831952072 | AC135: -4.323451009e-09 | AD135: 0.06272674569 | AE135: -0.0004806621943 | AF135: -0.06071524469 | AG135: -0.02049479099
E136: 3200 | F136: 7.597187599e-06 | G136: -1.427774741e-12 | H136: 0.004120940555 | I136: 0.001156878469 | J136: 6678.122622 | K136: 212.1093123 | L136: -5656.607215 | M136: -3549.664289 | O136: 3200 | P136: 0.0002031434761 | Q136: 0 | R136: 0.05607947692 | S136: 0.00115687418 | T136: 6678.187829 | U136: 212.1088254 | V136: -5656.670312 | W136: -3549.686419 | Y136: 3200 | Z136: 0.0001955462885 | AA136: 1.427774741e-12 | AB136: 0.05195853636 | AC136: -4.288584116e-09 | AD136: 0.06520748681 | AE136: -0.0004868303083 | AF136: -0.06309613267 | AG136: -0.02213007134
E137: 3225 | F137: 7.45614601e-06 | G137: -1.492972977e-12 | H137: 0.004309120342 | I137: 0.001156878432 | J137: 6678.122727 | K137: 213.7664186 | L137: -5551.592708 | M137: -3711.757207 | O137: 3225 | P137: 0.0002137793258 | Q137: 0 | R137: 0.06003820311 | S137: 0.00115687418 | T137: 6678.190478 | U137: 213.7659256 | V137: -5551.658252 | W137: -3711.781071 | Y137: 3225 | Z137: 0.0002063231798 | AA137: 1.492972977e-12 | AB137: 0.05572908277 | AC137: -4.252072224e-09 | AD137: 0.0677511249 | AE137: -0.0004929472974 | AF137: -0.0655442726 | AG137: -0.02386360787
E138: 3250 | F138: 7.308867942e-06 | G138: -1.556922447e-12 | H138: 0.004493695881 | I138: 0.001156878394 | J138: 6678.122837 | K138: 215.4235248 | L138: -5441.934733 | M138: -3870.745535 | O138: 3250 | P138: 0.0002246859088 | Q138: 0 | R138: 0.06412622159 | S138: 0.00115687418 | T138: 6678.193195 | U138: 215.4230258 | V138: -5442.002793 | W138: -3870.771235 | Y138: 3250 | Z138: 0.0002173770408 | AA138: 1.556922447e-12 | AB138: 0.05963252571 | AC138: -4.213945874e-09 | AD138: 0.07035753566 | AE138: -0.0004990108271 | AF138: -0.0680600005 | AG138: -0.02570016532
E139: 3275 | F139: 7.15547659e-06 | G139: -1.619569662e-12 | H139: 0.004674512791 | I139: 0.001156878354 | J139: 6678.122952 | K139: 217.0806311 | L139: -5327.72501 | M139: -4026.49629 | O139: 3275 | P139: 0.0002358619221 | Q139: 0 | R139: 0.06834461466 | S139: 0.00115687418 | T139: 6678.195978 | U139: 217.080126 | V139: -5327.795654 | W139: -4026.523935 | Y139: 3275 | Z139: 0.0002287064455 | AA139: 1.619569662e-12 | AB139: 0.06367010186 | AC139: -4.174236955e-09 | AD139: 0.0730264868 | AE139: -0.0005050186075 | AF139: -0.07064351896 | AG139: -0.0276446643
E140: 3300 | F140: 6.996100251e-06 | G140: -1.680862222e-12 | H140: 0.004851419832 | I140: 0.001156878313 | J140: 6678.123071 | K140: 218.7377372 | L140: -5209.059068 | M140: -4178.879201 | O140: 3300 | P140: 0.0002473055907 | Q140: 0 | R140: 0.07269432994 | S140: 0.00115687418 | T140: 6678.198829 | U140: 218.7372262 | V140: -5209.132363 | W140: -4178.908903 | Y140: 3300 | Z140: 0.0002403094905 | AA140: 1.680862222e-12 | AB140: 0.06784291011 | AC140: -4.13297868e-09 | AD140: 0.07575763226 | AE140: -0.0005109683953 | AF140: -0.07329488658 | AG140: -0.02970217947
E141: 3325 | F141: 6.83087223e-06 | G141: -1.740748861e-12 | H141: 0.005024269036 | I141: 0.00115687827 | J141: 6678.123195 | K141: 220.3948433 | L141: -5086.036161 | M141: -4327.76681 | O141: 3325 | P141: 0.0002590146443 | Q141: 0 | R141: 0.07717617155 | S141: 0.00115687418 | T141: 6678.201745 | U141: 220.3943264 | V141: -5086.112175 | W141: -4327.798688 | Y141: 3325 | Z141: 0.0002521837721 | AA141: 1.740748861e-12 | AB141: 0.07215190251 | AC141: -4.090205561e-09 | AD141: 0.07855050631 | AE141: -0.0005168579959 | AF141: -0.07601400712 | AG141: -0.03187793723
E142: 3350 | F142: 6.659930733e-06 | G142: -1.799179488e-12 | H142: 0.005192915828 | I142: 0.001156878226 | J142: 6678.123322 | K142: 222.0519493 | L142: -4958.759189 | M142: -4473.034587 | O142: 3350 | P142: 0.0002709862926 | Q142: 0 | R142: 0.08179079093 | S142: 0.00115687418 | T142: 6678.204727 | U142: 222.0514266 | V142: -4958.83799 | W142: -4473.068764 | Y142: 3350 | Z142: 0.0002643263618 | AA142: 1.799179488e-12 | AB142: 0.0765978751 | AC142: -4.045953372e-09 | AD142: 0.08140451745 | AE142: -0.0005226852649 | AF142: -0.07880061861 | AG142: -0.03417731258
E143: 3375 | F143: 6.483418737e-06 | G143: -1.856105232e-12 | H143: 0.005357219149 | I143: 0.00115687818 | J143: 6678.123454 | K143: 223.7090553 | L143: -4827.334608 | M143: -4614.561024 | O143: 3375 | P143: 0.0002832172013 | Q143: 0 | R143: 0.08653867748 | S143: 0.00115687418 | T143: 6678.207773 | U143: 223.7085268 | V143: -4827.416263 | W143: -4614.59763 | Y143: 3375 | Z143: 0.0002767337825 | AA143: 1.856105232e-12 | AB143: 0.08118145834 | AC143: -4.000259127e-09 | AD143: 0.08431894223 | AE143: -0.00052844811 | AF143: -0.08165428217 | AG143: -0.03660582535
E144: 3400 | F144: 6.301483892e-06 | G144: -1.911478477e-12 | H144: 0.005517041571 | I144: 0.001156878133 | J144: 6678.12359 | K144: 225.3661612 | L144: -4691.872346 | M144: -4752.227749 | O144: 3400 | P144: 0.0002957034668 | Q144: 0 | R144: 0.09142014885 | S144: 0.00115687418 | T144: 6678.210883 | U144: 225.365627 | V144: -4691.95692 | W144: -4752.266918 | Y144: 3400 | Z144: 0.0002894019829 | AA144: 1.911478477e-12 | AB144: 0.08590310728 | AC144: -3.953161048e-09 | AD144: 0.08729291887 | AE144: -0.0005341444929 | AF144: -0.08457437089 | AG144: -0.03916913562
E145: 3425 | F145: 6.11427836e-06 | G145: -1.965252909e-12 | H145: 0.005672249418 | I145: 0.001156878085 | J145: 6678.12373 | K145: 227.023267 | L145: -4552.485705 | M145: -4885.919612 | O145: 3425 | P145: 0.0003084405906 | Q145: 0 | R145: 0.09643534096 | S145: 0.00115687418 | T145: 6678.214055 | U145: 227.0227272 | V145: -4552.573265 | W145: -4885.961485 | Y145: 3425 | Z145: 0.0003023263123 | AA145: 1.965252909e-12 | AB145: 0.09076309154 | AC145: -3.904698528e-09 | AD145: 0.09032544082 | AE145: -0.0005397724307 | AF145: -0.08756005854 | AG145: -0.04187303839
E146: 3450 | F146: 5.921958743e-06 | G146: -2.01738355e-12 | H146: 0.005822712869 | I146: 0.001156878035 | J146: 6678.123874 | K146: 228.6803728 | L146: -4409.291272 | M146: -5015.524793 | O146: 3450 | P146: 0.000321423453 | Q146: 0 | R146: 0.1015841978 | S146: 0.00115687418 | T146: 6678.217289 | U146: 228.6798274 | V146: -4409.381883 | W146: -5015.569516 | Y146: 3450 | Z146: 0.0003155014943 | AA146: 2.01738355e-12 | AB146: 0.09576148491 | AC146: -3.854912102e-09 | AD146: 0.09341535009 | AE146: -0.0005453299981 | AF146: -0.09061030834 | AG146: -0.04472345739
E147: 3475 | F147: 5.724685893e-06 | G147: -2.067826796e-12 | H147: 0.005968306075 | I147: 0.001156877984 | J147: 6678.124021 | K147: 230.3374784 | L147: -4262.408819 | M147: -5140.934886 | O147: 3475 | P147: 0.0003346462863 | Q147: 0 | R147: 0.1068664608 | S147: 0.00115687418 | T147: 6678.220582 | U147: 230.3369276 | V147: -4262.502543 | W147: -5140.982613 | Y147: 3475 | Z147: 0.0003289216004 | AA147: 2.067826796e-12 | AB147: 0.1008981547 | AC147: -3.803843413e-09 | AD147: 0.09656133052 | AE147: -0.0005508153281 | AF147: -0.09372386172 | AG147: -0.04772643811
E148: 3500 | F148: 5.522624816e-06 | G148: -2.116540457e-12 | H148: 0.006108907259 | I148: 0.001156877932 | J148: 6678.124172 | K148: 231.9945841 | L148: -4111.961199 | M148: -5262.044997 | O148: 3500 | P148: 0.0003481026478 | Q148: 0 | R148: 0.1122816582 | S148: 0.00115687418 | T148: 6678.223934 | U148: 231.9940278 | V148: -4112.058099 | W148: -5262.095885 | Y148: 3500 | Z148: 0.000342580023 | AA148: 2.116540457e-12 | AB148: 0.1061727509 | AC148: -3.751535176e-09 | AD148: 0.0997619009 | AE148: -0.0005562266148 | AF148: -0.09689922725 | AG148: -0.05088813993
E149: 3525 | F149: 5.315944524e-06 | G149: -2.163483788e-12 | H149: 0.006244398819 | I149: 0.001156877878 | J149: 6678.124326 | K149: 233.6516896 | L149: -3958.074253 | M149: -5378.753827 | O149: 3525 | P149: 0.0003617853919 | Q149: 0 | R149: 0.1178290937 | S149: 0.00115687418 | T149: 6678.227342 | U149: 233.651128 | V149: -3958.174387 | W149: -5378.808042 | Y149: 3525 | Z149: 0.0003564694473 | AA149: 2.163483788e-12 | AB149: 0.1115846949 | AC149: -3.698031144e-09 | AD149: 0.1030154079 | AE149: -0.0005615621137 | AF149: -0.1001346697 | AG149: -0.05421482738
E150: 3550 | F150: 5.104817887e-06 | G150: -2.208617524e-12 | H150: 0.006374667429 | I150: 0.001156877824 | J150: 6678.124484 | K150: 235.308795 | L150: -3800.876692 | M150: -5490.963758 | O150: 3550 | P150: 0.0003756866416 | Q150: 0 | R150: 0.1235078355 | S150: 0.00115687418 | T150: 6678.230804 | U150: 235.3082282 | V150: -3800.980121 | W150: -5491.021471 | Y150: 3550 | Z150: 0.0003705818237 | AA150: 2.208617524e-12 | AB150: 0.1171331681 | AC150: -3.643376068e-09 | AD150: 0.1063200191 | AE150: -0.000566820144 | AF150: -0.1034281991 | AG150: -0.0577128605
E151: 3575 | F151: 4.889421508e-06 | G151: -2.251903915e-12 | H151: 0.00649960413 | I151: 0.001156877768 | J151: 6678.124645 | K151: 236.9659004 | L151: -3640.500002 | M151: -5598.580937 | O151: 3575 | P151: 0.0003897977605 | Q151: 0 | R151: 0.1293167042 | S151: 0.00115687418 | T151: 6678.234319 | U151: 236.9653284 | V151: -3640.60678 | W151: -5598.642326 | Y151: 3575 | Z151: 0.000384908339 | AA151: 2.251903915e-12 | AB151: 0.1228171001 | AC151: -3.587615664e-09 | AD151: 0.1096737153 | AE151: -0.0005719990896 | AF151: -0.1067775605 | AG151: -0.06138868425
E152: 3600 | F152: 4.669935542e-06 | G152: -2.293306756e-12 | H152: 0.006619104422 | I152: 0.001156877711 | J152: 6678.124809 | K152: 238.6230057 | L152: -3477.078325 | M152: -5701.51535 | O152: 3600 | P152: 0.0004041093227 | Q152: 0 | R152: 0.1352542611 | S152: 0.00115687418 | T152: 6678.237883 | U152: 238.6224286 | V152: -3477.188505 | W152: -5701.580599 | Y152: 3600 | Z152: 0.0003994393872 | AA152: 2.293306756e-12 | AB152: 0.1286351567 | AC152: -3.53079657e-09 | AD152: 0.1130742838 | AE152: -0.0005770974004 | AF152: -0.1101802238 | AG152: -0.06524881705
E153: 3625 | F153: 4.446543571e-06 | G153: -2.332791418e-12 | H153: 0.006733068355 | I153: 0.001156877653 | J153: 6678.124976 | K153: 240.2801109 | L153: -3310.748349 | M153: -5799.680902 | O153: 3625 | P153: 0.0004186110841 | Q153: 0 | R153: 0.1413187961 | S153: 0.00115687418 | T153: 6678.241495 | U153: 240.2795288 | V153: -3310.861983 | W153: -5799.750202 | Y153: 3625 | Z153: 0.0004141645406 | AA153: 2.332791418e-12 | AB153: 0.1345857277 | AC153: -3.472966311e-09 | AD153: 0.1165193104 | AE153: -0.0005821135939 | AF153: -0.1136333739 | AG153: -0.06929983834
E154: 3650 | F154: 4.219432452e-06 | G154: -2.370324875e-12 | H154: 0.006841400606 | I154: 0.001156877594 | J154: 6678.125146 | K154: 241.9372161 | L154: -3141.649198 | M154: -5892.995484 | O154: 3650 | P154: 0.0004332919517 | Q154: 0 | R154: 0.147508315 | S154: 0.00115687418 | T154: 6678.245152 | U154: 241.936629 | V154: -3141.766332 | W154: -5893.069033 | Y154: 3650 | Z154: 0.0004290725193 | AA154: 2.370324875e-12 | AB154: 0.1406669144 | AC154: -3.41417326e-09 | AD154: 0.1200061718 | AE154: -0.0005870462563 | AF154: -0.1171339013 | AG154: -0.07354837517
E155: 3675 | F155: 3.988792149e-06 | G155: -2.405875733e-12 | H155: 0.006944010565 | I155: 0.001156877535 | J155: 6678.125318 | K155: 243.5943211 | L155: -2969.922309 | M155: -5981.381048 | O155: 3675 | P155: 0.0004481399535 | Q155: 0 | R155: 0.1538205272 | S155: 0.00115687418 | T155: 6678.24885 | U155: 243.5937292 | V155: -2970.042987 | W155: -5981.459049 | Y155: 3675 | Z155: 0.0004441511613 | AA155: 2.405875733e-12 | AB155: 0.1468765166 | AC155: -3.35446659e-09 | AD155: 0.1235320284 | AE155: -0.0005918940436 | AF155: -0.1206783936 | AG155: -0.07800108795
E156: 3700 | F156: 3.754815565e-06 | G156: -2.439414259e-12 | H156: 0.007040812409 | I156: 0.001156877474 | J156: 6678.125493 | K156: 245.2514261 | L156: -2795.711317 | M156: -6064.763666 | O156: 3700 | P156: 0.0004631422074 | Q156: 0 | R156: 0.1602528319 | S156: 0.00115687418 | T156: 6678.252587 | U156: 245.2508294 | V156: -2795.835581 | W156: -6064.846331 | Y156: 3700 | Z156: 0.0004593873918 | AA156: 2.439414259e-12 | AB156: 0.1532120195 | AC156: -3.293896243e-09 | AD156: 0.1270938158 | AE156: -0.0005966556828 | AF156: -0.1242631274 | AG156: -0.0826646551
E157: 3725 | F157: 3.517698416e-06 | G157: -2.4709124e-12 | H157: 0.00713172517 | I157: 0.001156877413 | J157: 6678.12567 | K157: 246.9085309 | L157: -2619.161938 | M157: -6143.073596 | O157: 3725 | P157: 0.0004782848906 | Q157: 0 | R157: 0.1668023059 | S157: 0.00115687418 | T157: 6678.256358 | U157: 246.9079296 | V157: -2619.289822 | W157: -6143.161142 | Y157: 3725 | Z157: 0.0004747671921 | AA157: 2.4709124e-12 | AB157: 0.1596705808 | AC157: -3.232512882e-09 | AD157: 0.1306882376 | AE157: -0.0006013299731 | AF157: -0.1278840607 | AG157: -0.0875457569
E158: 3750 | F158: 3.277639031e-06 | G158: -2.500343811e-12 | H158: 0.007216672809 | I158: 0.001156877351 | J158: 6678.125849 | K158: 248.5656357 | L158: -2440.42184 | M158: -6216.245338 | O158: 3750 | P158: 0.0004935532074 | Q158: 0 | R158: 0.1734656893 | S158: 0.00115687418 | T158: 6678.260161 | U158: 248.5650298 | V158: -2440.553377 | W158: -6216.337989 | Y158: 3750 | Z158: 0.0004902755684 | AA158: 2.500343811e-12 | AB158: 0.1662490165 | AC158: -3.170367847e-09 | AD158: 0.1343117569 | AE158: -0.0006059157865 | AF158: -0.1315368264 | AG158: -0.09265105837
E159: 3775 | F159: 3.034838204e-06 | G159: -2.527683877e-12 | H159: 0.007295584275 | I159: 0.001156877288 | J159: 6678.126031 | K159: 250.2227404 | L159: -2259.640525 | M159: -6284.217691 | O159: 3775 | P159: 0.0005089313581 | Q159: 0 | R159: 0.1802393721 | S159: 0.00115687418 | T159: 6678.263991 | U159: 250.22213 | V159: -2259.775742 | W159: -6284.315678 | Y159: 3775 | Z159: 0.0005058965199 | AA159: 2.527683877e-12 | AB159: 0.1729437878 | AC159: -3.10751312e-09 | AD159: 0.1379605885 | AE159: -0.0006104120691 | AF159: -0.1352167262 | AG159: -0.09798719122
E160: 3800 | F160: 2.789499018e-06 | G160: -2.55290973e-12 | H160: 0.007368393565 | I160: 0.001156877224 | J160: 6678.126214 | K160: 251.879845 | L160: -2076.969202 | M160: -6346.9338 | O160: 3800 | P160: 0.0005244025066 | Q160: 0 | R160: 0.18711938 | S160: 0.00115687418 | T160: 6678.267845 | U160: 251.8792302 | V160: -2077.108121 | W160: -6347.037361 | Y160: 3800 | Z160: 0.0005216130076 | AA160: 2.55290973e-12 | AB160: 0.1797509864 | AC160: -3.044001273e-09 | AD160: 0.141630691 | AE160: -0.000614817842 | AF160: -0.1389187261 | AG160: -0.1035607349
E161: 3825 | F161: 2.541826673e-06 | G161: -2.576000271e-12 | H161: 0.007435039781 | I161: 0.00115687716 | J161: 6678.126399 | K161: 253.5369495 | L161: -1892.560662 | M161: -6404.341211 | O161: 3825 | P161: 0.000539948748 | Q161: 0 | R161: 0.1941013605 | S161: 0.00115687418 | T161: 6678.271717 | U161: 253.5363304 | V161: -1892.7033 | W161: -6404.450589 | Y161: 3825 | Z161: 0.0005374069213 | AA161: 2.576000271e-12 | AB161: 0.1866663207 | AC161: -2.97988543e-09 | AD161: 0.1453177581 | AE161: -0.000619132202 | AF161: -0.1426374524 | AG161: -0.109378197
E162: 3850 | F162: 2.292028338e-06 | G162: -2.596936188e-12 | H162: 0.007495467181 | I162: 0.001156877095 | J162: 6678.126586 | K162: 255.194054 | L162: -1706.569148 | M162: -6456.391906 | O162: 3850 | P162: 0.0005555510766 | Q162: 0 | R162: 0.2011805683 | S162: 0.00115687418 | T162: 6678.275603 | U162: 255.1934306 | V162: -1706.715515 | W162: -6456.507352 | Y162: 3850 | Z162: 0.0005532590482 | AA162: 2.596936188e-12 | AB162: 0.1936851011 | AC162: -2.915219217e-09 | AD162: 0.1490172109 | AE162: -0.0006233543221 | AF162: -0.1463671886 | AG162: -0.1154459924
E163: 3875 | F163: 2.040312944e-06 | G163: -2.615699971e-12 | H163: 0.007549625222 | I163: 0.00115687703 | J163: 6678.126774 | K163: 256.8511583 | L163: -1519.150226 | M163: -6503.04235 | O163: 3875 | P163: 0.0005711893528 | Q163: 0 | R163: 0.2083518505 | S163: 0.00115687418 | T163: 6678.279498 | U163: 256.8505308 | V163: -1519.300328 | W163: -6503.16412 | Y163: 3875 | Z163: 0.0005691490398 | AA163: 2.615699971e-12 | AB163: 0.2008022253 | AC163: -2.850056723e-09 | AD163: 0.1527241893 | AE163: -0.0006274834529 | AF163: -0.1501018745 | AG163: -0.1217704221
E164: 3900 | F164: 1.786891034e-06 | G164: -2.632275926e-12 | H164: 0.007597468606 | I164: 0.001156876965 | J164: 6678.126963 | K164: 258.5082625 | L164: -1330.460657 | M164: -6544.253523 | O164: 3900 | P164: 0.0005868422708 | Q164: 0 | R164: 0.215609632 | S164: 0.00115687418 | T164: 6678.283397 | U164: 258.507631 | V164: -1330.614492 | W164: -6544.381881 | Y164: 3900 | Z164: 0.0005850553797 | AA164: 2.632275926e-12 | AB164: 0.2080121634 | AC164: -2.784452451e-09 | AD164: 0.1564335441 | AE164: -0.0006315189223 | AF164: -0.153835105 | AG164: -0.1283576509
E165: 3925 | F165: 1.531974575e-06 | G165: -2.64665019e-12 | H165: 0.007638957318 | I165: 0.001156876899 | J165: 6678.127154 | K165: 260.1653667 | L165: -1140.658266 | M165: -6579.990958 | O165: 3925 | P165: 0.0006024873254 | Q165: 0 | R165: 0.2229479002 | S165: 0.00115687418 | T165: 6678.287294 | U165: 260.1647312 | V165: -1140.815826 | W165: -6580.126171 | Y165: 3925 | Z165: 0.0006009553508 | AA165: 2.64665019e-12 | AB165: 0.2153089429 | AC165: -2.718461275e-09 | AD165: 0.1601398281 | AE165: -0.0006354601368 | AF165: -0.1575601317 | AG165: -0.1352136848
E166: 3950 | F166: 1.275776787e-06 | G166: -2.65881074e-12 | H166: 0.007674056656 | I166: 0.001156876832 | J166: 6678.127345 | K166: 261.8224707 | L166: -949.9018058 | M166: -6610.224762 | O166: 3950 | P166: 0.0006181007795 | Q166: 0 | R166: 0.2303601902 | S166: 0.00115687418 | T166: 6678.291182 | U166: 261.8218314 | V166: -950.0630757 | W166: -6610.367106 | Y166: 3950 | Z166: 0.0006168250027 | AA166: 2.65881074e-12 | AB166: 0.2226861335 | AC166: -2.652138391e-09 | AD166: 0.1638372884 | AE166: -0.0006393065818 | AF166: -0.1612698651 | AG166: -0.1423443474
E167: 3975 | F167: 1.018511968e-06 | G167: -2.668747407e-12 | H167: 0.007702737264 | I167: 0.001156876766 | J167: 6678.127537 | K167: 263.4795747 | L167: -758.35083 | M167: -6634.929647 | O167: 3975 | P167: 0.0006336576311 | Q167: 0 | R167: 0.2378395688 | S167: 0.00115687418 | T167: 6678.295057 | U167: 263.4789316 | V167: -758.5157868 | W167: -6635.079403 | Y167: 3975 | Z167: 0.0006326391191 | AA167: 2.668747407e-12 | AB167: 0.2301368315 | AC167: -2.585539272e-09 | AD167: 0.1675198578 | AE167: -0.0006430578218 | AF167: -0.1649568786 | AG167: -0.1497552562
E168: 4000 | F168: 7.603952832e-07 | G168: -2.676451879e-12 | H168: 0.007724975155 | I168: 0.001156876699 | J168: 6678.12773 | K168: 265.1366785 | L168: -566.165555 | M168: -6654.084952 | O168: 4000 | P168: 0.0006491315804 | Q168: 0 | R168: 0.2453786193 | S168: 0.00115687418 | T168: 6678.298911 | U168: 265.1360318 | V168: -566.3341684 | W168: -6654.242404 | Y168: 4000 | Z168: 0.0006483711851 | AA168: 2.676451879e-12 | AB168: 0.2376536441 | AC168: -2.518719623e-09 | AD168: 0.1711811464 | AE168: -0.0006467135011 | AF168: -0.1686134138 | AG168: -0.1574517975
E169: 4025 | F169: 5.016426342e-07 | G169: -2.681917714e-12 | H169: 0.007740751729 | I169: 0.001156876632 | J169: 6678.127924 | K169: 266.7937823 | L169: -373.5067285 | M169: -6667.674654 | O169: 4025 | P169: 0.0006644949975 | Q169: 0 | R169: 0.252969426 | S169: 0.00115687418 | T169: 6678.302738 | U169: 266.793132 | V169: -373.6789599 | W169: -6667.840093 | Y169: 4025 | Z169: 0.0006639933549 | AA169: 2.681917714e-12 | AB169: 0.2452286742 | AC169: -2.451735335e-09 | AD169: 0.1748144335 | AE169: -0.0006502733435 | AF169: -0.1722313879 | AG169: -0.1654391021
E170: 4050 | F170: 2.424704495e-07 | G170: -2.685140341e-12 | H170: 0.00775005379 | I170: 0.001156876565 | J170: 6678.128117 | K170: 268.4508859 | L170: -180.5354939 | M170: -6675.687387 | O170: 4050 | P170: 0.0006797188899 | Q170: 0 | R170: 0.2606035578 | S170: 0.00115687418 | T170: 6678.30653 | U170: 268.4502322 | V170: -180.7112963 | W170: -6675.861109 | Y170: 4050 | Z170: 0.0006794764194 | AA170: 2.685140341e-12 | AB170: 0.252853504 | AC170: -2.384642433e-09 | AD170: 0.1784126595 | AE170: -0.0006537371536 | AF170: -0.1758024025 | AG170: -0.1737220196
E171: 4075 | F171: -1.690450025e-08 | G171: -2.686117066e-12 | H171: 0.007752873561 | I171: 0.001156876498 | J171: 6678.128311 | K171: 270.1079895 | L171: 12.58674393 | M171: -6678.116449 | O171: 4075 | P171: 0.0006947728698 | Q171: 0 | R171: 0.268272053 | S171: 0.00115687418 | T171: 6678.310279 | U171: 270.1073324 | V171: 12.40742618 | W171: -6678.298755 | Y171: 4075 | Z171: 0.0006947897743 | AA171: 2.686117066e-12 | AB171: 0.2605191795 | AC171: -2.317497035e-09 | AD171: 0.1819684175 | AE171: -0.0006571048159 | AF171: -0.1793177543 | AG171: -0.182305093
E172: 4100 | F172: -2.762652669e-07 | G172: -2.684847072e-12 | H172: 0.007749208683 | I172: 0.00115687643 | J172: 6678.128505 | K172: 271.765093 | L172: 205.698454 | M172: -6674.959811 | O172: 4100 | P172: 0.0007096251228 | Q172: 0 | R172: 0.2759654027 | S172: 0.00115687418 | T172: 6678.313979 | U172: 271.7644326 | V172: 205.5156856 | W172: -6675.151003 | Y172: 4100 | Z172: 0.0007099013881 | AA172: 2.684847072e-12 | AB172: 0.268216194 | AC172: -2.250355303e-09 | AD172: 0.1854739452 | AE172: -0.0006603762953 | AF172: -0.1827684475 | AG172: -0.1911925332
E173: 4125 | F173: -5.353949165e-07 | G173: -2.681331423e-12 | H173: 0.007739062224 | I173: 0.001156876363 | J173: 6678.128698 | K173: 273.4221963 | L173: 398.6381141 | M173: -6666.220111 | O173: 4125 | P173: 0.000724242376 | Q173: 0 | R173: 0.2836735348 | S173: 0.00115687418 | T173: 6678.31762 | U173: 273.4215328 | V173: 398.4519689 | W173: -6666.420499 | Y173: =O173 -> 4125 | Z173: =P173-F173 -> 0.0007247777709 | AA173: =Q173-G173 -> 2.681331423e-12 | AB173: =R173-H173 -> 0.2759344726 | AC173: =S173-I173 -> -2.183273396e-09 | AD173: =T173-J173 -> 0.1889211171 | AE173: =U173-K173 -> -0.0006635516376 | AF173: =V173-L173 -> -0.1861452088 | AG173: =W173-M173 -> -0.2003881932
E174: 4150 | F174: -7.940766997e-07 | G174: -2.67557306e-12 | H174: 0.00772244267 | I174: 0.001156876296 | J174: 6678.128892 | K174: 275.0792996 | L174: 591.2443458 | M174: -6651.904661 | O174: 4150 | P174: 0.0007385898667 | Q174: 0 | R174: 0.2913857982 | S174: 0.00115687418 | T174: 6678.321193 | U174: 275.078633 | V174: 591.0549073 | W174: -6652.114556 | Y174: 4150 | Z174: 0.0007393839434 | AA174: 2.67557306e-12 | AB174: 0.2836633555 | AC174: -2.116307422e-09 | AD174: 0.1923014364 | AE174: -0.0006666309684 | AF174: -0.1894385035 | AG174: -0.2098955422
E175: 4175 | F175: -1.052094261e-06 | G175: -2.6675768e-12 | H175: 0.007699363924 | I175: 0.00115687623 | J175: 6678.129085 | K175: 276.7364028 | L175: 783.3560499 | M175: -6632.025435 | O175: 4175 | P175: 0.0007526313122 | Q175: 0 | R175: 0.2990909463 | S175: 0.00115687418 | T175: 6678.324691 | U175: 276.7357332 | V175: 783.1634113 | W175: -6632.245153 | Y175: 4175 | Z175: 0.0007536834065 | AA175: 2.6675768e-12 | AB175: 0.2913915824 | AC175: -2.049513394e-09 | AD175: 0.1956060275 | AE175: -0.0006696144939 | AF175: -0.1926385542 | AG175: -0.2197176406
E176: 4200 | F176: -1.309231791e-06 | G176: -2.657349334e-12 | H176: 0.007669845291 | I176: 0.001156876163 | J176: 6678.129277 | K176: 278.3935059 | L176: 974.8125405 | M176: -6606.599061 | O176: 4200 | P176: 0.0007663288793 | Q176: 0 | R176: 0.3067771209 | S176: 0.00115687418 | T176: 6678.328102 | U176: 278.3928334 | V176: 974.6168051 | W176: -6606.828918 | Y176: 4200 | Z176: 0.0007676381111 | AA176: 2.657349334e-12 | AB176: 0.2991072756 | AC176: -1.982947177e-09 | AD176: 0.198825628 | AE176: -0.0006725025006 | AF176: -0.1957353616 | AG176: -0.2298571144
E177: 4225 | F177: -1.565274216e-06 | G177: -2.644899215e-12 | H177: 0.007633911461 | I177: 0.001156876097 | J177: 6678.129468 | K177: 280.0506089 | L177: 1165.45368 | M177: -6575.646806 | O177: 4225 | P177: 0.0007796431549 | Q177: 0 | R177: 0.3144318362 | S177: 0.00115687418 | T177: 6678.331419 | U177: 280.0499336 | V177: 1165.254961 | W177: -6575.887122 | Y177: 4225 | Z177: 0.0007812084291 | AA177: 2.644899215e-12 | AB177: 0.3067979248 | AC177: -1.91666445e-09 | AD177: 0.2019505815 | AE177: -0.0006752953545 | AF177: -0.1987187276 | AG177: -0.2403161307
E178: 4250 | F178: -1.820007369e-06 | G178: -2.630236859e-12 | H178: 0.007591592492 | I178: 0.001156876031 | J178: 6678.129658 | K178: 281.7077118 | L178: 1355.120013 | M178: -6539.194559 | O178: 4250 | P178: 0.0007925331175 | Q178: 0 | R178: 0.3220419624 | S178: 0.00115687418 | T178: 6678.334629 | U178: 281.7070338 | V178: 1354.918434 | W178: -6539.445656 | Y178: 4250 | Z178: 0.0007943531249 | AA178: 2.630236859e-12 | AB178: 0.3144503699 | AC178: -1.850720653e-09 | AD178: 0.2049708303 | AE178: -0.0006779935017 | AF178: -0.2015782798 | AG178: -0.2510963735
E179: 4275 | F179: -2.073218187e-06 | G179: -2.613374531e-12 | H179: 0.00754292378 | I179: 0.001156875965 | J179: 6678.129847 | K179: 283.3648146 | L179: 1543.652898 | M179: -6497.272812 | O179: 4275 | P179: 0.000804956109 | Q179: 0 | R179: 0.3295937099 | S179: 0.00115687418 | T179: 6678.337723 | U179: 283.364134 | V179: 1543.448595 | W179: -6497.535011 | Y179: 4275 | Z179: 0.0008070293272 | AA179: 2.613374531e-12 | AB179: 0.3220507861 | AC179: -1.785170942e-09 | AD179: 0.2078759081 | AE179: -0.0006805974669 | AF179: -0.2043034993 | AG179: -0.2621990203
E180: 4300 | F180: -2.324694885e-06 | G180: -2.594326335e-12 | H180: 0.007487946034 | I180: 0.0011568759 | J180: 6678.130035 | K180: 285.0219173 | L180: 1730.894645 | M180: -6449.916627 | O180: 4300 | P180: 0.0008168678079 | Q180: 0 | R180: 0.337072613 | S180: 0.00115687418 | T180: 6678.34069 | U180: 285.0212342 | V180: 1730.687761 | W180: -6450.190252 | Y180: 4300 | Z180: 0.0008191925028 | AA180: 2.594326335e-12 | AB180: 0.3295846669 | AC180: -1.720070143e-09 | AD180: 0.2106549334 | AE180: -0.0006831078541 | AF180: -0.2068837503 | AG180: -0.2736247194
E181: 4325 | F181: -2.574227124e-06 | G181: -2.573108204e-12 | H181: 0.00742670524 | I181: 0.001156875836 | J181: 6678.130222 | K181: 286.6790199 | L181: 1916.68864 | M181: -6397.165616 | O181: 4325 | P181: 0.000828222203 | Q181: 0 | R181: 0.3444635145 | S181: 0.00115687418 | T181: 6678.343518 | U181: 286.6783344 | V181: 1916.479331 | W181: -6397.45099 | Y181: 4325 | Z181: 0.0008307964301 | AA181: 2.573108204e-12 | AB181: 0.3370368093 | AC181: -1.655472709e-09 | AD181: 0.2132966027 | AE181: -0.0006855253453 | AF181: -0.2093083118 | AG181: -0.2853735684
E182: 4350 | F182: -2.821606207e-06 | G182: -2.549737887e-12 | H182: 0.007359252622 | I182: 0.001156875772 | J182: 6678.130407 | K182: 288.3361224 | L182: 2100.879482 | M182: -6339.0639 | O182: 4350 | P182: 0.0008389715686 | Q182: 0 | R182: 0.3517505497 | S182: 0.00115687418 | T182: 6678.346196 | U182: 288.3354346 | V182: 2100.667915 | W182: -6339.361345 | Y182: 4350 | Z182: 0.0008417931748 | AA182: 2.549737887e-12 | AB182: 0.3443912971 | AC182: -1.591432669e-09 | AD182: 0.2157891843 | AE182: -0.0006878507003 | AF182: -0.2115664116 | AG182: -0.2974450939
E183: 4375 | F183: -3.066625202e-06 | G183: -2.524234931e-12 | H183: 0.007285644599 | I183: 0.001156875708 | J183: 6678.13059 | K183: 289.9932249 | L183: 2283.31311 | M183: -6275.660078 | O183: 4375 | P183: 0.0008490664406 | Q183: 0 | R183: 0.3589171311 | S183: 0.00115687418 | T183: 6678.34871 | U183: 289.9925348 | V183: 2283.099463 | W183: -6275.969916 | Y183: 4375 | Z183: 0.0008521330658 | AA183: 2.524234931e-12 | AB183: 0.3516314865 | AC183: -1.528003588e-09 | AD183: 0.2181205119 | AE183: -0.0006900847558 | AF183: -0.2136472632 | AG183: -0.3098382324
E184: 4400 | F184: -3.309079179e-06 | G184: -2.496620669e-12 | H184: 0.007205942738 | I184: 0.001156875645 | J184: 6678.130771 | K184: 291.6503272 | L184: 2463.836935 | M184: -6207.007181 | O184: 4400 | P184: 0.0008584555941 | Q184: 0 | R184: 0.3659459328 | S184: 0.00115687418 | T184: 6678.351049 | U184: 291.649635 | V184: 2463.621395 | W184: -6207.329733 | Y184: 4400 | Z184: 0.0008617646733 | AA184: 2.496620669e-12 | AB184: 0.3587399901 | AC184: -1.465238518e-09 | AD184: 0.2202779794 | AE184: -0.0006922284252 | AF184: -0.2155401045 | AG184: -0.3225513125
E185: 4425 | F185: -3.54876535e-06 | G185: -2.466918198e-12 | H185: 0.007120213706 | I185: 0.001156875583 | J185: 6678.13095 | K185: 293.3074295 | L185: 2642.299963 | M185: -6133.162634 | O185: 4425 | P185: 0.000867086022 | Q185: 0 | R185: 0.3728188759 | S185: 0.00115687418 | T185: 6678.353199 | U185: 293.3067352 | V185: 2642.082729 | W185: -6133.498216 | Y185: 4425 | Z185: 0.0008706347873 | AA185: 2.466918198e-12 | AB185: 0.3656986622 | AC185: -1.403189957e-09 | AD185: 0.2222485351 | AE185: -0.0006942826972 | AF185: -0.2172342383 | AG185: -0.3355820396
E186: 4450 | F186: -3.785483235e-06 | G186: -2.435152363e-12 | H186: 0.007028529208 | I186: 0.001156875522 | J186: 6678.131127 | K186: 294.9645316 | L186: 2818.552925 | M186: -6054.1882 | O186: 4450 | P186: 0.0008749029153 | Q186: 0 | R186: 0.3795171132 | S186: 0.00115687418 | T186: 6678.355146 | U186: 294.9638354 | V186: 2818.334205 | W186: -6054.537127 | Y186: 4450 | Z186: 0.0008786883985 | AA186: 2.435152363e-12 | AB186: 0.372488584 | AC186: -1.341909804e-09 | AD186: 0.2240186766 | AE186: -0.0006962486353 | AF186: -0.2187190764 | AG186: -0.3489274814
E187: 4475 | F187: -4.019034842e-06 | G187: -2.401349734e-12 | H187: 0.006930965932 | I187: 0.001156875462 | J187: 6678.131301 | K187: 296.6216337 | L187: 2992.448398 | M187: -5970.149936 | O187: 4475 | P187: 0.0008818496451 | Q187: 0 | R187: 0.3860210154 | S187: 0.00115687418 | T187: 6678.356876 | U187: 296.6209356 | V187: 2992.228414 | W187: -5970.51252 | Y187: 4475 | Z187: 0.00088586868 | AA187: 2.401349734e-12 | AB187: 0.3790900495 | AC187: -1.281449314e-09 | AD187: 0.2255744467 | AE187: -0.0006981273771 | AF187: -0.2199841842 | AG187: -0.3625840563
E188: 4500 | F188: -4.249224827e-06 | G188: -2.365538585e-12 | H188: 0.006827605482 | I188: 0.001156875402 | J188: 6678.131473 | K188: 298.2787357 | L188: 3163.840936 | M188: -5881.118134 | O188: 4500 | P188: 0.0008878677465 | Q188: 0 | R188: 0.3923101568 | S188: 0.00115687418 | T188: 6678.358375 | U188: 298.2780358 | V188: 3163.619916 | W188: -5881.494682 | Y188: 4500 | Z188: 0.0008921169713 | AA188: 2.365538585e-12 | AB188: 0.3854825513 | AC188: -1.221859056e-09 | AD188: 0.2269014284 | AE188: -0.0006999201328 | AF188: -0.2210193292 | AG188: -0.3765475233
E189: 4525 | F189: -4.475860653e-06 | G189: -2.327748868e-12 | H189: 0.006718534311 | I189: 0.001156875343 | J189: 6678.131643 | K189: 299.9358376 | L189: 3332.587181 | M189: -5787.167262 | O189: 4525 | P189: 0.0008928969033 | Q189: 0 | R189: 0.3983633013 | S189: 0.00115687418 | T189: 6678.359627 | U189: 299.935136 | V189: 3332.365367 | W189: -5787.558075 | Y189: 4525 | Z189: 0.0008973727639 | AA189: 2.327748868e-12 | AB189: 0.391644767 | AC189: -1.163188874e-09 | AD189: 0.2279847421 | AE189: -0.0007016281849 | AF189: -0.2218145299 | AG189: -0.390812975
E190: 4550 | F190: -4.698752764e-06 | G190: -2.288012194e-12 | H190: 0.006603843649 | I190: 0.001156875286 | J190: 6678.131809 | K190: 301.5929394 | L190: 3498.545992 | M190: -5688.375902 | O190: 4550 | P190: 0.0008968749359 | Q190: 0 | R190: 0.4041583898 | S190: 0.00115687418 | T190: 6678.360618 | U190: 301.5922362 | V190: 3498.323632 | W190: -5688.781277 | Y190: 4550 | Z190: 0.0009015736887 | AA190: 2.288012194e-12 | AB190: 0.3975545462 | AC190: -1.105487839e-09 | AD190: 0.2288090414 | AE190: -0.0007032528864 | AF190: -0.2223601084 | AG190: -0.4053748329
E191: 4575 | F191: -4.917714727e-06 | G191: -2.246361799e-12 | H191: 0.006483629426 | I191: 0.001156875229 | J191: 6678.131973 | K191: 303.2500412 | L191: 3661.578559 | M191: -5584.826685 | O191: 4575 | P191: 0.0008997377907 | Q191: 0 | R191: 0.4096725272 | S191: 0.00115687418 | T191: 6678.361331 | U191: 303.2493364 | V191: 3661.355912 | W191: -5585.246912 | Y191: 4575 | Z191: 0.0009046555055 | AA191: 2.246361799e-12 | AB191: 0.4031888978 | AC191: -1.048804213e-09 | AD191: 0.2293585111 | AE191: -0.0007047956601 | AF191: -0.2226467433 | AG191: -0.4202268452
E192: 4600 | F192: -5.132563406e-06 | G192: -2.20283252e-12 | H192: 0.006357992192 | I192: 0.001156875173 | J192: 6678.132133 | K192: 304.9071428 | L192: 3821.548518 | M192: -5476.606223 | O192: 4600 | P192: 0.0009014195316 | Q192: 0 | R192: 0.4148819701 | S192: 0.00115687418 | T192: 6678.36175 | U192: 304.9064366 | V192: 3821.325852 | W192: -5477.041585 | Y192: 4600 | Z192: 0.000906552095 | AA192: 2.20283252e-12 | AB192: 0.4085239779 | AC192: -9.931854072e-10 | AD192: 0.2296168646 | AE192: -0.0007062579975 | AF192: -0.2226655257 | AG192: -0.4353620879
E193: 4625 | F193: -5.343119093e-06 | G193: -2.157460767e-12 | H193: 0.006227037033 | I193: 0.001156875119 | J193: 6678.132291 | K193: 306.5642444 | L193: 3978.322067 | M193: -5363.805032 | O193: 4625 | P193: 0.0009018523339 | Q193: 0 | R193: 0.4197621156 | S193: 0.00115687418 | T193: 6678.361858 | U193: 306.5635368 | V193: 3978.099659 | W193: -5364.255805 | Y193: 4625 | Z193: 0.000907195453 | AA193: 2.157460767e-12 | AB193: 0.4135350786 | AC193: -9.38677942e-10 | AD193: 0.2295673424 | AE193: -0.0007076414573 | AF193: -0.2224080164 | AG193: -0.4507729692
E194: 4650 | F194: -5.549205692e-06 | G194: -2.11028449e-12 | H194: 0.006090873482 | I194: 0.001156875065 | J194: 6678.132445 | K194: 308.2213459 | L194: 4131.76808 | M194: -5246.517462 | O194: 4650 | P194: 0.0009009664809 | Q194: 0 | R194: 0.4242874901 | S194: 0.00115687418 | T194: 6678.361637 | U194: 308.220637 | V194: 4131.546213 | W194: -5246.983914 | Y194: 4650 | Z194: 0.0009065156866 | AA194: 2.11028449e-12 | AB194: 0.4181966166 | AC194: -8.853274075e-10 | AD194: 0.2291927111 | AE194: -0.0007089476642 | AF194: -0.2218663045 | AG194: -0.4664512368
E195: 4675 | F195: -5.750650814e-06 | G195: -2.061343147e-12 | H195: 0.00594961543 | I195: 0.001156875013 | J195: 6678.132595 | K195: 309.8784473 | L195: 4281.758211 | M195: -5124.841616 | O195: 4675 | P195: 0.000898690363 | Q195: 0 | R195: 0.4284317391 | S195: 0.00115687418 | T195: 6678.36107 | U195: 309.8777372 | V195: 4281.537177 | W195: -5125.324004 | Y195: 4675 | Z195: 0.0009044410139 | AA195: 2.061343147e-12 | AB195: 0.4224821236 | AC195: -8.331784273e-10 | AD195: 0.2284752633 | AE195: -0.0007101783073 | AF195: -0.2210330679 | AG195: -0.4823879889
E196: 4700 | F196: -5.947285975e-06 | G196: -2.010677675e-12 | H196: 0.005803381027 | I196: 0.001156874962 | J196: 6678.132742 | K196: 311.5355487 | L196: 4428.167005 | M196: -4998.879264 | O196: 4700 | P196: 0.0008949504794 | Q196: 0 | R196: 0.4321676177 | S196: 0.00115687418 | T196: 6678.360139 | U196: 311.5348374 | V196: 4427.947104 | W196: -4999.377837 | Y196: 4700 | Z196: 0.0009008977654 | AA196: 2.010677675e-12 | AB196: 0.4263642367 | AC196: -7.82274619e-10 | AD196: 0.2273968175 | AE196: -0.0007113351392 | AF196: -0.2199016349 | AG196: -0.4985736892
E197: 4725 | F197: -6.138946712e-06 | G197: -1.958330452e-12 | H197: 0.005652292588 | I197: 0.001156874913 | J197: 6678.132885 | K197: 313.19265 | L197: 4570.872006 | M197: -4868.735764 | O197: 4725 | P197: 0.0008896714428 | Q197: 0 | R197: 0.4354669822 | S197: 0.00115687418 | T197: 6678.358824 | U197: 313.1919376 | V197: 4570.65354 | W197: -4869.250762 | Y197: 4725 | Z197: 0.0008958103895 | AA197: 1.958330452e-12 | AB197: 0.4298146896 | AC197: -7.32658559e-10 | AD197: 0.2259387196 | AE197: -0.000712419974 | AF197: -0.2184660468 | AG197: -0.5149981854
E198: 4750 | F198: -6.325472714e-06 | G198: -1.904345261e-12 | H198: 0.005496476484 | I198: 0.001156874865 | J198: 6678.133025 | K198: 314.8497512 | L198: 4709.753852 | M198: -4734.519971 | O198: 4750 | P198: 0.0008827759874 | Q198: 0 | R198: 0.4383007817 | S198: 0.00115687418 | T198: 6678.357107 | U198: 314.8490378 | V198: 4709.53713 | W198: -4735.051622 | Y198: 4750 | Z198: 0.0008891014601 | AA198: 1.904345261e-12 | AB198: 0.4328043052 | AC198: -6.84371747e-10 | AD198: 0.2240818447 | AE198: -0.0007134346861 | AF198: -0.2167211216 | AG198: -0.5316507317
E199: 4775 | F199: -6.506707971e-06 | G199: -1.848767257e-12 | H199: 0.005336063045 | I199: 0.001156874818 | J199: 6678.13316 | K199: 316.5068523 | L199: 4844.696379 | M199: -4596.344145 | O199: 4775 | P199: 0.0008741849797 | Q199: 0 | R199: 0.4406390516 | S199: 0.00115687418 | T199: 6678.354967 | U199: 316.506138 | V199: 4844.481717 | W199: -4596.892665 | Y199: 4775 | Z199: 0.0008806916876 | AA199: 1.848767257e-12 | AB199: 0.4353029885 | AC199: -6.374545702e-10 | AD199: 0.2218065996 | AE199: -0.0007143812087 | AF199: -0.2146625184 | AG199: -0.5485200162
E200: 4800 | F200: -6.682500898e-06 | G200: -1.791642926e-12 | H200: 0.005171186442 | I200: 0.001156874772 | J200: 6678.133291 | K200: 318.1639534 | L200: 4975.586721 | M200: -4454.323859 | O200: 4800 | P200: 0.0008638174329 | Q200: 0 | R200: 0.4424509075 | S200: 0.00115687418 | T200: 6678.352384 | U200: 318.1632382 | V200: 4975.374434 | W200: -4454.889453 | Y200: 4800 | Z200: 0.0008704999338 | AA200: 1.791642926e-12 | AB200: 0.4372797211 | AC200: -5.919462711e-10 | AD200: 0.2190929264 | AE200: -0.0007152615318 | AF200: -0.2122868027 | AG200: -0.5655941914
... 8 more rows

Sheet アルキメデスの螺旋
A1: アルキメデスの螺旋
A2: θ=ωt | E2: 時間 | F2: 角度 | G2: 半径 | H2: 位置
A3: r=θ | E3: t | F3: θ | G3: r | H3: x | I3: y
A4: x=rcosθ | E4: [s] | F4: [deg] | G4: [m] | H4: [m] | I4: [m]
A5: y=rsinθ | E5: 0 | F5: 0 | G5: =F5*$C$10 -> 0 | H5: =G5*COS(F5) -> 0 | I5: =G5*SIN(F5) -> 0
E6: =E5+$C$7 -> 1 | F6: =$C$9*E6 -> 0.06021385919 | G6: =F6*$C$10 -> 0.004817108736 | H6: =G6*COS(F6) -> 0.004808378657 | I6: =G6*SIN(F6) -> 0.000289881462
A7: 時間間隔 | B7: Δt | C7: 1 | D7: [s] | E7: =E6+$C$7 -> 2 | F7: =$C$9*E7 -> 0.1204277184 | G7: =F7*$C$10 -> 0.009634217471 | H7: =G7*COS(F7) -> 0.009564440128 | I7: =G7*SIN(F7) -> 0.001157424432
A8: 終了時間 | B8: TL | C8: 400 | D8: [s] | E8: 3 | F8: 0.1806415776 | G8: 0.01445132621 | H8: 0.01421618332 | I8: 0.002596336084
A9: 角速度 | B9: ω | C9: =(360*2-30)/200*PI()/180 -> 0.06021385919 | D9: [rad/s] | E9: 4 | F9: 0.2408554368 | G9: 0.01926843494 | H9: 0.01871223769 | I9: 0.004596166409
A10: 半径倍率 | B10: sf | C10: 0.08 | D10: [m] | E10: 5 | F10: 0.301069296 | G10: 0.02408554368 | H10: 0.02300217459 | I10: 0.007142365056
E11: 6 | F11: 0.3612831552 | G11: 0.02890265241 | H11: 0.02703681367 | I11: 0.01021636055
E12: 7 | F12: 0.4214970144 | G12: 0.03371976115 | H12: 0.03076852316 | I12: 0.01379566145
E13: 8 | F13: 0.4817108736 | G13: 0.03853686988 | H13: 0.03415151202 | I13: 0.01785397902
E14: 9 | F14: 0.5419247327 | G14: 0.04335397862 | H14: 0.037142113 | I14: 0.02236137081
E15: 10 | F15: 0.6021385919 | G15: 0.04817108736 | H15: 0.03969905462 | I15: 0.02728440432
E16: 11 | F16: 0.6623524511 | G16: 0.05298819609 | H16: 0.04178372119 | I16: 0.03258634022
E17: 12 | F17: 0.7225663103 | G17: 0.05780530483 | H17: 0.04336039903 | I17: 0.03822733396
E18: 13 | F18: 0.7827801695 | G18: 0.06262241356 | H18: 0.04439650809 | I18: 0.04416465498
E19: 14 | F19: 0.8429940287 | G19: 0.0674395223 | H19: 0.04486281734 | I19: 0.05035292234
E20: 15 | F20: 0.9032078879 | G20: 0.07225663103 | H20: 0.04473364307 | I20: 0.05674435572
E21: 16 | F21: 0.9634217471 | G21: 0.07707373977 | H21: 0.043987029 | I21: 0.06328904046
E22: 17 | F22: 1.023635606 | G22: 0.0818908485 | H22: 0.04260490708 | I22: 0.06993520545
E23: 18 | F23: 1.083849465 | G23: 0.08670795724 | H23: 0.04057323833 | I23: 0.07662951246
E24: 19 | F24: 1.144063325 | G24: 0.09152506597 | H24: 0.03788213272 | I24: 0.08331735547
E25: 20 | F25: 1.204277184 | G25: 0.09634217471 | H25: 0.03452594761 | I25: 0.08994316856
E26: 21 | F26: 1.264491043 | G26: 0.1011592834 | H26: 0.03050336396 | I26: 0.09645074087
E27: 22 | F27: 1.324704902 | G27: 0.1059763922 | H27: 0.02581744003 | I27: 0.1027835371
E28: 23 | F28: 1.384918761 | G28: 0.1107935009 | H28: 0.02047564202 | I28: 0.1088850216
E29: 24 | F29: 1.445132621 | G29: 0.1156106097 | H29: 0.01448985154 | I29: 0.1146989855
E30: 25 | F30: 1.50534648 | G30: 0.1204277184 | H30: 0.007876349629 | I30: 0.1201698734
E31: 26 | F31: 1.565560339 | G31: 0.1252448271 | H31: 0.0006557773849 | I31: 0.1252431103
E32: 27 | F32: 1.625774198 | G32: 0.1300619359 | H32: -0.007146926775 | I32: 0.1298654249
E33: 28 | F33: 1.685988057 | G33: 0.1348790446 | H33: -0.01550261305 | I33: 0.1339851696
E34: 29 | F34: 1.746201917 | G34: 0.1396961533 | H34: -0.02437802904 | I34: 0.1375526334
E35: 30 | F35: 1.806415776 | G35: 0.1445132621 | H35: -0.03373595104 | I35: 0.1405203491
E36: 31 | F36: 1.866629635 | G36: 0.1493303708 | H36: -0.0435353373 | I36: 0.1428433899
E37: 32 | F37: 1.926843494 | G37: 0.1541474795 | H37: -0.05373150253 | I37: 0.1444796563
E38: 33 | F38: 1.987057353 | G38: 0.1589645883 | H38: -0.06427631318 | I38: 0.1453901506
E39: 34 | F39: 2.047271213 | G39: 0.163781697 | H39: -0.07511840237 | I39: 0.1455392384
E40: 35 | F40: 2.107485072 | G40: 0.1685988057 | H40: -0.0862034037 | I40: 0.1448948946
E41: 36 | F41: 2.167698931 | G41: 0.1734159145 | H41: -0.09747420298 | I41: 0.1434289341
E42: 37 | F42: 2.22791279 | G42: 0.1782330232 | H42: -0.1088712066 | I42: 0.1411172241
E43: 38 | F43: 2.288126649 | G43: 0.1830501319 | H43: -0.1203326255 | I43: 0.1379398784
E44: 39 | F44: 2.348340509 | G44: 0.1878672407 | H44: -0.1317947732 | I44: 0.1338814322
E45: 40 | F45: 2.408554368 | G45: 0.1926843494 | H45: -0.1431923772 | I45: 0.1289309956
E46: 41 | F46: 2.468768227 | G46: 0.1975014582 | H46: -0.1544589013 | I46: 0.1230823861
E47: 42 | F47: 2.528982086 | G47: 0.2023185669 | H47: -0.1655268783 | I47: 0.1163342385
E48: 43 | F48: 2.589195945 | G48: 0.2071356756 | H48: -0.1763282511 | I48: 0.1086900914
E49: 44 | F49: 2.649409805 | G49: 0.2119527844 | H49: -0.1867947205 | I49: 0.1001584504
E50: 45 | F50: 2.709623664 | G50: 0.2167698931 | H50: -0.1968580987 | I50: 0.09075282655
E51: 46 | F51: 2.769837523 | G51: 0.2215870018 | H51: -0.2064506658 | I51: 0.08049175107
E52: 47 | F52: 2.830051382 | G52: 0.2264041106 | H52: -0.2155055285 | I52: 0.06939876408
E53: 48 | F53: 2.890265241 | G53: 0.2312212193 | H53: -0.2239569795 | I53: 0.05750237894
E54: 49 | F54: 2.9504791 | G54: 0.236038328 | H54: -0.2317408542 | I54: 0.0448360213
E55: 50 | F55: 3.01069296 | G55: 0.2408554368 | H55: -0.2387948851 | I55: 0.03143794304
E56: 51 | F56: 3.070906819 | G56: 0.2456725455 | H56: -0.2450590511 | I56: 0.01735111142
E57: 52 | F57: 3.131120678 | G57: 0.2504896542 | H57: -0.2504759197 | I57: 0.002623073583
E58: 53 | F58: 3.191334537 | G58: 0.255306763 | H58: -0.2549909811 | I58: -0.01269420301
E59: 54 | F59: 3.251548396 | G59: 0.2601238717 | H59: -0.2585529721 | I59: -0.02854451386
E60: 55 | F60: 3.311762256 | G60: 0.2649409805 | H60: -0.2611141886 | I60: -0.04486762359
E61: 56 | F61: 3.371976115 | G61: 0.2697580892 | H61: -0.2626307845 | I61: -0.06159949439
E62: 57 | F62: 3.432189974 | G62: 0.2745751979 | H62: -0.263063056 | I62: -0.07867253578
E63: 58 | F63: 3.492403833 | G63: 0.2793923067 | H63: -0.2623757093 | I63: -0.09601587478
E64: 59 | F64: 3.552617692 | G64: 0.2842094154 | H64: -0.2605381108 | I64: -0.1135556454
E65: 60 | F65: 3.612831552 | G65: 0.2890265241 | H65: -0.2575245187 | I65: -0.1312152961
E66: 61 | F66: 3.673045411 | G66: 0.2938436329 | H66: -0.2533142928 | I66: -0.1489159147
E67: 62 | F67: 3.73325927 | G67: 0.2986607416 | H67: -0.2478920846 | I67: -0.1665765679
E68: 63 | F68: 3.793473129 | G68: 0.3034778503 | H68: -0.2412480035 | I68: -0.1841146557
E69: 64 | F69: 3.853686988 | G69: 0.3082949591 | H69: -0.2333777597 | I69: -0.2014462784
E70: 65 | F70: 3.913900848 | G70: 0.3131120678 | H70: -0.2242827827 | I70: -0.2184866138
E71: =E70+$C$7 -> 66 | F71: =$C$9*E71 -> 3.974114707 | G71: =F71*$C$10 -> 0.3179291765 | H71: =G71*COS(F71) -> -0.2139703142 | I71: =G71*SIN(F71) -> -0.235150305
E72: 67 | F72: 4.034328566 | G72: 0.3227462853 | H72: -0.2024534754 | I72: -0.2513518549
E73: 68 | F73: 4.094542425 | G73: 0.327563394 | H73: -0.1897513069 | I73: -0.2670060273
E74: 69 | F74: 4.154756284 | G74: 0.3323805027 | H74: -0.1758887824 | I74: -0.2820282518
E75: 70 | F75: 4.214970144 | G75: 0.3371976115 | H75: -0.1608967943 | I75: -0.2963350313
E76: 71 | F76: 4.275184003 | G76: 0.3420147202 | H76: -0.1448121119 | I76: -0.3098443498
E77: 72 | F77: 4.335397862 | G77: 0.346831829 | H77: -0.1276773119 | I77: -0.3224760791
E78: 73 | F78: 4.395611721 | G78: 0.3516489377 | H78: -0.1095406811 | I78: -0.3341523823
E79: 74 | F79: 4.45582558 | G79: 0.3564660464 | H79: -0.09045609126 | I79: -0.3447981117
E80: 75 | F80: 4.51603944 | G80: 0.3612831552 | H80: -0.07048284708 | I80: -0.3543412006
E81: 76 | F81: 4.576253299 | G81: 0.3661002639 | H81: -0.04968550688 | I81: -0.3627130459
E82: 77 | F82: 4.636467158 | G82: 0.3709173726 | H82: -0.02813367706 | I82: -0.3698488793
E83: 78 | F83: 4.696681017 | G83: 0.3757344814 | H83: -0.005901780724 | I83: -0.3756881279
E84: 79 | F84: 4.756894876 | G84: 0.3805515901 | H84: 0.01693119869 | I84: -0.3801747588
E85: 80 | F85: 4.817108736 | G85: 0.3853686988 | H85: 0.04028199788 | I85: -0.3832576088
E86: 81 | F86: 4.877322595 | G86: 0.3901858076 | H86: 0.06406337732 | I86: -0.3848906963
E87: 82 | F87: 4.937536454 | G87: 0.3950029163 | H87: 0.08818444689 | I87: -0.3850335144
E88: 83 | F88: 4.997750313 | G88: 0.399820025 | H88: 0.1125510123 | I88: -0.3836513027
E89: 84 | F89: 5.057964172 | G89: 0.4046371338 | H89: 0.1370659412 | I89: -0.3807152976
E90: 85 | F90: 5.118178031 | G90: 0.4094542425 | H90: 0.1616295467 | I90: -0.376202959
E91: 86 | F91: 5.178391891 | G91: 0.4142713513 | H91: 0.1861399887 | I91: -0.3700981722
E92: 87 | F92: 5.23860575 | G92: 0.41908846 | H92: 0.2104936888 | I92: -0.3623914241
E93: 88 | F93: 5.298819609 | G93: 0.4239055687 | H93: 0.2345857594 | I93: -0.3530799522
E94: 89 | F94: 5.359033468 | G94: 0.4287226775 | H94: 0.2583104442 | I94: -0.3421678661
E95: 90 | F95: 5.419247327 | G95: 0.4335397862 | H95: 0.281561568 | I95: -0.3296662397
E96: 91 | F96: 5.479461187 | G96: 0.4383568949 | H96: 0.3042329952 | I96: -0.3155931748
E97: 92 | F97: 5.539675046 | G97: 0.4431740037 | H97: 0.3262190932 | I97: -0.2999738335
E98: 93 | F98: 5.599888905 | G98: 0.4479911124 | H98: 0.3474152006 | I98: -0.2828404412
E99: 94 | F99: 5.660102764 | G99: 0.4528082211 | H99: 0.3677180972 | I99: -0.2642322579
E100: 95 | F100: 5.720316623 | G100: 0.4576253299 | H100: 0.3870264734 | I100: -0.2441955189
E101: 96 | F101: 5.780530483 | G101: 0.4624424386 | H101: 0.4052413981 | I101: -0.2227833439
E102: 97 | F102: 5.840744342 | G102: 0.4672595473 | H102: 0.4222667823 | I102: -0.2000556152
E103: 98 | F103: 5.900958201 | G103: 0.4720766561 | H103: 0.4380098361 | I103: -0.1760788252
E104: 99 | F104: 5.96117206 | G104: 0.4768937648 | H104: 0.4523815181 | I104: -0.1509258924
E105: 100 | F105: 6.021385919 | G105: 0.4817108736 | H105: 0.4652969736 | I105: -0.1246759483
E106: 101 | F106: 6.081599779 | G106: 0.4865279823 | H106: 0.476675961 | I106: -0.09741409415
E107: 102 | F107: 6.141813638 | G107: 0.491345091 | H107: 0.4864432642 | I107: -0.06923112863
E108: 103 | F108: 6.202027497 | G108: 0.4961621998 | H108: 0.4945290879 | I108: -0.04022324802
E109: 104 | F109: 6.262241356 | G109: 0.5009793085 | H109: 0.5008694355 | I109: -0.01049171903
E110: 105 | F110: 6.322455215 | G110: 0.5057964172 | H110: 0.5054064665 | I110: 0.01985747415
E111: 106 | F111: 6.382669075 | G111: 0.510613526 | H111: 0.5080888331 | I111: 0.05071400761
E112: 107 | F112: 6.442882934 | G112: 0.5154306347 | H112: 0.5088719921 | I112: 0.08196361873
E113: 108 | F113: 6.503096793 | G113: 0.5202477434 | H113: 0.5077184932 | I113: 0.1134885291
E114: 109 | F114: 6.563310652 | G114: 0.5250648522 | H114: 0.5045982395 | I114: 0.1451678877
E115: 110 | F115: 6.623524511 | G115: 0.5298819609 | H115: 0.4994887217 | I115: 0.1768782331
E116: 111 | F116: 6.683738371 | G116: 0.5346990696 | H116: 0.4923752215 | I116: 0.2084939719
E117: 112 | F117: 6.74395223 | G117: 0.5395161784 | H117: 0.4832509858 | I117: 0.2398878726
E118: 113 | F118: 6.804166089 | G118: 0.5443332871 | H118: 0.4721173691 | I118: 0.2709315731
E119: 114 | F119: 6.864379948 | G119: 0.5491503958 | H119: 0.4589839433 | I119: 0.3014960978
E120: 115 | F120: 6.924593807 | G120: 0.5539675046 | H120: 0.4438685752 | I120: 0.3314523859
E121: 116 | F121: 6.984807666 | G121: 0.5587846133 | H121: 0.4267974685 | I121: 0.3606718244
E122: 117 | F122: 7.045021526 | G122: 0.5636017221 | H122: 0.4078051736 | I122: 0.3890267876
E123: 118 | F123: 7.105235385 | G123: 0.5684188308 | H123: 0.3869345604 | I123: 0.416391178
E124: 119 | F124: 7.165449244 | G124: 0.5732359395 | H124: 0.3642367578 | I124: 0.4426409681
E125: 120 | F125: 7.225663103 | G125: 0.5780530483 | H125: 0.3397710568 | I125: 0.4676547397
E126: 121 | F126: 7.285876962 | G126: 0.582870157 | H126: 0.313604779 | I126: 0.4913142197
E127: 122 | F127: 7.346090822 | G127: 0.5876872657 | H127: 0.2858131099 | I127: 0.5135048086
E128: 123 | F128: 7.406304681 | G128: 0.5925043745 | H128: 0.2564788981 | I128: 0.5341161003
E129: 124 | F129: 7.46651854 | G129: 0.5973214832 | H129: 0.2256924192 | I129: 0.553042391
E130: 125 | F130: 7.526732399 | G130: 0.6021385919 | H130: 0.193551107 | I130: 0.5701831748
E131: 126 | F131: 7.586946258 | G131: 0.6069557007 | H131: 0.1601592519 | I131: 0.5854436238
E132: 127 | F132: 7.647160118 | G132: 0.6117728094 | H132: 0.1256276668 | I132: 0.5987350496
E133: 128 | F133: 7.707373977 | G133: 0.6165899181 | H133: 0.09007332262 | I133: 0.6099753468
E134: 129 | F134: 7.767587836 | G134: 0.6214070269 | H134: 0.05361895403 | I134: 0.6190894126
E135: =E134+$C$7 -> 130 | F135: =$C$9*E135 -> 7.827801695 | G135: =F135*$C$10 -> 0.6262241356 | H135: =G135*COS(F135) -> 0.01639263683 | I135: =G135*SIN(F135) -> 0.6260095442
E136: 131 | F136: 7.888015554 | G136: 0.6310412444 | H136: -0.0214726616 | I136: 0.6306758096
E137: 132 | F137: 7.948229414 | G137: 0.6358583531 | H137: -0.05983955712 | I137: 0.6330363912
E138: 133 | F138: 8.008443273 | G138: 0.6406754618 | H138: -0.09856674728 | I138: 0.6330479
E139: 134 | F139: 8.068657132 | G139: 0.6454925706 | H139: -0.1375095316 | I139: 0.6306756594
E140: 135 | F140: 8.128870991 | G140: 0.6503096793 | H140: -0.1765203519 | I140: 0.6258939562
E141: 136 | F141: 8.18908485 | G141: 0.655126788 | H141: -0.21544935 | I141: 0.6186862581
E142: 137 | F142: 8.24929871 | G142: 0.6599438968 | H142: -0.2541449418 | I142: 0.6090453968
E143: 138 | F143: 8.309512569 | G143: 0.6647610055 | H143: -0.2924544049 | I143: 0.5969737142
E144: 139 | F144: 8.369726428 | G144: 0.6695781142 | H144: -0.3302244769 | I144: 0.5824831722
E145: 140 | F145: 8.429940287 | G145: 0.674395223 | H145: -0.3673019635 | I145: 0.5655954247
E146: 141 | F146: 8.490154146 | G146: 0.6792123317 | H146: -0.4035343524 | I146: 0.5463418508
E147: 142 | F147: 8.550368006 | G147: 0.6840294404 | H147: -0.4387704326 | I147: 0.5247635495
E148: 143 | F148: 8.610581865 | G148: 0.6888465492 | H148: -0.4728609133 | I148: 0.5009112945
E149: 144 | F149: 8.670795724 | G149: 0.6936636579 | H149: -0.5056590446 | I149: 0.4748454495
E150: 145 | F150: 8.731009583 | G150: 0.6984807666 | H150: -0.5370212323 | I150: 0.4466358443
E151: 146 | F151: 8.791223442 | G151: 0.7032978754 | H151: -0.5668076486 | I151: 0.4163616108
E152: 147 | F152: 8.851437301 | G152: 0.7081149841 | H152: -0.5948828336 | I152: 0.3841109801
E153: 148 | F153: 8.911651161 | G153: 0.7129320929 | H153: -0.6211162857 | I153: 0.3499810405
E154: 149 | F154: 8.97186502 | G154: 0.7177492016 | H154: -0.6453830391 | I154: 0.3140774573
E155: 150 | F155: 9.032078879 | G155: 0.7225663103 | H155: -0.667564225 | I155: 0.2765141557
E156: 151 | F156: 9.092292738 | G156: 0.7273834191 | H156: -0.6875476142 | I156: 0.2374129661
E157: 152 | F157: 9.152506597 | G157: 0.7322005278 | H157: -0.7052281398 | I157: 0.1969032346
E158: 153 | F158: 9.212720457 | G158: 0.7370176365 | H158: -0.7205083956 | I158: 0.155121399
E159: 154 | F159: 9.272934316 | G159: 0.7418347453 | H159: -0.7332991107 | I159: 0.1122105321
E160: 155 | F160: 9.333148175 | G160: 0.746651854 | H160: -0.7435195954 | I160: 0.06831985322
E161: 156 | F161: 9.393362034 | G161: 0.7514689627 | H161: -0.7510981582 | I161: 0.02360421054
E162: 157 | F162: 9.453575893 | G162: 0.7562860715 | H162: -0.7559724912 | I162: -0.02177646512
E163: 158 | F163: 9.513789753 | G163: 0.7611031802 | H163: -0.7580900225 | I163: -0.06765773205
E164: 159 | F164: 9.574003612 | G164: 0.7659202889 | H164: -0.7574082329 | I164: -0.1138712335
E165: 160 | F165: 9.634217471 | G165: 0.7707373977 | H165: -0.7538949363 | I165: -0.1602453155
E166: 161 | F166: 9.69443133 | G166: 0.7755545064 | H166: -0.7475285226 | I166: -0.2066056639
E167: 162 | F167: 9.754645189 | G167: 0.7803716152 | H167: -0.7382981595 | I167: -0.2527759588
E168: 163 | F168: 9.814859049 | G168: 0.7851887239 | H168: -0.7262039557 | I168: -0.2985785438
E169: 164 | F169: 9.875072908 | G169: 0.7900058326 | H169: -0.7112570806 | I169: -0.343835107
E170: 165 | F170: 9.935286767 | G170: 0.7948229414 | H170: -0.6934798427 | I170: -0.3883673724
E171: 166 | F171: 9.995500626 | G171: 0.7996400501 | H171: -0.6729057238 | I171: -0.4319977969
E172: 167 | F172: 10.05571449 | G172: 0.8044571588 | H172: -0.6495793705 | I172: -0.4745502732
E173: 168 | F173: 10.11592834 | G173: 0.8092742676 | H173: -0.6235565402 | I173: -0.5158508324
E174: 169 | F174: 10.1761422 | G174: 0.8140913763 | H174: -0.5949040036 | I174: -0.5557283468
E175: 170 | F175: 10.23635606 | G175: 0.818908485 | H175: -0.5636994027 | I175: -0.5940152272
E176: 171 | F176: 10.29656992 | G176: 0.8237255938 | H176: -0.5300310642 | I176: -0.6305481146
E177: 172 | F177: 10.35678378 | G177: 0.8285427025 | H177: -0.4939977692 | I177: -0.6651685605
E178: 173 | F178: 10.41699764 | G178: 0.8333598112 | H178: -0.4557084794 | I178: -0.6977236966
E179: 174 | F179: 10.4772115 | G179: 0.83817692 | H179: -0.4152820207 | I179: -0.7280668874
E180: 175 | F180: 10.53742536 | G180: 0.8429940287 | H180: -0.3728467248 | I180: -0.7560583656
E181: 176 | F181: 10.59763922 | G181: 0.8478111374 | H181: -0.3285400301 | I181: -0.7815658471
E182: 177 | F182: 10.65785308 | G182: 0.8526282462 | H182: -0.2825080427 | I182: -0.8044651217
E183: 178 | F183: 10.71806694 | G183: 0.8574453549 | H183: -0.2349050595 | I183: -0.8246406185
E184: 179 | F184: 10.7782808 | G184: 0.8622624637 | H184: -0.1858930543 | I184: -0.8419859432
E185: 180 | F185: 10.83849465 | G185: 0.8670795724 | H185: -0.1356411291 | I185: -0.856404384
E186: 181 | F186: 10.89870851 | G186: 0.8718966811 | H186: -0.08432493209 | I186: -0.8678093848
E187: 182 | F187: 10.95892237 | G187: 0.8767137899 | H187: -0.03212604473 | I187: -0.8761249834
E188: 183 | F188: 11.01913623 | G188: 0.8815308986 | H188: 0.02076866066 | I188: -0.8812862123
E189: 184 | F189: 11.07935009 | G189: 0.8863480073 | H189: 0.0741676897 | I189: -0.8832394601
E190: 185 | F190: 11.13956395 | G190: 0.8911651161 | H190: 0.1278756191 | I190: -0.881942793
E191: 186 | F191: 11.19977781 | G191: 0.8959822248 | H191: 0.1816938121 | I191: -0.8773662324
E192: 187 | F192: 11.25999167 | G192: 0.9007993335 | H192: 0.2354211522 | I192: -0.8694919898
E193: 188 | F193: 11.32020553 | G193: 0.9056164423 | H193: 0.2888547949 | I193: -0.8583146556
E194: 189 | F194: 11.38041939 | G194: 0.910433551 | H194: 0.3417909316 | I194: -0.8438413416
E195: 190 | F195: 11.44063325 | G195: 0.9152506597 | H195: 0.3940255654 | I195: -0.826091777
E196: 191 | F196: 11.50084711 | G196: 0.9200677685 | H196: 0.4453552943 | I196: -0.8050983545
E197: 192 | F197: 11.56106097 | G197: 0.9248848772 | H197: 0.4955780995 | I197: -0.7809061297
E198: 193 | F198: 11.62127482 | G198: 0.929701986 | H198: 0.5444941357 | I198: -0.7535727695
E199: =E198+$C$7 -> 194 | F199: =$C$9*E199 -> 11.68148868 | G199: =F199*$C$10 -> 0.9345190947 | H199: =G199*COS(F199) -> 0.5919065197 | I199: =G199*SIN(F199) -> -0.7231684522
E200: 195 | F200: 11.74170254 | G200: 0.9393362034 | H200: 0.6376221152 | I200: -0.6897757181
... 205 more rows

Sheet お問合せ
B2: 技術的なご質問のみお受けします。
C4: sxsijk@Gmail.com | D4: sxsijk@Gmail.com
E119: =C119-C$20 -> 0
E120: =IF(C120<0,C120+360,C120)-IF(C$21<0,C$21+360,C$21) -> 0
E121: =C121-C$22 -> 0
E123: =C123-C$16 -> 0
E124: =C124-C$17 -> 0
E125: =C125-C$18 -> 0
E126: =C126-C$19 -> 0
E127: =C127-C$20 -> 0
E128: =IF(C128<0,C128+360,C128)-IF(C$21<0,C$21+360,C$21) -> 0
E129: =C129-C$22 -> 0
E130: =C130-C$23 -> 0
E131: =C131-C$24 -> 0
E132: =C132-C$25 -> 0
E133: =C133-C$26 -> 0
C136: 35 | E136: =C136-C$16 -> 35
B137: λp | E137: =C137-C$17 -> 0
E138: =C138-C$18 -> 0
C139: =SQRT(((#REF!^2*COS(RADIANS(C136)))^2+(#REF!^2*SIN(RADIANS(C136)))^2)/(#REF!^2*(1-C$4*SIN(RADIANS(C136))^2))) ->  | E139: =C139-C$19 -> 
C140: =DEGREES(C142/C139) ->  | E140: =C140-C$24 -> 
E141: =C141-C$25 -> 0
E142: =C142-C$26 -> 0
E143: =IF(C143<0,C143+360,C143)-IF(C$21<0,C$21+360,C$21) -> 0
E144: =C144-C$22 -> 0
C145: =DEGREES(ATAN2((1-C$4)*COS(RADIANS(C144)),SIN(RADIANS(C144)))) ->  | E145: =C145-C$20 -> 
C146: =SQRT(((#REF!^2*COS(RADIANS(C145)))^2+(#REF!^2*SIN(RADIANS(C145)))^2)/(#REF!^2*(1-C$4*SIN(RADIANS(C145))^2))) ->  | E146: =C146-C$23 -> 
C147: =DEGREES(ACOS(COS(RADIANS(C$138))*COS(RADIANS(C144))*(COS(RADIANS(C$137))*COS(RADIANS(C143))+SIN(RADIANS(C$137))*SIN(RADIANS(C143)))+SIN(RADIANS(C$138))*SIN(RADIANS(C144)))) -> 0 | E147: =C147-C$24 -> 0
C148: =DEGREES(ATAN2(COS(RADIANS(C$138))*SIN(RADIANS(C144))-SIN(RADIANS(C$138))*COS(RADIANS(C144))*COS(RADIANS(C143-C$137)),COS(RADIANS(C144))*SIN(RADIANS(C143-C$137)))) ->  | E148: =C148-C$25 -> 
C149: =SQRT(((C$139-C146)*COS(RADIANS(C147/2)))^2+(MAX(C$139,C146)*RADIANS(C147)-ABS(C$139-C146)*SIN(RADIANS(C147/2)))^2) ->  | E149: =C149-C$26 -> 
A150: 補正 | B150: θ＝θ+(d0-d)/r | C150: =C140+DEGREES((C142-C149)/C146) ->  | E150: =C150-C$24 -> 
C151: =C141 -> 0 | E151: =C151-C$25 -> 0
C152: =C142 -> 0 | E152: =C152-C$26 -> 0
E153: =IF(C153<0,C153+360,C153)-IF(C$21<0,C$21+360,C$21) -> 0
E154: =C154-C$22 -> 0
C155: =DEGREES(ATAN2((1-C$4)*COS(RADIANS(C154)),SIN(RADIANS(C154)))) ->  | E155: =C155-C$20 -> 
C156: =SQRT(((#REF!^2*COS(RADIANS(C155)))^2+(#REF!^2*SIN(RADIANS(C155)))^2)/(#REF!^2*(1-C$4*SIN(RADIANS(C155))^2))) ->  | E156: =C156-C$23 -> 
C157: =DEGREES(ACOS(COS(RADIANS(C$138))*COS(RADIANS(C154))*(COS(RADIANS(C$137))*COS(RADIANS(C153))+SIN(RADIANS(C$137))*SIN(RADIANS(C153)))+SIN(RADIANS(C$138))*SIN(RADIANS(C154)))) -> 0 | E157: =C157-C$24 -> 0
C158: =DEGREES(ATAN2(COS(RADIANS(C$138))*SIN(RADIANS(C154))-SIN(RADIANS(C$138))*COS(RADIANS(C154))*COS(RADIANS(C153-C$137)),COS(RADIANS(C154))*SIN(RADIANS(C153-C$137)))) ->  | E158: =C158-C$25 -> 
C159: =SQRT(((C$139-C156)*COS(RADIANS(C157/2)))^2+(MAX(C$139,C156)*RADIANS(C157)-ABS(C$139-C156)*SIN(RADIANS(C157/2)))^2) ->  | E159: =C159-C$26 -> 
